Workbook

Sheet VzorObjekt (hidden)
A1: Stavba : | B1: =[0]!cislostavby -> 0 | C1: =[0]!nazevstavby -> 0
A2: Objekt : | G2: JKSO :
A4: Rekapitulace stavebního objektu
A6: Zákl. údaje | B6: =B2 -> 0
B7: =C2 -> 0
A9: Třídník stavebních objektů:

Sheet VzorPolozky (hidden)
A1: Položkový rozpočet
A2: S:
A3: O:
A4: R:
A6: P.č. | B6: Číslo položky | C6: Název položky | D6: MJ | E6: množství | F6: cena / MJ | G6: celkem

Sheet Identifikační údaje
A1: Akce: | B1: ČRo Brno – II. etapa rekonstrukce budovy Beethovenova 25/4
A3: Místo plnění: | B3: Budova Českého rozhlasu Brno na adrese Beethovenova 25/4, 657 42 Brno
A5: Datum vyplnění:
A7: Zadavatel: | B7: Český rozhlas | E7: =CONCATENATE(B7,", ",B8) -> Český rozhlas, Vinohradská 12, 120 99 Praha 2
B8: Vinohradská 12, 120 99 Praha 2
A9: IČ: | B9: 45245053
A10: DIČ: | B10: CZ45245053
A12: Projektant: | B12: Ing. arch. Klement Miloš | E12: =CONCATENATE(B12,", ",B13) -> Ing. arch. Klement Miloš, Nejedlého 381/19, 638 00 Brno - Lesná
B13: Nejedlého 381/19, 638 00 Brno - Lesná
A14: IČ: | B14: 15188736
A15: DIČ: | B15: CZ6101021344
A17: Uchazeč:
A19: Obchodní název | E19: =CONCATENATE(B19,", ",B20,", ",B22," ",B21) -> , ,
A20: Ulice a č.p.
A21: Město
A22: PSČ
A23: IČ
A24: DIČ
A26: Kontaktní osoba
A27: telefon
A28: e-mail
A32: Poznámka :
A33: Ve všech listech tohoto souboru můžete měnit pouze buňky s modrým pozadím. Jedná se o tyto údaje : - údaje o firmě - jednotkové ceny položek zadané na maximálně dvě desetinná místa

Sheet Pokyny pro vyplnění
A1: -1
B2: POKYNY A PODMÍNKY PRO VYPLNĚNÍ TABULKY PRO VÝPOČET NABÍDKOVÉ CENY - VV
B4: AKCE: | C4: ='Identifikační údaje'!B1 -> ČRo Brno – II. etapa rekonstrukce budovy Beethovenova 25/4
B6: Pozn.:
C7: Tato tabulka pro výpočet nabídkové ceny nahrazuje výkaz výměr, jež byl zpracován jako součást
B8: projektové dokumentace, zhotovené Ing. arch. Klementem Milošem Nejedlého 381/19, 638 00 Brno - Lesná,
B9: v prosinci 2017, pod zakázkovým číslem 12/2017, jež je přílohou zadávací dokumenatce této vřejné zakázky.
B12: 1. POKYNY K VYPLŇOVÁNÍ TABULKY
B14: Ve všech listech tohoto souboru můžete měnit pouze buňky s modrým pozadím. Jedná se o tyto údaje :
B16: - údaje o firmě
B17: - jednotkové ceny položek zadané na maximálně dvě desetinná místa
B19: V titulním listu (identifikační údaje) stavby vyplňte údaje o Uchazeči (přenesou se do ostatních sestav i v jiných listech)
B22: 2. PODMÍNKY PRO ZPRACOVÁNÍ NABÍDKOVÉ CENY
B24: Preambule
B26: Tento soupis stavebních prací, dodávek a služeb je sestaven jako podklad pro zpracování nabídek dodavatelů na veřejnou zakázku na stavební práce a obsahuje podmínky a požadavky zadavatele, za kterých má být zpracována nabídková cena dodavatelů. Účelem tohoto soupisu je zabezpečit obsahovou shodu všech nabídkových cen a usnadnit následné posouzení předložených cenových nabídek.
B27: Předpokládá se, že dodavatel před zpracováním cenové nabídky pečlivě prostuduje všechny pokyny a podmínky pro zpracování nabídkové ceny obsažené v zadávacích podmínkách a bude se jimi při zpracování nabídkové ceny řídit. Soupis stavebních prací, dodávek a služeb je sestaven v souladu s podmínkami vyhlášky Ministerstva pro místní rozvoj č.230/2012 Sb.
B29: Vymezení některých pojmů
B31: Pro účely zpracování nabídkové ceny se jsou použity některé pojmy, pod kterými se rozumí:
B32: Soupisem stavebních prací dodávek a služeb dokument, ve kterém jsou definovány zadavatelem požadované stavební práce, dodávky a služby v podrobnostech nezbytných pro zpracování cenové nabídky dodavatele. Soupis obsahuje i vymezení požadovaného množství stavebních prací, dodávek a služeb.
B33: Cenovou soustavou uspořádaný soubor informací o stavebních a montážních pracích, materiálech a výrobcích obsahující zatřídění položek, podrobný popis a měrnou jednotku, způsob měření a další technické a cenové podmínky pro možnost stanovení jednotkové ceny.
B34: Ostatními náklady náklady dodavatele spojené se splněním povinností dodavatele vyplývajících z obchodních či jiných podmínek zadávací dokumentace. Patří do nich zejména náklady na vyhotovení dokumentace skutečného provedení stavby, náklady na geodetické zaměření dokončeného díla, náklady spojené s podmínkami pro publicitu projektu, náklady na dílenskou či výrobní dokumentaci apod.
B35: Položkovým rozpočtem dokument odpovídající svým obsahem a strukturou soupisu stavebních prací, dodávek a služeb, předaného zadavatelem dodavateli ke zpracování nabídky, v němž dodavatel doplní k jednotlivým položkám stavebních prací, dodávek nebo služeb svoje nabídkové jednotkové ceny a stanoví i celkovou nabídkovou cenu příslušné položky a dále stanoví nabídkové ceny dle struktury soupisu až po celkovou nabídkovou cenu za veškeré stavební práce, dodávky nebo služby, které jsou obsahem soupisu stavebních prací, dodávek a služeb.
B36: Vedlejšími náklady náklady na činností zhotovitele, které nejsou zahrnuty v položkách soupisu stavebních prací, dodávek nebo služeb, ale se zhotovením stav-by souvisí a jsou pro realizaci stavby nezbytné. Někdy se definují jako vedlejší rozpočtové náklady a zahrnují zejména náklady na vybudování, provoz a odstranění zařízení staveniště.
B38: Cenová soustava
B40: Použitá cenová soustava
B41: Soupisy stavebních prací, dodávek a služeb jsou zpracovány s použitím cenové soustavy zpracované společností RTS, a.s.. Položky z cenové soustavy mají uveden odkaz na cenovou soustavu včetně označení příslušného ceníku.
B43: Technické podmínky
B44: Obsah jednotlivých položek, způsob měření a ostatní další podmínky definující obsah a použití jednotlivých položek jsou obsaženy v cenových a technických podmínkách příslušných ceníků (viz zařazení u položky), které jsou volně dostupné na elektronické adrese www.cenovasoustava.cz
B46: Individuální položky
B47: Položky soupisu prací, které cenová soustava neobsahuje, jsou označeny popisem „vlastní“. Pro tyto položky jsou cenové a technické podmínky definovány jejich popisem, případně odkazem na konkrétní část příslušné dokumentace.
B49: Závaznost a změna soupisu
B51: Závaznost soupisu
B52: Poskytnuté soupisy jsou pro zpracování nabídkové ceny závazné. Je vyloučeno jakékoliv vyřazení položek ze soupisu, doplnění položek do soupisu, slučování položek a jakýkoliv zásah do popisu položky, množství měrných jednotek nebo jakkoliv měnit či upravovat jakýkoliv jiný údaj v soupisu.
B54: Zvláštní podmínky pro stanovení nabídkové ceny
B56: Přeprava vybouraných hmot, suti a vytěžené zeminy
B57: Pokud soupis obsahuje i některé technologické položky vztahující se k uložení vytěžené zeminy nebo vybouraných hmot, vodorovné přesuny zeminy nebo vybouraných hmot pak v takových případech zpracovatel soupisu předpokládá určitou přepravní vzdálenost. Pokud z technologického postupu dodavatele vyplývá jiná přepravní vzdálenost, je povinností dodavatele stanovit takovou jednotkovou cenu, aby celková cena položky odpovídala jeho konkrétním technologickým podmínkám a konkrétní přepravní vzdálenosti, při soupisem vymezeném množství měrných jednotek.
B59: Vnitrostaveništní přesun stavebního materiálu
B60: Pokud soupis obsahuje i položky vztahující se ke vnitrostaveništnímu přesunu materiálů (položky označené jako přesun hmot), pak v takových případech je povinností dodavatele stanovit takovou jednotkovou cenu, aby celková cena položky odpovídala jeho konkrétním technologickým podmínkám a konkrétní přepravní vzdálenosti, při soupisem vymezeném množství měrných jednotek.
B61: Vnitrostaveništní přesun hmot prací PSV (pomocná stavební výroba) může být v soupisu stanoven procenticky z hodnoty ceny za provedení příslušných řemeslných prací, dodávek a služeb. V takovém případě není v soupisu uvedeno množství měrných jednotek. Dodavatel ocení celkovou cenu u takové položky přesunu hmot vždy konkrétní částkou v Kč, bez ohledu na to, jakým způsobem k jejímu výpočtu dospěl.
B63: Příplatky za ztížené podmínky prací
B64: Pokud soupis položku příplatku za ztížené podmínky obsahuje, je dodavatel povinen ji ocenit bez ohledu na to, že tento příplatek dodavatel standardně neuplatňuje.
B66: Vedlejší a ostatní náklady
B67: Tyto náklady jsou popsány v samostatném soupisu stavebních prací, dodávek a služeb s tím, že dodavatel je povinen v rámci těchto nákladů ocenit všechny definované náklady souhrnně pro celou stavbu.
B71: 3. SPECIFICKÉ PODMÍNKY PRO ZPRACOVÁNÍ NABÍDKOVÉ CENY
B73: Zde doplní zpracovatel soupisu případná specifika týkající se konkrétní zakázky.
B76: 4. ELEKTRONICKÁ PODOBA SOUPISU
B78: Elektronická podoba soupisu
B79: V souladu se zákonem jsou předložené soupisy zpracovány i v elektronické podobě. Elektronickou podobou soupisu stavebních prací, dodávek a služeb je formát MS EXCEL.
B80: Popis formátu soupisu odpovídá svou strukturou vzorovému soupisu volně dostupnému na internetové adrese:
B82: www.stavebnionline.cz/soupis
B84: Zpracování elektronické podoby soupisu
B85: Předaný formát MS EXCEL je nepřístupným (uzamčeným) souborem, do kterého dodavatel doplňuje pouze jednotkové ceny ke všem položkám. Ostatní cenové údaje, jako celková cena položky, mezisoučty za stavební či funkční díly nebo součty celkové ceny stavebního objektu, jakož i cena stavby jsou výsledkem vložených matematických vzorců v příslušných pozicích souboru.
B87: Jiný formát soupisu
B88: Pokud by kterýkoliv dodavatel měl problémy s předaným formátem, lze na požádání poskytnout soupis stavebních prací také ve formátu *.xml, což je standardní formát používaný pro přenosy dat. Dokumentace tohoto formátu je volně přístupná na webových stránkách MMR.
B90: Závěrečné ustanovení
B91: Ostatní podmínky vztahující se ke zpracování nabídkové ceny jsou uvedeny v zadávací dokumentaci.
B93: 5. OBCHODNÍ NÁZVY MATERIÁLŮ A VÝROBKŮ
B95: V případě, že položka tabulky pro výpočet nabídkové ceny obsahuje konkrétní obchodní označení výrobku či materiálu (referenční výrobek), je zhotovitel oprávněn jej nahradit výrobkem či materiálem stejných technických parametrů a jakosti.

Sheet Rekapitulace stavby
C3: REKAPITULACE STAVBY
C4: Kód:
C5: Stavba: | J5: ='Identifikační údaje'!B1 -> ČRo Brno – II. etapa rekonstrukce budovy Beethovenova 25/4
C6: KSO: | AJ6: CC-CZ:
C7: Místo: | J7: ='Identifikační údaje'!B3 -> Budova Českého rozhlasu Brno na adrese Beethovenova 25/4, 657 42 Brno | AJ7: Datum: | AM7: ='Identifikační údaje'!B5 -> 00:00:00
C9: Zadavatel: | AJ9: IČ: | AM9: ='Identifikační údaje'!B9 -> 45245053
D10: ='Identifikační údaje'!E7 -> Český rozhlas, Vinohradská 12, 120 99 Praha 2 | AJ10: DIČ: | AM10: ='Identifikační údaje'!B10 -> CZ45245053
C12: Uchazeč: | AJ12: IČ: | AM12: ='Identifikační údaje'!B23 -> 0
D13: ='Identifikační údaje'!E19 -> , , | AJ13: DIČ: | AM13: ='Identifikační údaje'!B24 -> 0
C15: Projektant: | AJ15: IČ: | AM15: ='Identifikační údaje'!B14 -> 15188736
D16: ='Identifikační údaje'!E12 -> Ing. arch. Klement Miloš, Nejedlého 381/19, 638 00 Brno - Lesná | AJ16: DIČ: | AM16: ='Identifikační údaje'!B15 -> CZ6101021344
C18: Poznámka:
C22: CENA ZA STAVBU CELKEM BEZ DPH | AJ22: =AF51+AF56+AM62+AF68 -> 0
B39: REKAPITULACE OBJEKTŮ STAVBY A SOUPISŮ PRACÍ
B42: Stavba: | K42: ='Identifikační údaje'!B1 -> ČRo Brno – II. etapa rekonstrukce budovy Beethovenova 25/4
B44: Místo: | K44: =IF($J$7="","",$J$7) -> Budova Českého rozhlasu Brno na adrese Beethovenova 25/4, 657 42 Brno | AH44: Datum: | AL44: =IF($AM$7="","",$AM$7) -> 00:00:00
B46: Zadavatel: | K46: =IF($D$10="","",$D$10) -> Český rozhlas, Vinohradská 12, 120 99 Praha 2 | AH46: Projektant: | AL46: =IF($D$16="","",$D$16) -> Ing. arch. Klement Miloš, Nejedlého 381/19, 638 00 Brno - Lesná
B47: Uchazeč: | K47: =IF($D$13="Vyplň údaj","",$D$13) -> , ,
B49: Kód | H49: Objekt, Soupis prací | AF49: Cena bez DPH [CZK]
B51: Objekt SO 03 (III. TSK) Výtah a související schodiště celkem | AF51: =SUM(AF52:AO55) -> 0
C52: 01 | I52: SO 03 - Stavebně - architektonická část | AF52: ='01_S0 03 - Stav-arch část '!D42 -> 0
C53: 02 | I53: SO 03 - Silnoproudá elektroinstalace | AF53: ='02_SO O3 - Silnoproud'!H35:H35 -> 0
C54: 03 | I54: SO 03 - Vzduchotechnika a chlazení | AF54: ='03_SO 03 - VZT'!H44 -> 0
C55: 04 | I55: SO 03 - Výtah | AF55: ='04_SO 03 - Výtah'!D54:D54 -> 0
B56: Objekt SO 04 (IV. TSK) Toalety ve všech patrech | AF56: =SUM(AF57:AO61) -> 0
C57: 05 | I57: SO 04 - Stavebně - architektonická část | AF57: ='05_SO O4 - Stav arch část'!D44 -> 0
C58: 06 | I58: SO 04 - Silnoproudá elektroinstalace | AF58: ='06_SO 04 - Silnoproud'!H35 -> 0
C59: 07 | I59: SO 04 - Vzduchotechnika a chlazení | AF59: ='07_SO 04 - VZT'!H35 -> 0
C60: 08 | I60: SO 04 - Slaboproudá elektroinstalace | AF60: ='08_SO 04 - Slaboproud'!H31 -> 0
C61: 09 | I61: SO 04 - Zdravotně technické instalace | AF61: ='09_SO 04 - ZTI'!I32 -> 0
B62: Objekt SO 12 (XII. TSK) Páteřní rozvody silnoproudu v šachtách a napojení rozvaděčů, ústřední vytápění, EPS | AM62: =SUM(AF63:AO66) -> 0
C63: 10 | I63: SO 12 - Stavebně - architektonická část | AF63: ='10_SO 12 - Stav arch část'!G32 -> 0
C64: 11 | I64: SO 12 - Silnoproudá elektroinstalace | AF64: ='11_SO 12 - Silnoproud'!H33:H33 -> 0
C65: 12 | I65: SO 12 - Ústřední vytápění | AF65: ='12_SO 12 - ÚT'!H32:H32 -> 0
C66: 13 | I66: SO 12 - EPS | AF66: ='13_SO 12 - EPS'!H32:H32 -> 0
C68: 14 | I68: Vedlejší a ostatní náklady stavby | AF68: ='14 - VRN'!F32 -> 0

Sheet 01_S0 03 - Stav-arch část
A1: =CONCATENATE('Rekapitulace stavby'!C52,"_",'Rekapitulace stavby'!I52) -> 01_SO 03 - Stavebně - architektonická část
A3: SPECIFIKACE DODÁVEK A PRACÍ
A4: Název akce:
A5: ='Identifikační údaje'!B1 -> ČRo Brno – II. etapa rekonstrukce budovy Beethovenova 25/4
A7: Zadavatel: | C7: ='Identifikační údaje'!E7 -> Český rozhlas, Vinohradská 12, 120 99 Praha 2
B8: IČ: | C8: ='Identifikační údaje'!B9 -> 45245053
B9: DIČ: | C9: ='Identifikační údaje'!B10 -> CZ45245053
A11: Projektant: | C11: ='Identifikační údaje'!E12 -> Ing. arch. Klement Miloš, Nejedlého 381/19, 638 00 Brno - Lesná
B12: IČ: | C12: ='Identifikační údaje'!B14 -> 15188736
B13: DIČ: | C13: ='Identifikační údaje'!B15 -> CZ6101021344
A15: Uchazeč: | C15: ='Identifikační údaje'!E19 -> , ,
B16: IČ: | C16: ='Identifikační údaje'!B23 -> 0
B17: DIČ: | C17: ='Identifikační údaje'!B24 -> 0
A19: Místo stavby: | C19: ='Identifikační údaje'!B3 -> Budova Českého rozhlasu Brno na adrese Beethovenova 25/4, 657 42 Brno
A21: Datum vyplnění: | C21: ='Identifikační údaje'!B5 -> 00:00:00
A23: =CONCATENATE("REKAPITULACE DODÁVEK A PRACÍ OBJEKTU ",'Rekapitulace stavby'!I52) -> REKAPITULACE DODÁVEK A PRACÍ OBJEKTU SO 03 - Stavebně - architektonická část
A25: P.č. | B25: Číslo položky | C25: Název položky | D25: Kč bez DPH
A27: Díl: | B27: =B78 -> 3 | C27: =C78 -> Svislé a kompletní konstrukce | G27: =G78 -> 0
A28: Díl: | B28: =B100 -> 43 | C28: =C100 -> Schodiště | G28: =G100 -> 0
A29: Díl: | B29: =B108 -> 61 | C29: =C108 -> Upravy povrchů vnitřní | G29: =G108 -> 0
A30: Díl: | B30: =B120 -> 95 | C30: =C120 -> Dokončovací kce na pozem.stav. | G30: =G120 -> 0
A31: Díl: | B31: =B126 -> 96 | C31: =C126 -> Bourání konstrukcí | G31: =G126 -> 0
A32: Díl: | B32: =B242 -> 99 | C32: =C242 -> Staveništní přesun hmot | G32: =G242 -> 0
A33: Díl: | B33: =B244 -> 711 | C33: =C244 -> Izolace proti vodě | G33: =G244 -> 0
A34: Díl: | B34: =B247 -> 766 | C34: =C247 -> Konstrukce truhlářské | G34: =G247 -> 0
A35: Díl: | B35: =B255 -> 767 | C35: =C255 -> Konstrukce zámečnické | G35: =G255 -> 0
A36: Díl: | B36: =B297 -> 771 | C36: =C297 -> Kamenné dlažby | G36: =G297 -> 0
A37: Díl: | B37: =B323 -> 775 | C37: =C323 -> Podlahy vlysové a parketové | G37: =G323 -> 0
A38: Díl: | B38: =B326 -> 776 | C38: =C326 -> Podlahy povlakové | G38: =G326 -> 0
A39: Díl: | B39: =B329 -> 782 | C39: =C329 -> Konstrukce z přírodního kamene | G39: =G329 -> 0
A40: Díl: | B40: =B347 -> 784 | C40: =C347 -> Malby | G40: =G347 -> 0
A42: =CONCATENATE("CELKEM ZA OBJEKT ",'Rekapitulace stavby'!I52, " v Kč bez DPH") -> CELKEM ZA OBJEKT SO 03 - Stavebně - architektonická část v Kč bez DPH | D42: =SUM(G27:G41) -> 0
A76: P.č. | B76: Číslo položky | C76: Název položky | D76: MJ | E76: množství | F76: cena / MJ | G76: celkem
B77: Ceník, kapitola | C77: Poznámka uchazeče
A78: Díl: | B78: 3 | C78: Svislé a kompletní konstrukce | G78: =SUBTOTAL(9,G79:G99) -> 0 | AB78: POL | AJ78: 21
A79: =1 -> 1 | B79: 317001 | C79: Překlad z 4x I 140 dl.1100 mm vč.plentování cihlami a rabicem | D79: ka | E79: 1 | G79: =E79*F79 -> 0
C80: suterén:1 | E80: 1
A81: =A79+1 -> 2 | B81: 317002 | C81: Překlad z 2x I 220 dl.4200 mm vč.plentování cihlami a rabicem | D81: ka | E81: 1 | G81: =E81*F81 -> 0
C82: nad schodištěm:1 | E82: 1
A83: =A81+1 -> 3 | B83: 317003 | C83: Překlad z 2x I 220 dl.1200 mm vč.plentování cihlami a rabicem | D83: ka | E83: 1 | G83: =E83*F83 -> 0 | Z83: 1
C84: nad schodištěm:1 | E84: 1 | AB84: POL | AJ84: 21
A85: =A83+1 -> 4 | B85: 317004 | C85: Překlad z 2x I 140 dl.1600 mm vč.plentování cihlami a rabicem | D85: ka | E85: 1 | G85: =E85*F85 -> 0
C86: nad okny vrátnice:1 | E86: 1
A87: =A85+1 -> 5 | B87: 317005 | C87: Překlad z 2x I 100 dl.1600 mm vč.plentování cihlami a rabicem | D87: ka | E87: 1 | G87: =E87*F87 -> 0 | AB87: POL | AJ87: 21
C88: nad okny vrátnice:1 | E88: 1
A89: =A87+1 -> 6 | B89: 310 23-9211.RT2 | C89: Zazdívka otvorů plochy do 4 m2 cihlami na MVC s použitím suché maltové směsi | D89: m3 | E89: 4.2284 | G89: =E89*F89 -> 0
C90: ;vč.provázání se stáv.zdivem | E90: 0
C91: 1.patro:0,77*1,78*0,625 | E91: 0.8566
C92: 2.patro:0,795*1,78*0,60 | E92: 0.8491
C93: 3.patro:0,795*1,78*0,625 | E93: 0.8844
C94: 4.patro:0,795*1,78*0,625 | E94: 0.8844
C95: 5.patro:0,70*1,795*0,60 | E95: 0.7539
A96: =A89+1 -> 7 | B96: 342 26-2 | C96: Příčka sádrokart. dvoj. oc. kce, 2x opl. tl.125 mm desky protipožární tl. EI45-DP1 | D96: m2 | E96: 18.33 | G96: =E96*F96 -> 0
C97: ;vč.povrchové úpravy | E97: 0
C98: mezipatro:(1,72+2,98)*3,90 | E98: 18.33
A99: =A96+1 -> 8 | B99: 34291 N | C99: Zazdění otvoru po vložení stoupaček | D99: ks | E99: 5 | G99: =E99*F99 -> 0
A100: Díl: | B100: 43 | C100: Schodiště | G100: =SUBTOTAL(9,G101:G107) -> 0
A101: =A99+1 -> 9 | B101: 430a Kp/2 | C101: Stávající kamenné schodiště - odstranění lepidel, vytmelení, přebroušení, naimpregnování ;vč.teracového soklu v=300 mm | D101: m | E101: 88.44 | G101: =E101*F101 -> 0
C102: přímé schodišťové stupně:66*1,34 | E102: 88.44
A103: =A101+1 -> 10 | B103: 430b Kp/2 | C103: Stávající kamenné schodiště - odstranění lepidel, vytmelení, přebroušení, naimpregnování | D103: m | E103: 148.74 | G103: =E103*F103 -> 0
C104: ;vč.teracového soklu v=300 mm
C105: kosé schodišťové stupně:111*1,34 | E105: 148.74
A106: =A103+1 -> 11 | B106: 430 Kp/ | C106: Stávající kamenné podesty - odstranění lepidel, vytmelení, přebroušení, naimpregnování | D106: m2 | E106: 62.4 | G106: =E106*F106 -> 0 | Z106: 0
C107: ;vč.teracového soklu v=300 mm
A108: Díl: | B108: 61 | C108: Upravy povrchů vnitřní | G108: =SUBTOTAL(9,G109:G119) -> 0
A109: =A106+1 -> 12 | B109: 612 47-3182.R00 | C109: Omítka vnitřního zdiva ze suché směsi, štuková | D109: m2 | E109: 69.836 | G109: =E109*F109 -> 0
C110: zazdění instal.průduchů:12,915/0,30 | E110: 43.05 | Z110: 0
C111: zazdívky:4,228*2+18,33 | E111: 26.786
A112: =A109+1 -> 13 | B112: 611 10-0013.RAA | C112: Oprava omítek stropů vnitřních vápenocem.štukových oprava z 50 %, malba dvojnásobná otěruvzdorná bílá vč. penetrace | D112: m2 | E112: 75.48 | G112: =E112*F112 -> 0 | AB112: POL | AJ112: 21
C113: 3,40*3,70*6 | E113: 75.48
A114: =A112+1 -> 14 | B114: 612 10-0033.RAA | C114: Oprava omítek stěn vnitřních vápenocem. štukových oprava z 50 %, malba dvojnásobná otěruvzdorná bílá vč. penetrace | D114: m2 | E114: 476 | G114: =E114*F114 -> 0
C115: (4,80+3,70)*2*3,50*8 | E115: 476 | Z115: 0
A116: =A114+1 -> 15 | B116: 61201 A2 | C116: Sádrokartonový podhled protipožární REI 30DP1, vč.potřebného lešení a povrchové úpravy | D116: m2 | E116: 22.1 | G116: =E116*F116 -> 0 | Z116: 1
C117: 5.np:22,10 | E117: 22.1 | Z117: 2
A118: =A116+1 -> 16 | B118: 61201 A | C118: Sádrokartonový podhled, vč.potřebného lešení a povrchové úpravy | D118: m2 | E118: 26.56 | G118: =E118*F118 -> 0 | AB118: POL | AJ118: 21
C119: 10,50+10,30+5,76 | E119: 26.56
A120: Díl: | B120: 95 | C120: Dokončovací kce na pozem.stav. | G120: =SUBTOTAL(9,G121:G125) -> 0
A121: =A118+1 -> 17 | B121: 99001 | C121: HZS - nezměřitelné práce | D121: hod | E121: 120 | G121: =E121*F121 -> 0
A122: =A121+1 -> 18 | B122: 955 | C122: Doplnění stropu venkovní šachty z 2xI160 dl.1805 mm a PZD desek 80/29/6,5 mm | D122: m2 | E122: 2.13 | G122: =E122*F122 -> 0
A123: =A122+1 -> 19 | B123: 950 | C123: Uzavření rekonstruovaného prostoru proti šíření prašnosti | D123: kpl. | E123: 1 | G123: =E123*F123 -> 0 | Z123: 0
A124: =A123+1 -> 20 | B124: 952 90-1111.R00 | C124: Vyčištění budov o výšce podlaží do 4 m | D124: m2 | E124: 147 | G124: =E124*F124 -> 0 | AB124: POL | AJ124: 21
C125: 7*21,00 | E125: 147
A126: Díl: | B126: 96 | C126: Bourání konstrukcí | G126: =SUBTOTAL(9,G127:G241) -> 0 | Z126: 0
A127: =A124+1 -> 21 | B127: 962 03-2231.R00 | C127: Bourání zdiva z cihel pálených na MVC | D127: m3 | E127: 10.7816 | G127: =E127*F127 -> 0 | AB127: SPX
C128: ;A | E128: 0 | AB128: POL | AJ128: 21
C129: suterén:1,54*2,735*0,30 | E129: 1.2636
C130: přízemí:1,45*4,24*0,30 | E130: 1.8444
C131: mezipatro:1,45*4,24*0,30 | E131: 1.8444
C132: 1.patro:1,45*3,35*0,30 | E132: 1.4573
C133: 2.patro:1,45*3,35*0,30 | E133: 1.4573
C134: 3.patro:1,45*3,35*0,30 | E134: 1.4573 | AB134: POL | AJ134: 21
C135: 4.patro:1,45*3,35*0,30 | E135: 1.4573
C136: 5.patro::1,45*3,350,30 | E136: 0
A137: =A127+1 -> 22 | B137: 963 01-251 O | C137: Bourání otvoru pro odvětrání CHÚC | D137: m2 | E137: 1.44 | G137: =E137*F137 -> 0
C138: 6.patro:1,20*1,20 | E138: 1.44
A139: =A137+1 -> 23 | B139: 971 03-365 A | C139: Vybourání otv. zeď cihel., MVC | D139: m3 | E139: 1.08 | G139: =E139*F139 -> 0
C140: ;A | E140: 0 | Z140: 0
C141: suterén:0,90*2,00*0,60 | E141: 1.08 | AB141: SPX
A142: =A139+1 -> 24 | B142: 962 03-1132.R00 | C142: Bourání příček cihelných tl. 10 cm | D142: m2 | E142: 4.6221 | G142: =E142*F142 -> 0
C143: ;A | E143: 0
C144: suterén:(1,05+0,64)*2,735 | E144: 4.6221
A145: =A142+1 -> 25 | B145: 968 06-1125.R00 | C145: Vyvěšení dřevěných dveřních křídel pl. do 2 m2 | D145: kus | E145: 16 | G145: =E145*F145 -> 0 | Z145: 0
C146: ;C | E146: 0 | AB146: POL | AJ146: 21
C147: suterén:1 | E147: 1
C148: přízemí:2 | E148: 2
C149: mezioatro:3 | E149: 3
C150: 1.patro:2 | E150: 2
C151: 2.patro:2 | E151: 2
C152: 3.patro:2 | E152: 2
C153: 4.patro:2 | E153: 2
C154: 5.patro:2 | E154: 2 | Z154: 0
A155: =A145+1 -> 26 | B155: 971 03-366 N | C155: Vybourání otvoru pro novou stupačku | D155: m3 | E155: 1.2594 | G155: =E155*F155 -> 0
C156: mezipatro:0,30*4,24*0,20 | E156: 0.2544
C157: 1.patro:0,30*3,35*0,20 | E157: 0.201
C158: 2.patro:0,30*3,35*0,20 | E158: 0.201
C159: 3.patro:0,30*3,35*0,20 | E159: 0.201
C160: 4.patro:0,30*3,35*0,20 | E160: 0.201
C161: 5.patro:0,30*3,35*0,20 | E161: 0.201
A162: =A155+1 -> 27 | B162: 968 06-245 | C162: Vybourání dveřních zárubní pl. do 2 m2 | D162: m2 | E162: 25.9745 | G162: =E162*F162 -> 0
C163: ;C | E163: 0
C164: suterén:0,80*2,00*1 | E164: 1.6 | Z164: 0
C165: přízemí:0,95*2,00+1,00*2,00 | E165: 3.9
C166: mezipatro:0,85*1,97+1,40*2,00 | E166: 4.4745
C167: 1.patro:1,40*2,00 | E167: 2.8
C168: 2.patro:1,40*2,00 | E168: 2.8
C169: 3.patro:1,40*2,00 | E169: 2.8
C170: 4.patro:1,40*2,00 | E170: 2.8
C171: 5.patro:1,00*2,00*1,20*2,00 | E171: 4.8
A172: =A162+1 -> 28 | B172: 968 06 | C172: Vybourání dveří Zpd/6 a Zpd/7 a jejich uskladnění | D172: ks | E172: 2 | G172: =E172*F172 -> 0
A173: =A172+1 -> 29 | B173: 776 51 D | C173: Odstranění PVC a koberců | D173: m2 | E173: 316 | G173: =E173*F173 -> 0
C174: ;PVC 2x | E174: 0 | Z174: 0
C175: prízemí:(10,50+10,30+20,10)*2 | E175: 81.8 | AB175: SPX
C176: mezipatro:17,90*2 | E176: 35.8 | AB176: POL | AJ176: 21
C177: 1.patro:17,90*2 | E177: 35.8
C178: 2.patro:19,10*2 | E178: 38.2
C179: 3.patro:21,00*2 | E179: 42
C180: 4.patro:19,10*2 | E180: 38.2
C181: 5.patro:22,10*2 | E181: 44.2
A182: =A173+1 -> 30 | B182: 96956 G | C182: Odstranění podhledů vč.podkladního roštu | D182: n2 | E182: 10.3 | G182: =E182*F182 -> 0
C183: ;G | E183: 0 | Z183: 0
C184: přízemí:10,30 | E184: 10.3 | AB184: SPX
A185: =A182+1 -> 31 | B185: 965 02-4121.R00 | C185: Bourání kamenných podlah z desek plochy do 1 m2 | D185: m2 | E185: 9.7864 | G185: =E185*F185 -> 0 | AB185: POL | AJ185: 21
C186: ;Kp/m | E186: 0
C187: ;přízemí | E187: 0
C188: Kp/m1:0,665*0,975*4 | E188: 2.5935
C189: Kp/m2:1,35*1,33*1 | E189: 1.7955
C190: Kp/m3:0,52*1,57*1 | E190: 0.8164
C191: Kp/m4:1,40*0,255*1 | E191: 0.357
C192: ;mezipatro | E192: 0
C193: Kp/m5:0,40*1,30*4 | E193: 2.08
C194: ;3.patro | E194: 0
C195: Kp/m6:1,60*0,67*1 | E195: 1.072
C196: ;4.patro | E196: 0
C197: Kp/m6:1,60*0,67*1 | E197: 1.072
A198: =A185+1 -> 32 | B198: 978 05-9521.R00 | C198: Odsekání vnitřních obkladů stěn | D198: m2 | E198: 23.81 | G198: =E198*F198 -> 0
C199: ;M | E199: 0
C200: přźemí:1,60*2,60+0,60*1,75 | E200: 5.21
C201: mezipatro:(0,405+0,74+0,405)*2,00 | E201: 3.1
C202: 1.patro:(0,405+0,74+0,405)*2,00 | E202: 3.1
C203: 2.patro:(0,405+0,74+0,405)*2,00 | E203: 3.1
C204: 3.patro:(0,405+0,74+0,405)*2,00 | E204: 3.1
C205: 4.patro:(0,405+0,74+0,405)*2,00 | E205: 3.1
C206: 5.patro:(0,405+0,74+0,405)*2,00 | E206: 3.1
A207: =A198+1 -> 33 | B207: 96807- W | C207: Demontáž radiátorů | D207: ks | E207: 7 | G207: =E207*F207 -> 0
C208: přízemí:1 | E208: 1
C209: mezipatro:1 | E209: 1
C210: 1.patro:1 | E210: 1
C211: 2.patro:1 | E211: 1
C212: 3.patro:1 | E212: 1
C213: 4.patro:1 | E213: 1
C214: 5.patro:1 | E214: 1
A215: =A207+1 -> 34 | B215: 776 20-082 | C215: Odstranění PVC podlah lepených .- ze schodišť | D215: m | E215: 466.32 | G215: =E215*F215 -> 0
C216: 174*1,34*2 | E216: 466.32
A217: =A215+1 -> 35 | B217: 972 05-4 O | C217: Vybourání otvoru ve stropě | D217: kus | E217: 6 | G217: =E217*F217 -> 0
C218: mezipatro:1 | E218: 1
C219: 1.patro:1 | E219: 1
C220: 2.patro:1 | E220: 1
C221: 3.patro:1 | E221: 1
C222: 4.patro:1 | E222: 1
C223: 5.patro:1 | E223: 1
A224: =A217+1 -> 36 | B224: 9608 EL | C224: Vybourání el. rozvaděče | D224: ks | E224: 6 | G224: =E224*F224 -> 0
C225: mezipatro:1 | E225: 1
C226: 1.patro:1 | E226: 1
C227: 2.patro:1 | E227: 1
C228: 3.patro:1 | E228: 1
C229: 4.patro:1 | E229: 1
C230: 5.patro:1 | E230: 1
A231: =A224+1 -> 37 | B231: 979 01-1211.R00 | C231: Svislá doprava suti a vybour. hmot za 2.NP nošením | D231: t | E231: 35.9 | G231: =E231*F231 -> 0
A232: =A231+1 -> 38 | B232: 979 01-1219.R00 | C232: Přípl.k svislé dopr.suti za každé další NP nošením | D232: t | E232: 107.7 | G232: =E232*F232 -> 0 | AB232: SPX
C233: 3*35,90 | E233: 107.7 | AB233: POL_NEZ | AC233: 1 | AJ233: 21
A234: =A232+1 -> 39 | B234: 979 08-2111.R00 | C234: Vnitrostaveništní doprava suti do 10 m | D234: t | E234: 35.9 | G234: =E234*F234 -> 0 | Z234: 0
A235: =A234+1 -> 40 | B235: 979 08-2121.R00 | C235: Příplatek k vnitrost. dopravě suti za dalších 5 m | D235: t | E235: 71.8 | G235: =E235*F235 -> 0 | AB235: POL | AJ235: 21
C236: 2*35,90 | E236: 71.8
A237: =A235+1 -> 41 | B237: 979 08-1111.R00 | C237: Odvoz suti a vybour. hmot na skládku do 1 km | D237: t | E237: 35.9 | G237: =E237*F237 -> 0 | AB237: POL | AJ237: 21
A238: =A237+1 -> 42 | B238: 979 08-1121.R00 | C238: Příplatek k odvozu za každý další 1 km | D238: t | E238: 682.1 | G238: =E238*F238 -> 0 | AB238: POL | AJ238: 21
C239: 19*35,90 | E239: 682.1
A240: =A238+1 -> 43 | B240: 979 093111 | C240: Uložení suti na skládku bez zhuznění | D240: t | E240: 35.9 | G240: =E240*F240 -> 0 | Z240: 0
A241: =A240+1 -> 44 | B241: 979 99-999 | C241: Poplatek za skladku | D241: t | E241: 35.9 | G241: =E241*F241 -> 0 | Z241: 1
A242: Díl: | B242: 99 | C242: Staveništní přesun hmot | G242: =SUBTOTAL(9,G243) -> 0 | Z242: 0
A243: =A241+1 -> 45 | B243: 999 28-1112.R00 | C243: Přesun hmot pro opravy a údržbu do výšky 36 m | D243: t | E243: 32.87 | G243: =E243*F243 -> 0 | AB243: POL | AJ243: 21
... 108 more rows

Sheet 02_SO O3 - Silnoproud
A1: =CONCATENATE('Rekapitulace stavby'!C53,"_",'Rekapitulace stavby'!I53) -> 02_SO 03 - Silnoproudá elektroinstalace
A3: SPECIFIKACE DODÁVEK A PRACÍ
A4: Název akce:
A5: ='Identifikační údaje'!B1 -> ČRo Brno – II. etapa rekonstrukce budovy Beethovenova 25/4
A7: Zadavatel: | C7: ='Identifikační údaje'!B7 -> Český rozhlas
B8: IČ: | C8: ='Identifikační údaje'!B9 -> 45245053
B9: DIČ: | C9: ='Identifikační údaje'!B10 -> CZ45245053
A11: Projektant: | C11: ='Identifikační údaje'!B12 -> Ing. arch. Klement Miloš
B12: IČ: | C12: ='Identifikační údaje'!B14 -> 15188736
B13: DIČ: | C13: ='Identifikační údaje'!B15 -> CZ6101021344
A15: Uchazeč: | C15: ='Identifikační údaje'!E19 -> , ,
B16: IČ: | C16: ='Identifikační údaje'!B23 -> 0
B17: DIČ: | C17: ='Identifikační údaje'!B24 -> 0
A19: Místo stavby: | C19: ='Identifikační údaje'!B3 -> Budova Českého rozhlasu Brno na adrese Beethovenova 25/4, 657 42 Brno
A21: Datum: | C21: ='Identifikační údaje'!B5 -> 00:00:00
A23: =CONCATENATE("REKAPITULACE DODÁVEK A PRACÍ OBJEKTU ",'Rekapitulace stavby'!I53) -> REKAPITULACE DODÁVEK A PRACÍ OBJEKTU SO 03 - Silnoproudá elektroinstalace
A25: P.č. | B25: Ozn. | D25: Materiál celkem | F25: Montáž celkem | H25: M+M celkem
A27: =B41 -> A. | B27: =C41 -> Svítidla a příslušenství | D27: =F41 -> 0 | F27: =H41 -> 0 | H27: =D27+F27 -> 0
A28: =B51 -> B. | B28: =C51 -> Spínače, zásuvky a ostatní přístroje | D28: =F51 -> 0 | F28: =H51 -> 0 | H28: =D28+F28 -> 0
A29: =B63 -> C. | B29: =C63 -> Instalační, úložný a ochranný materiál | D29: =F63 -> 0 | F29: =H63 -> 0 | H29: 0
A30: =B70 -> D. | B30: =C70 -> Kabely a vodiče | D30: =F70 -> 0 | F30: =H70 -> 0 | H30: 0
A31: =B80 -> E. | B31: =C80 -> Pospojování, uzemnění | D31: =F80 -> 0 | F31: =H80 -> 0 | H31: 0
A32: =B84 -> F. | B32: =C84 -> Rozvaděče | D32: =F84 -> 0 | F32: =H84 -> 0 | H32: =D32+F32 -> 0
A33: =B88 -> G. | B33: =C88 -> Ostatní | D33: =F88 -> 0 | F33: =H88 -> 0 | H33: =D33+F33 -> 0
A35: =CONCATENATE("CELKEM ZA OBJEKT ",'Rekapitulace stavby'!I53, " v Kč bez DPH") -> CELKEM ZA OBJEKT SO 03 - Silnoproudá elektroinstalace v Kč bez DPH | H35: =SUBTOTAL(9,H27:I33) -> 0
A37: Textová, výkresová i tabulková část projektové dokumentace tvoří jeden vzájemně se doplňující a provázaný celek. Jednotliví účastníci výběrového řízení se musí seznámit s projektojektovou dokumentací v návaznosti na soupis prací a na základě těchto informací části díla nacenit. Dále je potřeba při stanovení ceny dle vykázané výměry započítat všechny předpokládané doplňkové prvky a činnosti s touto položkou související tak, aby cena byla kompletní a prvek funkční.
A38: 1
F39: Materiál | H39: Montáž
A40: poř.č. | B40: položka | C40: popis položky | D40: MJ | E40: množství | F40: jedn.cena | G40: celkem [Kč] | H40: jedn.cena | I40: celkem [Kč]
B41: A. | C41: Svítidla a příslušenství | F41: =SUBTOTAL(9,G43:G49) -> 0 | H41: =SUBTOTAL(9,I43:I49) -> 0
C42: (komplet, včetně zdrojů, závěsů, pomocného materiálu, osazení zapojení, vyzkoušení apod.)
A43: 1 | C43: svítidlo typ A6 - Svítidlo stropní přisazené, bílá barva, difuzor opál, odsazený, Ø 130 mm, v=100 mm, LED 15W, 3000 K, 1280 lm, IP40 | D43: ks | E43: 7 | G43: =E43*F43 -> 0 | I43: =E43*H43 -> 0
A44: =A43+1 -> 2 | C44: svítidlo typ A7 - Svítidlo přisazené, bílá barva, difuzor opál, 80x80x1480 mm, pro zářivku 2x49W, G5, EP | D44: ks | E44: 1 | G44: =E44*F44 -> 0 | I44: 0
A45: 3 | C45: svítidlo typ C3 - Svítidlo vestavné do podhledu SDK, bílá barva odsazený opálový difuzor, Ø 175 mm, vestavná hloubka 70 mm, LED 20W, 3000 K, 1700 lm, IP54 | D45: ks | E45: 5 | G45: 0 | I45: 0
A46: 4 | C46: svítidlo typ D1 - Svítidlo nástěnné, bílá barva, difuzor mikroprisma, velikost 270x370 mm, vyložení 160 mm, LED přímo - nepřímo svítící, 20W, 3000 K, 3000 lm | D46: ks | E46: 28 | G46: 0 | I46: 0
A47: 5 | C47: svítidlo typ D12 - Svítidlo přisazené, bílá barva + sklo mat, 250x250x95 mm, 2xE27, 2x12W max | D47: ks | E47: 1 | G47: 0 | I47: 0
A48: 6 | C48: svítidlo typ D13 - Svítidlo přisazené, bílá barva, difuzor opál, 80x30x600 mm, LED 20W, 3000 K, 1700 lm | D48: ks | E48: 1 | G48: 0 | I48: 0
A49: 7 | C49: NOUZOVÉ OSVĚTLENÍ s připojením k CBS Inotec | D49: ks | E49: 25 | G49: 0 | I49: 0
B51: B. | C51: Spínače, zásuvky a ostatní přístroje | F51: =SUBTOTAL(9,G54:G61) -> 0 | H51: =SUBTOTAL(9,I54:I61) -> 0
C52: (komplet, včetně příslušenství, pomocného materiálu, osazení, zapojení, vyzkoušení apod.)
C53: Návazně na předchozí etapy rekonstrukce budou osaztovány výrobky z řady ABB Tango
A54: =A49+1 -> 8 | C54: Domovní spínač řazení 1, komplet | D54: ks | E54: 1 | G54: =E54*F54 -> 0 | I54: =E54*H54 -> 0
A55: 9 | C55: Domovní spínač řazení 6, komplet | D55: ks | E55: 16 | G55: =E55*F55 -> 0 | I55: =E55*H55 -> 0
A56: 10 | C56: Domovní spínač řazení 7, komplet | D56: ks | E56: 3 | G56: =E56*F56 -> 0 | I56: =E56*H56 -> 0
A57: 11 | C57: Tlačítkový ovlada 1x přepínací kontakt se sklem - modrá barva - požární větrání CHUC | D57: ks | E57: 4 | G57: =E57*F57 -> 0 | I57: =E57*H57 -> 0
A58: 12 | C58: Domovní zásuvka 230V 16A,napájení z trafa komplet | D58: ks | E58: 1 | G58: =E58*F58 -> 0 | I58: =E58*H58 -> 0
A59: 13 | C59: Napojení požárního ventilátoru 400V, dle montážního návodu | D59: ks | E59: 1 | G59: =E59*F59 -> 0 | I59: =E59*H59 -> 0
A60: 14 | C60: Napojení požárního otevírání světlíku přes odbočnou krabici s funkční schopností při požáru, dle montážního návodu | D60: ks | E60: 1 | G60: 0 | I60: 0
A61: 15 | C61: Napojení rozvaděče výtahu RV1, dle montážního návodu | D61: ks | E61: 1 | G61: 0 | I61: 0
B63: C. | C63: Instalační, úložný a ochranný materiál | F63: =SUBTOTAL(9,G64:G68) -> 0 | H63: =SUBTOTAL(9,I63:I68) -> 0
C64: (komplet, včetně příslušenství, pomocného materiálu, výkopu, záhozu výkopu, vytyčení trasy, osazení, zapojení, vyzkoušení apod.)
A65: =A61+1 -> 16 | C65: Krabice přístrojová | D65: ks | E65: 21 | G65: =E65*F65 -> 0 | I65: =E65*H65 -> 0
A66: =A65+1 -> 17 | C66: Krabice odbočná včetně wago svorek | D66: ks | E66: 10 | G66: 0 | I66: 0
A67: 18 | C67: Protipožární ucpávka pro průchod kabelů stěnou nebo stropem, požární odolnost dle požadavku specialisty PO, materiál: var.- požárně ochranná malta, var.-minerální vlna + desky z minerální vlny + požárně ochranná stěrková hmota, var.- protipožární polštáře | D67: m2 | E67: 0.5 | G67: 0 | I67: 0
A68: 19 | C68: Krabice odbočná včetně wago svorek s funkční schopností při požáru | D68: ks | E68: 25 | G68: 0 | I68: 0
B70: D. | C70: Kabely a vodiče | F70: =SUBTOTAL(9,G71:G78) -> 0 | H70: =SUBTOTAL(9,I70:I78) -> 0
C71: (komplet, včetně vyhotovení drážky, zapravení drážky, vytyčení trasy, pomocného materiálu, příchytek, spojek, odlehčovacích oblouků, zapojení, vyzkoušení apod.)
A72: =A68+1 -> 20 | C72: Bezhalogenový kabel -J 3x1,5 B2CAS1D0 | D72: m | E72: 450 | G72: =E72*F72 -> 0 | I72: =E72*H72 -> 0
A73: =A72+1 -> 21 | C73: Bezhalogenový kabel -J 3x2,5 B2CAS1D0 | D73: m | E73: 100 | G73: 0 | I73: 0
A74: 22 | C74: Bezhalogenový kabel -O 3x1,5 B2CAS1D0 | D74: m | E74: 150 | G74: 0 | I74: 0
A75: 23 | C75: Bezhalogenový kabel -J 5x6 B2CAS1D0 | D75: m | E75: 20 | G75: 0 | I75: 0
A76: 24 | C76: Kabel s funkční schopností P30-R -J 5x1,5 B2CAS1D0 | D76: m | E76: 60 | G76: 0 | I76: 0
A77: 25 | C77: Kabel s funkční schopností P30-R -O 3x1,5 B2CAS1D0 | D77: m | E77: 50 | G77: 0 | I77: 0
A78: 26 | C78: Rozvody pro NO kabel s funkční schopností P60R -O 3x1,5 B2CAS1D0 | D78: m | E78: 120 | G78: 0 | I78: 0
B80: E. | C80: Pospojování, uzemnění | F80: =SUBTOTAL(9,G81:G82) -> 0 | H80: =SUBTOTAL(9,I80:I82) -> 0
C81: (komplet, včetně příslušenství, svorek, pomocného materiálu, osazení, zapojení, vyzkoušení apod.)
A82: =A78+1 -> 27 | C82: Vodič CYA16 žlutozelený včetně svorek - hlavní pospojení | D82: m | E82: 15 | G82: =E82*F82 -> 0 | I82: =E82*H82 -> 0
B84: F. | C84: Rozvaděče | F84: =SUBTOTAL(9,G85:G86) -> 0 | H84: =SUBTOTAL(9,I84:I86) -> 0
C85: (komplet, včetně příslušenství, svorek, pomocného materiálu, osazení, zapojení, vyzkoušení apod.)
A86: =A82+1 -> 28 | C86: Úpravy ve stávajícím požárním rozvaděči UPFD | D86: ks | E86: 1 | G86: =E86*F86 -> 0 | I86: =E86*H86 -> 0
B88: G. | C88: Ostatní | F88: =SUBTOTAL(9,G89:G95) -> 0 | H88: =SUBTOTAL(9,I88:I95) -> 0
A89: =A86+1 -> 29 | C89: Výchozí revize | D89: hod | E89: 10 | G89: =E89*F89 -> 0 | I89: =E89*H89 -> 0
A90: =A89+1 -> 30 | C90: Demontáže včetně likvidace odpadu | D90: hod | E90: 30 | G90: 0 | I90: 0
A91: 31 | C91: Stavební přípomoce | D91: kpl | E91: 1 | F91: --- | G91: --- | I91: 0
A92: =A91+1 -> 32 | C92: Pomocný a podružný materiál upevňovací | D92: kpl | E92: 1 | G92: 0 | I92: 0
A93: 33 | C93: Zednické výpomoci (PPV) | D93: kpl | E93: 1 | F93: --- | G93: --- | I93: 0
A94: 34 | C94: Doprava materiálu | D94: kpl | E94: 1 | F94: --- | G94: --- | I94: =E94*H94 -> 0
A95: 35 | C95: Zařízení typu UPFD + náhradní zdroj UPS, integrované ve společné skříni, pracující ze spol.sady baterií | D95: ks | E95: 1 | G95: =E95*F95 -> 0 | I95: 0
C96: Specifikace položky:
C97: Skříň distribuce energie pro motory
C98: Modul řízeného nabíječe
C99: 1x EMC filtry
C100: servisní manuální ByPass (pro každý motor zvlášť)
C101: 1x RS232 pro nastavení invertorů
C102: 1x RS232 pro nastavení modulu automatiky monitorování
C103: RS 485 pro velín (MODBUS RTU)
C104: SOUPIS POŽADOVANÝCH VÝSTUPŮ ZE ZDROJE UPFD :
C105: 1) P1 - ventilátor požárního větrání 400V / 6.35kW, doba zálohování (samostatnosti) 30 min
C106: 2) K1 - VZT požární klapka - servopohon - 230V, doba zálohování (samostatnosti) 30 min
C107: 3) K2 - VZT požární klapka - servopohon - 230V, doba zálohování (samostatnosti) 30 min
C108: SOUPIS OVLÁDACÍCH VSTUPŮ DO ZDROJE UPFD :
C109: 1) Signál z EPS - signál: aktivace CHÚC
C110: 2) TOTAL STOP - odstavení zdroje
C112: UPFD má výstupy 400V pro každý motor samostatně a další část UPS 2500W/230V pro klapky a servopohony. Každý motor se bude spouštět samostatným signálem na základě povelů ( bezpotenciálový kontakt z EPS nebo např.tlačítko), což umožňuje řízení a spouštění libovolné kombinace. Různé doby zálohy pro různá zařízení v rozmezí od 15 minut do 45 minut. Motory a ovládání se připojí přímo do UPFD, bez jakýchkoliv přepínacích a jistících prvků. Přepínání mezi sítí a akumulátory je automatické (součást UPFD). Základní signalizace LED. UPFD může být vybaveno Touchscreen.

Sheet 03_SO 03 - VZT
A1: =CONCATENATE('Rekapitulace stavby'!C54,"_",'Rekapitulace stavby'!I54) -> 03_SO 03 - Vzduchotechnika a chlazení
A3: SPECIFIKACE DODÁVEK A PRACÍ
A4: Název akce:
A5: ='Identifikační údaje'!B1 -> ČRo Brno – II. etapa rekonstrukce budovy Beethovenova 25/4
A7: Zadavatel: | C7: ='Identifikační údaje'!E7 -> Český rozhlas, Vinohradská 12, 120 99 Praha 2 | D7: Projektant: | F7: ='Identifikační údaje'!E12 -> Ing. arch. Klement Miloš, Nejedlého 381/19, 638 00 Brno - Lesná
B8: IČ | C8: ='Identifikační údaje'!B9 -> 45245053 | E8: IČ | F8: ='Identifikační údaje'!B14 -> 15188736
B9: DIČ | C9: ='Identifikační údaje'!B10 -> CZ45245053 | E9: DIČ | F9: ='Identifikační údaje'!B15 -> CZ6101021344
A11: Uchazeč: | C11: ='Identifikační údaje'!E19 -> , , | D11: Místo stavby: | F11: ='Identifikační údaje'!B3 -> Budova Českého rozhlasu Brno na adrese Beethovenova 25/4, 657 42 Brno
B12: IČ | C12: ='Identifikační údaje'!B23 -> 0
B13: DIČ | C13: ='Identifikační údaje'!B24 -> 0
A15: Datum: | C15: ='Identifikační údaje'!B5 -> 00:00:00
A17: P.Č. | B17: Č.Z | C17: Popis položky: | D17: Měrná jednotka | F17: Cena | J17: Poznámka
F18: Jednotková | H18: Celkem
D19: - | E19: počet | F19: Dodávka | G19: Montáž | H19: Dodávka | I19: Montáž
F20: [ Kč ] | G20: [ Kč ] | H20: [ Kč ] | I20: [ Kč ]
C21: =CONCATENATE("REKAPITULACE OBJEKTU ",'Rekapitulace stavby'!I54) -> REKAPITULACE OBJEKTU SO 03 - Vzduchotechnika a chlazení
A22: 1 | B22: 1 | C22: =C52 -> Zařízení č.8 - Větrání CHUC B | D22: kpl | E22: 1 | F22: - | G22: - | H22: =H61 -> 0 | I22: =I61 -> 0 | J22: -
A23: 2 | B23: 2.1 | C23: =C71 -> Zařízení č.12 - Úprava stávajícího větrání výměníkové stanice | D23: kpl | E23: 1 | F23: - | G23: - | H23: =H76 -> 0 | I23: =I76 -> 0 | J23: -
A24: 3 | B24: 2.2 | C24: =C83 -> Zařízení č.4 - Chlazení serverovny a UPS - přemístění venkovní jednotky | D24: kpl | E24: 1 | F24: - | G24: - | H24: =H89 -> 0 | I24: =I89 -> 0 | J24: -
C25: Mezisoučet | H25: =SUM(H22:H24) -> 0 | I25: =SUM(I22:I24) -> 0 | J25: Kč bez DPH
A27: =A24+1 -> 4 | B27: - | C27: Protipožární ucpávky | D27: ks | E27: 3 | H27: =E27*F27 -> 0 | I27: =E27*G27 -> 0 | J27: -
A28: =A27+1 -> 5 | B28: - | C28: Materiál pro spoje, montáž, závěsy, atd. | D28: kpl | E28: 1 | H28: =E28*F28 -> 0 | I28: =E28*G28 -> 0 | J28: -
A29: =A28+1 -> 6 | C29: Demontáž stáv.vzduchotechnických rozvodů | D29: kpl | E29: 1 | H29: =E29*F29 -> 0 | I29: =E29*G29 -> 0 | J29: -
A30: =A29+1 -> 7 | C30: Demontáž stěny z Tahokovu a opětná montáž po přesunutí chladicí jednotky | D30: ks | E30: 1 | H30: 0 | I30: 0 | J30: -
A31: 8 | C31: Přesunutí chladicí jednotky do dvora | D31: ks | E31: 1 | H31: 0 | I31: 0 | J31: -
A32: 9 | C32: Výkopové práce a základy ve dvoře pro přesunutí chladicí jednotky | D32: m3 | E32: 4 | H32: 0 | I32: 0 | J32: -
A33: 10 | C33: Rozebrání a opětovné položení dlažby | D33: m2 | E33: 12 | H33: 0 | I33: 0 | J33: -
A34: 11 | C34: Průraz v základech | D34: ks | E34: 1 | H34: 0 | I34: 0 | J34: -
A35: 12 | C35: Odvětrání CHÚC typu B 1200/1200 mm kompletní konstrukce včvynášecích profilů a protipo|žár. SDK desek:1 | D35: ks | E35: 1 | H35: 0 | I35: 0 | J35: -
A36: =A35+1 -> 13 | B36: - | C36: Doprava | D36: kpl | E36: 1 | I36: =E36*G36 -> 0 | J36: -
A37: =A36+1 -> 14 | B37: - | C37: Přesuny | D37: kpl | E37: 1 | I37: 0 | J37: -
A38: 15 | B38: - | C38: Uvedení do provozu, zaregulování, vyzkoušení, předávací řízení | D38: kpl | E38: 1 | I38: 0 | J38: -
A39: 16 | B39: - | C39: Inženýrská a koordinační činnost | D39: kpl | E39: 1 | I39: 0 | J39: -
A40: 17 | B40: - | C40: Dílenská a výrobní projektová dokumentace | D40: kpl | E40: 1 | I40: 0 | J40: -
A41: 18 | B41: - | C41: Dokumentace konečného provedení, návody, atesty, prohlášení o shodě | D41: kpl | E41: 1 | I41: 0 | J41: -
C42: Mezisoučet | H42: =SUM(H27:H41) -> 0 | I42: =SUM(I27:I41) -> 0 | J42: Kč bez DPH
A44: CELKEM D+M | C44: =CONCATENATE("OBJEKTU ",'Rekapitulace stavby'!I54," v Kč bez DPH") -> OBJEKTU SO 03 - Vzduchotechnika a chlazení v Kč bez DPH | H44: =H25+H42+I25+I42 -> 0
A48: P.Č. | B48: Č.P. | C48: Popis položky: | D48: Měrná jednotka | F48: Cena | J48: Poznámka
F49: Jednotková cena | H49: Celková cena
D50: - | E50: počet | F50: Dodávka | G50: Montáž | H50: Dodávka | I50: Montáž
F51: [ Kč ] | G51: [ Kč ] | H51: [ Kč ] | I51: [ Kč ]
C52: Zařízení č.8 - Větrání CHUC B
A53: =A41+1 -> 19 | B53: 8.1 | C53: Ventilátor - referenční výrobek TGT/2-500-6/14-LP-2,2kW | D53: ks | E53: 1 | H53: =E53*F53 -> 0 | I53: =E53*G53 -> 0
A54: =A53+1 -> 20 | B54: 0 | C54: Pružná spojka - referenční výrobek ACOP 500 | D54: ks | E54: 2 | H54: =E54*F54 -> 0 | I54: =E54*G54 -> 0
A55: =A54+1 -> 21 | B55: 8.2 | C55: Přetlaková klapka pro montáž na střechu - referenční výrobek DEK-V 600/900 -DS 1200/1200 pro mn.vzduchu 8800 m3/h včetně servopohonu 230V s havarijní funkcí - nátěr RAL…... dle požadavku architekta | D55: ks | E55: 1 | H55: 0 | I55: 0
A56: 22 | B56: 8.3 | C56: Zpětná klapka - referenční výrobek TSK 500 | D56: ks | E56: 1 | H56: =E56*F56 -> 0 | I56: =E56*G56 -> 0
A57: 23 | B57: 8.4 | C57: Protidešťová žaluzie pozinkovaná se sítem 1350 x 710 - nátěr RAL…... | D57: ks | E57: 1 | H57: 0 | I57: 0
A58: 24 | B58: 8.5 | C58: Výustka - referenční výrobek NOVA - A - 1 - 1 - 1000 x 500 - nátěr RAL…… | D58: ks | E58: 2 | H58: 0 | I58: 0
A59: 25 | B59: 0 | C59: Trouba SPIRO - 500 - včetně tvarovek | D59: bm | E59: 8 | H59: 0 | I59: 0
A60: 26 | C60: Čtyřhranné ocel. potrubí sk. I včetně tvarovek | D60: m2 | E60: 10 | H60: 0 | I60: 0
A61: =CONCATENATE(C52," - celkem") -> Zařízení č.8 - Větrání CHUC B - celkem | H61: =SUM(H53:H60) -> 0 | I61: =SUM(I53:I60) -> 0 | J61: bez DPH
A67: P.Č. | B67: Č.P. | C67: Popis položky: | D67: Měrná jednotka | F67: Cena | J67: Poznámka
F68: Jednotková cena | H68: Celková cena
D69: - | E69: počet | F69: Dodávka | G69: Montáž | H69: Dodávka | I69: Montáž
F70: [ Kč ] | G70: [ Kč ] | H70: [ Kč ] | I70: [ Kč ]
C71: Zařízení č.12 - Úprava stávajícího větrání výměníkové stanice
A72: =A60+1 -> 27 | B72: PK12.1 | C72: Požární klapka - referenční výrobek PKTM III-K 300/375 - .40 TPM 075/09 | D72: ks | E72: 1 | H72: =E72*F72 -> 0 | I72: =E72*G72 -> 0
A73: =A72+1 -> 28 | C73: Trouba SPIRO - 300 - včetně tvarovek | D73: bm | E73: 2 | H73: =E73*F73 -> 0 | I73: =E73*G73 -> 0
A74: =A73+1 -> 29 | C74: Demontáž potrubí D300 | D74: bm | E74: 5 | H74: 0 | I74: 0
A76: =CONCATENATE(C71," - celkem") -> Zařízení č.12 - Úprava stávajícího větrání výměníkové stanice - celkem | H76: =SUM(H72:H74) -> 0 | I76: =SUM(I72:I74) -> 0 | J76: bez DPH
A79: P.Č. | B79: Č.P. | C79: Popis položky: | D79: Měrná jednotka | F79: Cena | J79: Poznámka
F80: Jednotková cena | H80: Celková cena
D81: - | E81: počet | F81: Dodávka | G81: Montáž | H81: Dodávka | I81: Montáž
F82: [ Kč ] | G82: [ Kč ] | H82: [ Kč ] | I82: [ Kč ]
C83: Zařízení č.4 - Chlazení serverovny a UPS - přemístění venkovní jednotky
A84: =A74+1 -> 30 | B84: 4.2 | C84: Venkovní kondenzační jednotka - UJ36W UO2 - demontáž a zpětná montáž | D84: ks | E84: 1 | H84: =E84*F84 -> 0 | I84: =E84*G84 -> 0
A85: =A84+1 -> 31 | C85: Předizolované Cu potrubí včetně prodrátování a zalištování | D85: bm | E85: 57 | H85: =E85*F85 -> 0 | I85: =E85*G85 -> 0
A86: =A85+1 -> 32 | C86: Cu potrubí - demontáž | D86: bm | E86: 10 | H86: 0 | I86: 0
A87: 33 | C87: Doplnění chladiva R410A | D87: kg | E87: 2 | H87: 0 | I87: 0
A89: =CONCATENATE(C83," - celkem") -> Zařízení č.4 - Chlazení serverovny a UPS - přemístění venkovní jednotky - celkem | H89: =SUM(H84:H87) -> 0 | I89: =SUM(I84:I87) -> 0 | J89: bez DPH

Sheet 04_SO 03 - Výtah
A1: =CONCATENATE('Rekapitulace stavby'!C55,"_",'Rekapitulace stavby'!I55) -> 04_SO 03 - Výtah
A3: SPECIFIKACE DODÁVEK A PRACÍ
A4: Název akce:
A5: ='Identifikační údaje'!B1 -> ČRo Brno – II. etapa rekonstrukce budovy Beethovenova 25/4
A7: Zadavatel: | C7: ='Identifikační údaje'!E7 -> Český rozhlas, Vinohradská 12, 120 99 Praha 2
B8: IČ: | C8: ='Identifikační údaje'!B9 -> 45245053
B9: DIČ: | C9: ='Identifikační údaje'!B10 -> CZ45245053
A11: Projektant: | C11: ='Identifikační údaje'!E12 -> Ing. arch. Klement Miloš, Nejedlého 381/19, 638 00 Brno - Lesná
B12: IČ: | C12: ='Identifikační údaje'!B14 -> 15188736
B13: DIČ: | C13: ='Identifikační údaje'!B15 -> CZ6101021344
A15: Uchazeč: | C15: ='Identifikační údaje'!E19 -> , ,
B16: IČ: | C16: ='Identifikační údaje'!B23 -> 0
B17: DIČ: | C17: ='Identifikační údaje'!B24 -> 0
A19: Místo stavby: | C19: ='Identifikační údaje'!B3 -> Budova Českého rozhlasu Brno na adrese Beethovenova 25/4, 657 42 Brno
A21: Datum vyplnění: | C21: ='Identifikační údaje'!B5 -> 00:00:00
A23: =CONCATENATE("REKAPITULACE DODÁVEK A PRACÍ OBJEKTU ",'Rekapitulace stavby'!I55) -> REKAPITULACE DODÁVEK A PRACÍ OBJEKTU SO 03 - Výtah
A25: P.č. | B25: Číslo položky | C25: Název položky | D25: Kč bez DPH
B26: Ceník, kapitola
A27: Díl: | B27: =B81 -> 0 | C27: =C81 -> Přípravné a pomocné práce | G27: =G81 -> 0
A28: Díl: | B28: =B84 -> 1 | C28: =C84 -> Zemní práce | G28: =G84 -> 0
A29: Díl: | B29: =B94 -> 2 | C29: =C94 -> Základy a zvláštní zakládání | G29: =G94 -> 0
A30: Díl: | B30: =B111 -> 3 | C30: =C111 -> Svislé a kompletní konstrukce | G30: =G111 -> 0
A31: Díl: | B31: =B115 -> 31 | C31: =C115 -> Zdi podpěrné a volné | G31: =G115 -> 0
A32: Díl: | B32: =B127 -> 311 | C32: =C127 -> Sádrokartony | G32: =G127 -> 0
A33: Díl: | B33: =B131 -> 31 | C33: =C131 -> Zdi podpěrné a volné | G33: =G131 -> 0
A34: Díl: | B34: =B135 -> 311 | C34: =C135 -> Sádrokartony | G34: =G135 -> 0
A35: Díl: | B35: =B141 -> 34 | C35: =C141 -> Stěny a příčky | G35: =G141 -> 0
A36: Díl: | B36: =B144 -> 4 | C36: =C144 -> Vodorovné konstrukce | G36: =G144 -> 0
A37: Díl: | B37: =B147 -> 61 | C37: =C147 -> Upravy povrchů vnitřní | G37: =G147 -> 0
A38: Díl: | B38: =B174 -> 63 | C38: =C174 -> Podlahy a podlahové konstrukce | G38: =G174 -> 0
A39: Díl: | B39: =B184 -> 94 | C39: =C184 -> Lešení a stavební výtahy | G39: =G184 -> 0
A40: Díl: | B40: =B191 -> 95 | C40: =C191 -> Dokončovací konstrukce na pozemních stavbách | G40: =G191 -> 0
A41: Díl: | B41: =B199 -> 96 | C41: =C199 -> Bourání konstrukcí | G41: =G199 -> 0
A42: Díl: | B42: =B216 -> 99 | C42: =C216 -> Staveništní přesun hmot | G42: =G216 -> 0
A43: Díl: | B43: =B218 -> 711 | C43: =C218 -> Izolace proti vodě | G43: =G218 -> 0
A44: Díl: | B44: =B228 -> 767 | C44: =C228 -> Konstrukce zámečnické | G44: =G228 -> 0
A45: Díl: | B45: =B239 -> 783 | C45: =C239 -> Nátěry | G45: =G239 -> 0
A46: Díl: | B46: =B246 -> 784 | C46: =C246 -> Malby | G46: =G246 -> 0
A47: Díl: | B47: =B255 -> M21 | C47: =C255 -> Elektromontáže | G47: =G255 -> 0
A48: Díl: | B48: =B264 -> D96 | C48: =C264 -> Přesuny suti a vybouraných hmot | G48: =G264 -> 0
A49: Díl: | B49: =B273 -> M33 | C49: =C273 -> Montáže dopravích zařízení a vah - výtahy | G49: =G273 -> 0
A50: Díl: | B50: =B276 -> M33 | C50: =C276 -> Montáže dopravích zařízení a vah - výtahy | G50: =G276 -> 0
A51: Díl: | B51: =B278 -> 311 | C51: =C278 -> Sádrokartony | G51: =G278 -> 0
A52: Díl: | B52: =B282 -> M43 | C52: =C282 -> Montáže ocelových konstrukcí | G52: =G282 -> 0
A54: =CONCATENATE("CELKEM ZA OBJEKT ",'Rekapitulace stavby'!I55, " v Kč bez DPH") -> CELKEM ZA OBJEKT SO 03 - Výtah v Kč bez DPH | D54: =SUM(G27:G52) -> 0
A79: P.č. | B79: Číslo položky | C79: Název položky | D79: MJ | E79: množství | F79: cena / MJ | G79: celkem
B80: Ceník, kapitola | C80: Poznámka uchazeče
A81: Díl: | B81: 0 | C81: Přípravné a pomocné práce | G81: =SUBTOTAL(9,G82:G83) -> 0 | AB81: POL | AJ81: 21
A82: =1 -> 1 | B82: 382111001MZ | C82: Rozměření poloh | D82: kus | E82: 1 | G82: =E82*F82 -> 0
A83: =A82+1 -> 2 | B83: R01 | C83: Drobné detaily neobsažené v polož. stavebním rozpočtu | D83: kpl. | E83: 1 | G83: =E83*F83 -> 0
A84: Díl: | B84: 1 | C84: Zemní práce | G84: =SUBTOTAL(9,G85:P93) -> 0
A85: =A83+1 -> 3 | B85: 139811101R00 | C85: Vykopávka v uzavřených prostorách v hor.5-7 | D85: m3 | E85: 1.7928 | G85: =E85*F85 -> 0
C86: 1,8*1,66*0,6 | E86: 1.7928 | Z86: 1
A87: =A85+1 -> 4 | B87: 162701155R00 | C87: Vodorovné přemístění výkopku z hor.5-7 do 10000 m | D87: m3 | E87: 1.7928 | G87: =E87*F87 -> 0 | AB87: POL | AJ87: 21
A88: =A87+1 -> 5 | B88: 162701159R00 | C88: Příplatek k vod. přemístění hor.5-7 za další 1 km | D88: m3 | E88: 1.7928 | G88: 0
A89: =A88+1 -> 6 | B89: 162201253R00 | C89: Vodorovné přemíst.výkopku, kolečko hor.5-7, do 10m | D89: m3 | E89: 1.7928 | G89: 0
A90: 7 | B90: 162201260R00 | C90: Příplatek za dalších 10 m,kolečko výkop. z hor.5-7 | D90: m3 | E90: 1.7928 | G90: 0 | AB90: POL | AJ90: 21
A91: 8 | B91: 167101251R00 | C91: Nakládání výkopku z hor.5 ÷ 7 - ručně | D91: m3 | E91: 1.7928 | G91: 0
A92: 9 | B92: 171201201R00 | C92: Uložení sypaniny na skl.-modelace na výšku přes 2m | D92: m3 | E92: 1.7928 | G92: 0
A93: 10 | B93: 199000003R00 | C93: Poplatek za skládku horniny 5 - 7 | D93: m3 | E93: 1.7928 | G93: 0
A94: Díl: | B94: 2 | C94: Základy a zvláštní zakládání | G94: =SUBTOTAL(9,G95:P110) -> 0
A95: =A93+1 -> 11 | B95: 215901101RT5 | C95: Zhutnění podloží z hornin nesoudržných do 92% PS, vibrační deskou (min.0,2MPa po dobu 2 min.) | D95: m2 | E95: 4.086 | G95: =E95*F95 -> 0
C96: 2,27*1,8 | E96: 4.086
A97: =A95+1 -> 12 | B97: 273311114R00 | C97: Beton základ. desek prostý z cem. portlad. C 12/15 | D97: m3 | E97: 0.2313 | G97: =E97*F97 -> 0
C98: podkladní beton : 0,05*2,57*1,8 | E98: 0.2313
A99: =A97+1 -> 13 | B99: 273321411R00 | C99: Železobeton základových desek C 25/30 | D99: m3 | E99: 0.9252 | G99: =E99*F99 -> 0
C100: ŽB deska D1 : 0,2*2,57*1,8 | E100: 0.9252
A101: =A99+1 -> 14 | B101: 273361821R00 | C101: Výztuž základových desek z betonářské ocelí 10505 | D101: t | E101: 0.025 | G101: =E101*F101 -> 0
A102: =A101+1 -> 15 | B102: 273361921RT9 | C102: Výztuž základových desek ze svařovaných sítí, průměr drátu 8,0, oka 150/150 mm KY80 | D102: t | E102: 0.05951 | G102: 0
C103: 1 m2 = 5,36 kg/m2 : 2,57*1,8*2*5,36*0,001*1,2 | E103: 0.05951
A104: =A102+1 -> 16 | B104: 380932225R00 | C104: Vlepení výztuže D 12, beton, malta HIT - HY 150 | D104: m | E104: 6 | G104: =E104*F104 -> 0
C105: 0,3*2*10 | E105: 6
A106: =A104+1 -> 17 | B106: 631319165R00 | C106: Příplatek za konečnou úpravu mazanin tl. 24 cm | D106: m3 | E106: 0.9252 | G106: =E106*F106 -> 0
A107: =A106+1 -> 18 | B107: 631319175R00 | C107: Příplatek za stržení povrchu mazaniny tl. 24 cm | D107: m3 | E107: 1.8504 | G107: 0
C108: 2*0,9252 | E108: 1.8504
A109: =A107+1 -> 19 | B109: 216902111RHR | C109: Očištění základových spár nezapaženého dna, - začištění hrany stáv.základu | D109: kompl. | E109: 1 | G109: =E109*F109 -> 0 | Z109: 0
A110: =A109+1 -> 20 | B110: 905 RT2 | C110: HZS - nezměřitelné práce malého rozsahu, Práce v tarifní třídě 5 | D110: h | E110: 8 | G110: 0
A111: Díl: | B111: 3 | C111: Svislé a kompletní konstrukce | G111: =SUBTOTAL(9,G112:P114) -> 0
A112: =A110+1 -> 21 | B112: 389200030RPP | C112: Pilíř pro měřicí skříně-zazdění niky, 2,4x0,40x0,30m -pož.obezdění rozvaděče pórobeton 7,5cm, omítka, 2x protipož.větrací mřížka 300/100mm | D112: kus | E112: 1 | G112: =E112*F112 -> 0
A113: =A112+1 -> 22 | B113: 713582114R35 | C113: Revizní dvířka Promat do masivních stěn,300x500 mm, typ SP, požární odolnost EI 15 | D113: kus | E113: 1 | G113: 0 | Z113: 0
A114: =A113+1 -> 23 | B114: 713582126R12 | C114: Revizní dvířka Promat do masivních stěn,300x1200 mm, typ SP, požární odolnost EI 15 | D114: kus | E114: 1 | G114: 0
A115: Díl: | B115: 31 | C115: Zdi podpěrné a volné | G115: =SUBTOTAL(9,G116:P126) -> 0 | AB115: POL | AJ115: 21
A116: =A114+1 -> 24 | B116: 311112120RT4 | C116: Stěna z tvárnic ztraceného bednění, tl. 20 cm, zalití tvárnic betonem C 25/30 | D116: m2 | E116: 5.55 | G116: =E116*F116 -> 0
C117: 0,75*(2*2,3+2*1,4) | E117: 5.55
A118: =A116+1 -> 25 | B118: 311361821R00 | C118: Výztuž nadzáklad. zdí z betonářské oceli 10505 (R) | D118: t | E118: 0.12372 | G118: =E118*F118 -> 0 | Z118: 0
C119: - vodorovně : 2*(2*2,3+1,8*2)*3*0,98*0,001*1,2 | E119: 0.05786
C120: - svisle : 2*1,0*28*0,98*0,001*1,2 | E120: 0.06586
A121: =A118+1 -> 26 | B121: 311941111R00 | C121: Připojení zdí ke stáv.konstr.nerez kotvou na hmožd | D121: m | E121: 9 | G121: =E121*F121 -> 0
C122: Z2 : 2*0,9*5 | E122: 9
A123: =A121+1 -> 27 | B123: 317941123R00 | C123: Osazení ocelových válcovaných nosníků č.14-22 | D123: t | E123: 0.13246 | G123: =E123*F123 -> 0 | Z123: 0
C124: I160 - 17,9kg/m : 4*1,85*17,9*0,001 | E124: 0.13246 | AB124: POL | AJ124: 21
A125: =A123+1 -> 28 | B125: 340271515R00 | C125: Zazdívka otvorů pl.do 1 m2, pórobet.tvár.,tl.15 cm | D125: m3 | E125: 0.3375 | G125: =E125*F125 -> 0
C126: Z2 : 5*0,5*0,9*0,15 | E126: 0.3375 | Z126: 0
A127: Díl: | B127: 311 | C127: Sádrokartony | G127: =SUBTOTAL(9,G128:P130) -> 0 | AB127: SPX
A128: =A125+1 -> 29 | B128: 347015122R00 | C128: Předstěna SDK, tl.95mm, ocel. kce CW, 1x Rigips habito 12,5mm, EI 30DP1 | D128: m2 | E128: 44.86545 | G128: =E128*F128 -> 0 | AB128: POL | AJ128: 21
C129: Z1 : 1,45*(26,771+3,3+0,25) | E129: 43.96545
C130: PS : 1,8*0,5 | E130: 0.9
A131: Díl: | B131: 31 | C131: Zdi podpěrné a volné | G131: =SUBTOTAL(9,G132:P134) -> 0
A132: =A128+1 -> 30 | B132: 346244361RT2 | C132: Zazdívka rýh, kapes cihlami tl. 6,5 cm, s použitím suché maltové směsi | D132: m2 | E132: 19.84215 | G132: =E132*F132 -> 0
C133: (26,771+3,3)*0,65 | E133: 19.54615
C134: 0,16*1,85 | E134: 0.296 | AB134: POL | AJ134: 21
A135: Díl: | B135: 311 | C135: Sádrokartony | G135: =SUBTOTAL(9,G136:P140) -> 0
A136: =A132+1 -> 31 | B136: 342266211RT6 | C136: Obklad stěn sádrokartonem lepený na zdivo, desky protipožární tl. 12,5 mm, EI 30DP1 | D136: m2 | E136: 1 | G136: =E136*F136 -> 0
A137: =A136+1 -> 32 | B137: 342266998R00 | C137: Příplatek pro obklad za plochu do 5 m2 | D137: m2 | E137: 0.87 | G137: 0
C138: 1,45*0,4 | E138: 0.58
C139: 1,45*0,2 | E139: 0.29
A140: =A137+1 -> 33 | B140: 906 RT3 | C140: HZS - nezměřitelné práce malého rozsahu, Práce v tarifní třídě 6 | D140: h | E140: 8 | G140: =E140*F140 -> 0 | Z140: 0
A141: Díl: | B141: 34 | C141: Stěny a příčky | G141: =SUBTOTAL(9,G142:P143) -> 0 | AB141: SPX
A142: =A140+1 -> 34 | B142: 346244371RT2 | C142: Zazdívka rýhí, kapes cihlami tl. 14 cm, s použitím suché maltové směsi | D142: m2 | E142: 0.045 | G142: =E142*F142 -> 0
C143: 2*0,15*0,15 | E143: 0.045
A144: Díl: | B144: 4 | C144: Vodorovné konstrukce | G144: =SUBTOTAL(9,G145:P146) -> 0
A145: =A142+1 -> 35 | B145: 417320039RAC | C145: Ztužující věnec ŽB beton C 25/30, 20 x 14 cm, bednění, výztuž 150 kg/m3 | D145: m | E145: 8.2 | G145: =E145*F145 -> 0 | Z145: 0
C146: 2*2,3+2*1,8 | E146: 8.2 | AB146: POL | AJ146: 21
A147: Díl: | B147: 61 | C147: Upravy povrchů vnitřní | G147: =SUBTOTAL(9,G148:G173) -> 0
A148: =A145+1 -> 36 | B148: 346481111RT2 | C148: Zaplentování rýh, nosníků rabicovým pletivem, s použitím suché maltové směsi | D148: m2 | E148: 0.435 | G148: =E148*F148 -> 0
C149: 0,3*1,45 | E149: 0.435
A150: =A148+1 -> 37 | B150: 602011144RT2 | C150: Štuk na stěnách vnitřní, ručně, tloušťka vrstvy 3 mm | D150: m2 | E150: 88.795 | G150: =E150*F150 -> 0
A151: =A150+1 -> 38 | B151: 602011191R00 | C151: Podklad.nátěr stěn pod tenkovr.omítky Cemix PASN | D151: m2 | E151: 88.795 | G151: 0
C152: Položka pořadí 39 : 88,79500 | E152: 88.795
A153: =A151+1 -> 39 | B153: 602016191R00 | C153: Penetrační nátěr stěn PROFI | D153: m2 | E153: 88.795 | G153: =E153*F153 -> 0
C154: 30,1*(0,75*2+1,45) | E154: 88.795 | Z154: 0
A155: =A153+1 -> 40 | B155: 622903111R00 | C155: Očištění zdí a valů před opravou, ručně | D155: m2 | E155: 88.795 | G155: =E155*F155 -> 0
A156: =A155+1 -> 41 | B156: 611401211RT2 | C156: Oprava omítky na stropech o ploše do 0,25 m2, vápennou štukovou omítkou | D156: kus | E156: 8 | G156: 0
C157: dotčené prostory-podlaží : 8 | E157: 8
A158: =A156+1 -> 42 | B158: 612401191RT2 | C158: Omítka malých ploch vnitřních stěn do 0,09 m2, vápennou štukovou omítkou | D158: kus | E158: 2 | G158: =E158*F158 -> 0
C159: kapsy : 2 | E159: 2
A160: =A158+1 -> 43 | B160: 612431111R00 | C160: Omítka sádrokartonových stěn Feinputz | D160: m2 | E160: 296.68545 | G160: =E160*F160 -> 0
C161: Z1 : 1,45*(26,771+3,3+0,25) | E161: 43.96545
C162: PS : 1,8*0,5 | E162: 0.9
C163: výtahová šachta-interier : 30,9*(2*1,92+2*1,42) | E163: 206.412
C164: výtahová šachta-exterier : 3,3*1,72*8,0 | E164: 45.408 | Z164: 0
A165: =A160+1 -> 44 | B165: 612401391RT2 | C165: Omítka malých ploch vnitřních stěn do 1 m2, s použitím suché maltové směsi | D165: kus | E165: 8 | G165: =E165*F165 -> 0
C166: dotčené prostory-podlaží : 8 | E166: 8
A167: =A165+1 -> 45 | B167: 612409991RT2 | C167: Začištění omítek kolem oken,dveří apod., s použitím suché maltové směsi | D167: m | E167: 89.6 | G167: =E167*F167 -> 0
C168: dotčené prostory-podlaží : 8*(4,0+1,6+1,6+4,0) | E168: 89.6
A169: =A167+1 -> 46 | B169: 612425931RT2 | C169: Omítka vápenná vnitřního ostění - štuková, s použitím suché maltové směsi | D169: m2 | E169: 0.435 | G169: =E169*F169 -> 0
A170: =A169+1 -> 47 | B170: 612481211RU2 | C170: Montáž výztužné sítě (perlinky) do stěrky-stěny, včetně výztužné sítě a stěrkového tmelu | D170: m2 | E170: 88.795 | G170: 0
C171: Položka pořadí 39 : 88,79500 | E171: 88.795
A172: =A170+1 -> 48 | B172: 632477123R00 | C172: Reprofil.polymercement.maltou,tl.do10 mm+penetrace | D172: m2 | E172: 0.435 | G172: =E172*F172 -> 0
A173: =A172+1 -> 49 | B173: 905 RT2 | C173: HZS - nezměřitelné práce malého rozsahu, Práce v tarifní třídě 5 | D173: h | E173: 8 | G173: 0
A174: Díl: | B174: 63 | C174: Podlahy a podlahové konstrukce | G174: =SUBTOTAL(9,G175:P183) -> 0 | Z174: 0
A175: =A173+1 -> 50 | B175: 632451022R00 | C175: Vyrovnávací potěr MC 15, v pásu, tl. 30 mm | D175: m2 | E175: 2.64 | G175: =E175*F175 -> 0 | AB175: SPX
C176: nástupiště : 8*1,1*0,3 | E176: 2.64 | AB176: POL | AJ176: 21
A177: =A175+1 -> 51 | B177: 634601131R00 | C177: Zaplnění dilatačních spár mazanin, šířka 30 mm | D177: m | E177: 8.8 | G177: =E177*F177 -> 0
C178: nástupiště : 8*1,1 | E178: 8.8
A179: =A177+1 -> 52 | B179: 771578011R00 | C179: Spára podlaha - stěna, silikonem | D179: m | E179: 17.6 | G179: =E179*F179 -> 0
A180: =A179+1 -> 53 | B180: 631100000RA0 | C180: Podlaha z dlažby mramorové v materiálu pohledově shodném s mramorem schodiště | D180: m2 | E180: 0.88 | G180: 0
C181: 8*1,1*0,1 | E181: 0.88
A182: =A180+1 -> 54 | B182: 905 RT2 | C182: HZS - nezměřitelné práce malého rozsahu, Práce v tarifní třídě 5 | D182: h | E182: 8 | G182: =E182*F182 -> 0
A183: =A182+1 -> 55 | B183: R63-01 | C183: Příplatek za malý rozsah mramor.dlažby | D183: kpl. | E183: 1 | G183: 0 | Z183: 0
A184: Díl: | B184: 94 | C184: Lešení a stavební výtahy | G184: =SUBTOTAL(9,G185:P190) -> 0 | AB184: SPX
A185: =A183+1 -> 56 | B185: 941955002R00 | C185: Lešení lehké pomocné, výška podlahy do 1,9 m | D185: m2 | E185: 40 | G185: =E185*F185 -> 0 | AB185: POL | AJ185: 21
C186: 8*5,0 | E186: 40
A187: =A185+1 -> 57 | B187: 941941111KPL | C187: Pronájem lešení, doprava, manipulace | D187: kompl. | E187: 1 | G187: =E187*F187 -> 0
A188: =A187+1 -> 58 | B188: 949311113U00 | C188: Mtž leš trub šachta do 6m2 v 30m | D188: m | E188: 30 | G188: 0
A189: =A188+1 -> 59 | B189: 94931121U00 | C189: Přípl ZKD den leš k 94931-1111/2/3 | D189: m | E189: 60 | G189: 0
A190: 60 | B190: 949311813U00 | C190: Dmtž leš trub šachta do 6m2 v 30m | D190: m | E190: 30 | G190: 0
A191: Díl: | B191: 95 | C191: Dokončovací konstrukce na pozemních stavbách | G191: =SUBTOTAL(9,G192:P198) -> 0
A192: =A190+1 -> 61 | B192: 952901111R00 | C192: Vyčištění budov o výšce podlaží do 4 m | D192: m2 | E192: 150 | G192: =E192*F192 -> 0
A193: =A192+1 -> 62 | B193: 953941312R00 | C193: Osazení hasicího přístroje na stěnu | D193: kus | E193: 1 | G193: 0
A194: =A193+1 -> 63 | B194: 954112111R00 | C194: SDK obklad ocel.sloupů 4str., RF tl.12,5+15 mm | D194: m | E194: 1.45 | G194: 0
A195: =A194+1 -> 64 | B195: 713541201R00 | C195: Tmelení spár 2 x 15 mm protipožárním tmelem Promat | D195: m | E195: 5.8 | G195: 0
C196: 4*1,45 | E196: 5.8
A197: =A195+1 -> 65 | B197: 905 RT2 | C197: HZS - nezměřitelné práce malého rozsahu, Práce v tarifní třídě 5 | D197: h | E197: 8 | G197: =E197*F197 -> 0
A198: =A197+1 -> 66 | B198: 44984142R | C198: Přístroj hasicí sněhový S5Kte | D198: kus | E198: 1 | G198: 0
A199: Díl: | B199: 96 | C199: Bourání konstrukcí | G199: =SUBTOTAL(9,G200:P215) -> 0
A200: =A198+1 -> 67 | B200: 317314125R00 | C200: Podbetonování zhlaví nosníků, zdivo šířky 250 mm | D200: kus | E200: 4 | G200: =E200*F200 -> 0
A201: =A200+1 -> 68 | B201: 962032231R00 | C201: Bourání zdiva z cihel pálených na MVC | D201: m3 | E201: 14.43408 | G201: 0
C202: Z/B : 1,4*(26,771+3,3)*0,3 | E202: 12.62982
C203: 0,2*(26,771+3,3)*0,3 | E203: 1.80426
A204: =A201+1 -> 69 | B204: 962052211R00 | C204: Bourání zdiva železobetonového nadzákladového | D204: m3 | E204: 3.464 | G204: =E204*F204 -> 0
C205: P/B : 1,4*(2,3+1,8*2)*0,4 | E205: 3.304
C206: 1.PP - nárazníky : 0,4*0,4*0,5*2 | E206: 0.16
A207: =A204+1 -> 70 | B207: 967041112R00 | C207: Přisekání rovných ostění bez odstupu v betonu | D207: m2 | E207: 3 | G207: =E207*F207 -> 0
A208: =A207+1 -> 71 | B208: 968071112R00 | C208: Vyvěšení, zavěšení kovových křídel oken pl. 1,5 m2 | D208: kus | E208: 5 | G208: 0
A209: =A208+1 -> 72 | B209: 968072244R00 | C209: Vybourání kovových rámů oken jednod. pl. 1 m2 | D209: m2 | E209: 2.25 | G209: 0
C210: O/B : 5*0,5*0,9 | E210: 2.25
A211: =A209+1 -> 73 | B211: 970231200R00 | C211: Řezání cihelného zdiva hl. řezu 200 mm | D211: m | E211: 90.213 | G211: =E211*F211 -> 0
C212: Z/B : 3*(26,771+3,3) | E212: 90.213
A213: =A211+1 -> 74 | B213: 973031325R00 | C213: Vysekání kapes zeď cihel. MVC, pl. 0,1m2, hl. 30cm | D213: kus | E213: 2 | G213: =E213*F213 -> 0
A214: =A213+1 -> 75 | B214: 767141800R00 | C214: Demontáž konstr.pro beztm.zasklení,vč.zasklení | D214: m2 | E214: 85.4752 | G214: 0
C215: PL/B : 26,711*(1,6+1,6) | E215: 85.4752
A216: Díl: | B216: 99 | C216: Staveništní přesun hmot | G216: =SUBTOTAL(9,G217:P217) -> 0
A217: =A214+1 -> 76 | B217: 999281151R00 | C217: Přesun hmot pro opravy a údržbu do v. 25 m,nošením | D217: t | E217: 12.93643 | G217: =E217*F217 -> 0
A218: Díl: | B218: 711 | C218: Izolace proti vodě | G218: =SUBTOTAL(9,G219:P227) -> 0
A219: =A217+1 -> 77 | B219: 711745567R00 | C219: Provedení obrácených a zpět. spojů, NAIP, rš 0,5 m | D219: m | E219: 12.76 | G219: =E219*F219 -> 0
C220: 2*2,3+1,8*2 | E220: 8.2
C221: 4*1,14 | E221: 4.56
A222: =A219+1 -> 78 | B222: 907 RT4 | C222: HZS - nezměřitelné práce malého rozsahu, Práce v tarifní třídě 7 | D222: h | E222: 8 | G222: =E222*F222 -> 0
A223: =A222+1 -> 79 | B223: 711140014RAA | C223: Izolace proti vodě vodorovná přitavená, 1x, 1x ALP, 1x Sklobit | D223: m2 | E223: 4.14 | G223: 0
C224: 2,3*1,8 | E224: 4.14
A225: =A223+1 -> 80 | B225: 711150014RAA | C225: Izolace proti vodě svislá přitavená, 1x, 1x ALP, 1x Sklobit | D225: m2 | E225: 9.758 | G225: =E225*F225 -> 0
C226: 1,19*(2,3*2+1,8*2) | E226: 9.758
A227: =A225+1 -> 81 | B227: 998711201R00 | C227: Přesun hmot pro izolace proti vodě, výšky do 6 m | D227: kpl | E227: 1 | G227: =E227*F227 -> 0
A228: Díl: | B228: 767 | C228: Konstrukce zámečnické | G228: =SUBTOTAL(9,G229:P238) -> 0
A229: =A227+1 -> 82 | B229: 767995101R00 | C229: Výroba a montáž kov. atypických konstr. do 5 kg | D229: kg | E229: 10 | G229: =E229*F229 -> 0
A230: =A229+1 -> 83 | B230: 767995104R00 | C230: Výroba a montáž kov. atypických konstr. do 50 kg | D230: kg | E230: 165.6675 | G230: 0
C231: I160 - 17,9kg/m : 4*1,85*17,9 | E231: 132.46
C232: Jackel -17,95kg/m : 1,85*17,95 | E232: 33.2075 | AB232: SPX
A233: =A230+1 -> 84 | B233: 13380530R | C233: Tyč průřezu I 160, střední, jakost oceli 11373 | D233: t | E233: 0.14306 | G233: =E233*F233 -> 0 | AB233: POL_NEZ | AC233: 1 | AJ233: 21
... 66 more rows

Sheet 05_SO O4 - Stav arch část
A1: =CONCATENATE('Rekapitulace stavby'!C57,"_",'Rekapitulace stavby'!I57) -> 05_SO 04 - Stavebně - architektonická část
A3: SPECIFIKACE DODÁVEK A PRACÍ
A4: Název akce:
A5: ='Identifikační údaje'!B1 -> ČRo Brno – II. etapa rekonstrukce budovy Beethovenova 25/4
A7: Zadavatel: | C7: ='Identifikační údaje'!E7 -> Český rozhlas, Vinohradská 12, 120 99 Praha 2
B8: IČ: | C8: ='Identifikační údaje'!B9 -> 45245053
B9: DIČ: | C9: ='Identifikační údaje'!B10 -> CZ45245053
A11: Projektant: | C11: ='Identifikační údaje'!E12 -> Ing. arch. Klement Miloš, Nejedlého 381/19, 638 00 Brno - Lesná
B12: IČ: | C12: ='Identifikační údaje'!B14 -> 15188736
B13: DIČ: | C13: ='Identifikační údaje'!B15 -> CZ6101021344
A15: Uchazeč: | C15: ='Identifikační údaje'!E19 -> , ,
B16: IČ: | C16: ='Identifikační údaje'!B23 -> 0
B17: DIČ: | C17: ='Identifikační údaje'!B24 -> 0
A19: Místo stavby: | C19: ='Identifikační údaje'!B3 -> Budova Českého rozhlasu Brno na adrese Beethovenova 25/4, 657 42 Brno
A21: Datum vyplnění: | C21: ='Identifikační údaje'!B5 -> 00:00:00
A23: =CONCATENATE("REKAPITULACE DODÁVEK A PRACÍ OBJEKTU ",'Rekapitulace stavby'!I57) -> REKAPITULACE DODÁVEK A PRACÍ OBJEKTU SO 04 - Stavebně - architektonická část
A25: P.č. | B25: Číslo položky | C25: Název položky | D25: Kč bez DPH
B26: Ceník, kapitola
A27: Díl: | B27: =B77 -> 3 | C27: =C77 -> Svislé a kompletní konstrukce | G27: =G77 -> 0
A28: Díl: | B28: =B165 -> 61 | C28: =C165 -> Upravy povrchů vnitřní | G28: =G165 -> 0
A29: Díl: | B29: =B264 -> 63 | C29: =C264 -> Podlahy a podlahové konstrukce | G29: =G264 -> 0
A30: Díl: | B30: =B267 -> 94 | C30: =C267 -> Lešení a stavební výtahy | G30: =G267 -> 0
A31: Díl: | B31: =B270 -> 95 | C31: =C270 -> Dokončovací kce na pozem.stav. | G31: =G270 -> 0
A32: Díl: | B32: =B274 -> 96 | C32: =C274 -> Bourání konstrukcí | G32: =G274 -> 0
A33: Díl: | B33: =B484 -> 99 | C33: =C484 -> Staveništní přesun hmot | G33: =G484 -> 0
A34: Díl: | B34: =B487 -> 711 | C34: =C487 -> Izolace proti vodě | G34: =G487 -> 0
A35: Díl: | B35: =B498 -> 766 | C35: =C498 -> Konstrukce truhlářské | G35: =G498 -> 0
A36: Díl: | B36: =B560 -> 767 | C36: =C560 -> Konstrukce zámečnické | G36: =G560 -> 0
A37: Díl: | B37: =B590 -> 771 | C37: =C590 -> Podlahy z dlaždic a obklady | G37: =G590 -> 0
A38: Díl: | B38: =B614 -> 781 | C38: =C614 -> Obklady keramické | G38: =G614 -> 0
A39: Díl: | B39: =B717 -> 782 | C39: =C717 -> Konstrukce z přírodního kamene | G39: =G717 -> 0
A40: Díl: | B40: =B720 -> 784 | C40: =C720 -> Malby | G40: =G720 -> 0
A41: Díl: | B41: =B724 -> 40 | C41: =C724 -> Podhledy | G41: =G724 -> 0
A42: Díl: | B42: =B745 -> 770 | C42: =C745 -> Ostatní | G42: =G745 -> 0
A44: =CONCATENATE("CELKEM ZA OBJEKT ",'Rekapitulace stavby'!I57, " v Kč bez DPH") -> CELKEM ZA OBJEKT SO 04 - Stavebně - architektonická část v Kč bez DPH | D44: =SUM(G27:G42) -> 0
A75: P.č. | B75: Číslo položky | C75: Název položky | D75: MJ | E75: množství | F75: cena / MJ | G75: celkem
B76: Ceník, kapitola | C76: Poznámka uchazeče
A77: Díl: | B77: 3 | C77: Svislé a kompletní konstrukce | G77: =SUBTOTAL(9,G78:G164) -> 0 | AB77: POL | AJ77: 21
A78: 1 | B78: 342 26-2411.RT4 | C78: Příčka SDK instalační 2x OK, 2x opl. tl. 220 mm desky impreg. tl. 12,5 mm, Orsil tl. 5 cm | D78: m2 | E78: 61.026 | G78: =E78*F78 -> 0
C79: ;předstěny ZTI | E79: 0
C80: ;přízemí | E80: 0
C81: 1,08*1,20 | E81: 1.296
C82: mezipatro: | E82: 0
C83: (0,955+0,885+0,89+0,85+2,185+2,045+3,40)*1,20 | E83: 13.452
C84: (1,17+1,20+0,50)*1,20 | E84: 3.444
C85: ;1.patro | E85: 0
C86: (1,715+1,655)*1,20 | E86: 4.044
C87: ;2.patro | E87: 0
C88: (2,30+0,90+0,90+0,90+0,90+1,15+1,00+1,00)*1,20 | E88: 10.86
C89: ;3.patro | E89: 0
C90: (2,165+0,84+0,94+0,94+0,97+1,16+0,955+1,63)*1,20 | E90: 11.52
C91: ;4.patro | E91: 0
C92: (1,75+0,90+0,90+0,90+1,30+0,90+0,90)*1,20 | E92: 9.06
C93: (1,625+0,90+0,90)*1,20 | E93: 4.11
C94: ;5.patro | E94: 0
C95: (0,90+0,90+0,90)*1,20 | E95: 3.24
A96: =A78+1 -> 2 | B96: 342 24-812 | C96: Příčky POROTHERM AKU na MVC 5, tl. 125 mm | D96: m2 | E96: 186.1742 | G96: =E96*F96 -> 0
C97: ;mezipatro | E97: 0
C98: (2,55+3,76+2,55+2,255+0,86)*3,70 | E98: 44.3075
C99: ;2.patro | E99: 0
C100: (2,30+3,15+1,90+1,37)*2,99-0,70*2,00-0,85*2,00 | E100: 22.9728
C101: ;3.patro | E101: 0
C102: (2,165+3,32+1,70+1,00+2,60)*2,99-0,70*2,00 | E102: 30.8472
C103: ;4.patro | E103: 0
C104: (3,90+1,125+2,38+1,625+0,90)*2,99-0,70*2,00*2 | E104: 26.8907
C105: (1,40+1,80+1,40)*2,99+(3,00+2,30)*2,99 | E105: 29.601
C106: -0,80*2,00*3 | E106: -4.8
C107: ;5.patro | E107: 0
C108: (2,20+1,20+2,50+1,60+2,70)*2,99-0,70*2,00*3 | E108: 26.298
C109: (1,80+1,50+1,00)*2,99-0,70*2,00*2 | E109: 10.057
A110: =A96+1 -> 3 | B110: 342 24-811 | C110: Příčky POROTHERM AKU na MVC 5, tl. 100 mm | D110: m2 | E110: 39.1293 | G110: =E110*F110 -> 0
C111: ;mezipatro | E111: 0
C112: (0,90+1,275)*3,70-0,70*2,00 | E112: 6.6475
C113: ;1.patro | E113: 0
C114: 1,575*2,99-0,65*2,00 | E114: 3.4093
C115: ;2.patro | E115: 0
C116: (1,30+1,70+2,90)*2,99-0,70*2,00-0,85*2,00 | E116: 14.541
C117: ;3.patro | E117: 0
C118: (0,235+2,70)*2,99 | E118: 8.7757
C119: ;4.patro | E119: 0
C120: (1,625+0,30)*2,99 | E120: 5.7558
A121: =A110+1 -> 4 | B121: 340 23-921 | C121: Zazdívka otvorů pl.4 m2,cihlami tl.zdi do 10 cm vč.omítky | D121: m2 | E121: 13.008 | G121: =E121*F121 -> 0
C122: ;mezipatro | E122: 0
C123: 0,90*2,00+0,70*2,04 | E123: 3.228
C124: ;1.patro | E124: 0
C125: 0,65*2,00*2*0,65*2,00 | E125: 3.38
C126: ;2.patro | E126: 0
C127: 1,00*2,00*2 | E127: 4
C128: ;5.patro | E128: 0
C129: 0,60*2,00*2 | E129: 2.4
A130: =A121+1 -> 5 | B130: 340 23-9212.R00 | C130: Zazdívka otvorů pl.4 m2,cihlami tl.zdi nad 10 cm vč.omítky | D130: m2 | E130: 5.75 | G130: =E130*F130 -> 0
C131: ;mezipatro | E131: 0
C132: 0,90*2,10+0,85*2,00+0,30*3,70 | E132: 4.7
C133: ;3.patro | E133: 0
C134: 0,525*2,00 | E134: 1.05
C135: ;4.patro | E135: 0
C136: 0,90*2,001,00*2,00 | E136: 0
A137: =A130+1 -> 6 | B137: 310 23-921 | C137: Zazdívka cihlami na MVC vč.omítkky vč.provázání se stávajícím zdivem | D137: m3 | E137: 5.5983 | G137: =E137*F137 -> 0
C138: ;mezipatro | E138: 0
C139: 0,30*3,70*0,30+0,60*3,70*0,30+0,20*3,70*0,20 | E139: 1.147
C140: ;1.patro | E140: 0
C141: 0,70*1,78*0,60+0,20*2,99*0,20 | E141: 0.8672
C142: ;2.patro | E142: 0
C143: 0,70*1,78*0,60+0,20*2,99*0,20 | E143: 0.8672
C144: ;3.patro | E144: 0
C145: 0,70*1,78*0,60+0,20*2,99*0,20 | E145: 0.8672
C146: ;4.patro | E146: 0
C147: 0,70*1,78*0,60+0,20*2,99*0,20 | E147: 0.8672
C148: 0,75*2,99*0,20 | E148: 0.4485
C149: ;5..patro | E149: 0
C150: 0,50*1,78*0,60 | E150: 0.534
A151: =A137+1 -> 7 | B151: 31701 | C151: Překlad z I prof. Č.100 dl.1000 mm D+M vč.plentování | D151: ks | E151: =SUM(E152:E157) -> 14 | G151: =E151*F151 -> 0
C152: ;mezipatro:2 | E152: 2
C153: 1.patro:1 | E153: 1
C154: 2.patro:3 | E154: 3
C155: 3.patro:3 | E155: 3
C156: 4.patro:3 | E156: 3
C157: 5.patro:2 | E157: 2
A158: =A151+1 -> 8 | B158: 31702 | C158: Překlad z I prof. Č.100 dl.1200 mm D+M vč.plentování | D158: ks | E158: =SUM(E159:E164) -> 6 | G158: =E158*F158 -> 0
C159: ;mezipatro:1 | E159: 1
C160: 1.patro:0 | E160: 0
C161: 2.patro:1 | E161: 1
C162: 3.patro:1 | E162: 1
C163: 4.patro:3 | E163: 3
C164: 5.patro:0 | E164: 0
A165: Díl: | B165: 61 | C165: Upravy povrchů vnitřní | G165: =SUBTOTAL(9,G166:G263) -> 0
A166: =A158+1 -> 9 | B166: 612 47-3182.R00 | C166: Omítka vnitřního zdiva ze suché směsi, štuková | D166: m2 | E166: 572.65 | G166: =E166*F166 -> 0
C167: (61,026+186,17+39,129)*2 | E167: 572.65
A168: =A166+1 -> 10 | B168: 611 10-0011 | C168: Oprava omítek stropů vnitřních přeštukování a dvojnásobný nátěr stávající beton skořepiny | D168: m2 | E168: 49.71 | G168: =E168*F168 -> 0
C169: 1.patro:1,60+1,60 | E169: 3.2
C170: 2.patro:2*1,30+5,50+2*1,30+1,50+1,50 | E170: 13.7
C171: 4.patro:2*8,80+1,17+1,17+2,27+7,80+1,40+1,40 | E171: 32.81
A172: =A168+1 -> 11 | B172: 6121000 | C172: Oprava omítek stěn vápenocem.štuková oprava z 10%. malba dvojnásobná, otěruvzdorná, bílá, včetně penetrace povrchu | D172: m2 | E172: 359.2022 | G172: =E172*F172 -> 0
C173: ;přízemí | E173: 0
C174: P9:(2,365+1,62)*2*0,70 | E174: 5.579
C175: P10:(1,08+1,62)*2*0,70 | E175: 3.78
C176: P11:(1,505+1,62)*2*0,70 | E176: 4.375
C177: ;mezipatro | E177: 0
C178: M08:(4,355+1,405)*2*0,70 | E178: 8.064
C179: M13:(1,90+2,50)*2*0,70 | E179: 6.16
C180: M14:(1,245+1,17)*2*0,70 | E180: 3.381
C181: M15:(1,85+2,60)*2*0,70 | E181: 6.23
C182: M31a:(1,54+3,40)*2*0,70 | E182: 6.916
C183: M31b:(1,15+2,13)*2*0,70 | E183: 4.592
C184: M32:(1,889+2,185)*2*0,70 | E184: 5.7036
C185: ;M32a:((0,955+1,35)*2*0,70)*2 | E185: 6.454
C186: M33:(0,78+1,275)*2*0,70 | E186: 2.877
C187: M33a:(2,07+3,40)*2*0,70 | E187: 7.658
C188: M34:(1,994+2,185)*2*0,70 | E188: 5.8506
C189: M34a:((0,89+1,35)*2*0,70)*2 | E189: 6.272
C190: ;1.patro | E190: 0
C191: 103:(1,665+1,43)*2*0,70 | E191: 4.333
C192: 103a:(1,665+1,89)*2*0,70 | E192: 4.977
C193: 103b:(1,665+0,78)*2*0,70 | E193: 3.423
C194: 104:(1,715+2,34)*2*0,70 | E194: 5.677
C195: 105a:(1,575+0,83)*2*0,70 | E195: 3.367
C196: 105b:(1,575+1,90)*2*0,70 | E196: 4.865
C197: 105c:(1,575+1,35)*2*0,70 | E197: 4.095
C198: 106:(1,445+2,10)*2*0,70 | E198: 4.963
C199: 124:(2,19+1,48)*2*0,70 | E199: 5.138
C200: 124a:(1,025+1,59)*2*0,70 | E200: 3.661
C201: 124b:(1,065+1,59)*2*0,70 | E201: 3.717
C202: ;2.patro | E202: 0
C203: 214:(1,15+1,625)*2*0,70 | E203: 3.885
C204: 215:(1,90+1,625)*2*0,70 | E204: 4.935
C205: 215a:(3,15+2,30)*2*0,70 | E205: 7.63
C206: 215b:((0,90+1,475)*2*0,70)*2 | E206: 6.65
C207: 216:(1,90+2,90)*2*0,70 | E207: 6.72
C208: 216a:((0,90+1,475)*2*0,70)*2 | E208: 6.65
C209: 217:(1,775+2,30)*2*0,70 | E209: 5.705
C210: 206:(1,00+1,50)*2*0,70 | E210: 3.5
C211: 207:(1,00+1,50)*2*0,70 | E211: 3.5
C212: 208:(1,00+1,50)*2*0,70 | E212: 3.5
C213: 209:(1,00+1,50)*2*0,70 | E213: 3.5
C214: ;3.patro | E214: 0
C215: 307:(2,70+1,48)*2*0,70 | E215: 5.852
C216: 308:(0,955+1,48)*2*0,70 | E216: 3.409
C217: 309:(1,63+1,48)*2*0,70 | E217: 4.354
C218: 315:(1,16+1,455)*2*0,70 | E218: 3.661
C219: 317:(4,06+1,455)*2*0,70 | E219: 7.721
C220: 317a:((0,94+1,56)*2*0,70)*2 | E220: 7
C221: 317b:(3,32+2,50)*2*0,70 | E221: 8.148
C222: 316:(1,88+2,70)*2*0,70 | E222: 6.412
C223: 316a:((0,94+1,56)*2*0,70)*2 | E223: 7
C224: 318:(1,825+2,165)*2*0,70 | E224: 5.586
C225: ;4.patro | E225: 0
C226: 408:(1,80+1,625)*2*0,70 | E226: 4.795
C227: 409:(1,80+1,625)*2*0,70 | E227: 4.795
C228: 410:(3,90+2,725)*2*0,70 | E228: 9.275
C229: 410a:((0,90+1,52)*2*0,70)*2 | E229: 6.776
C230: 411:(3,15+2,80)*2*0,70 | E230: 8.33
C231: 411a:(0,90+1,30)*2*0,70 | E231: 3.08
C232: 411b:(0,90+1,30)*2*0,70 | E232: 3.08
C233: 412:(1,125+1,625)*2*0,70 | E233: 3.85
C234: 412a:(1,125+2,38)*2*0,70 | E234: 4.907
C235: 412a:(1,30+0,90)*2*0,70*2 | E235: 6.16
C236: 412b:(1,74+1,30)*2*0,70*2 | E236: 8.512
C237: 413c:(1,30+1,30)*2*0,70 | E237: 3.64
C238: 413d:(1,30+0,90)*2*0,70 | E238: 3.08
C239: 426:(2,00+1,48)*2*0,70 | E239: 4.872
... 524 more rows

Sheet 06_SO 04 - Silnoproud
A1: =CONCATENATE('Rekapitulace stavby'!C58,"_",'Rekapitulace stavby'!I58) -> 06_SO 04 - Silnoproudá elektroinstalace
A3: SPECIFIKACE DODÁVEK A PRACÍ
A4: Název akce:
A5: ='Identifikační údaje'!B1 -> ČRo Brno – II. etapa rekonstrukce budovy Beethovenova 25/4
A7: Zadavatel: | C7: ='Identifikační údaje'!E7 -> Český rozhlas, Vinohradská 12, 120 99 Praha 2
B8: IČ: | C8: ='Identifikační údaje'!B9 -> 45245053
B9: DIČ: | C9: ='Identifikační údaje'!B10 -> CZ45245053
A11: Projektant: | C11: ='Identifikační údaje'!E12 -> Ing. arch. Klement Miloš, Nejedlého 381/19, 638 00 Brno - Lesná
B12: IČ: | C12: ='Identifikační údaje'!B14 -> 15188736
B13: DIČ: | C13: ='Identifikační údaje'!B15 -> CZ6101021344
A15: Uchazeč: | C15: ='Identifikační údaje'!E19 -> , ,
B16: IČ: | C16: ='Identifikační údaje'!B23 -> 0
B17: DIČ: | C17: ='Identifikační údaje'!B24 -> 0
A19: Místo stavby: | C19: ='Identifikační údaje'!B3 -> Budova Českého rozhlasu Brno na adrese Beethovenova 25/4, 657 42 Brno
A21: Datum: | C21: ='Identifikační údaje'!B5 -> 00:00:00
A23: =CONCATENATE("REKAPITULACE DODÁVEK A PRACÍ OBJEKTU ",'Rekapitulace stavby'!I58) -> REKAPITULACE DODÁVEK A PRACÍ OBJEKTU SO 04 - Silnoproudá elektroinstalace
A25: P.č. | B25: Ozn. | D25: Materiál celkem | F25: Montáž celkem | H25: M+M celkem
A27: =B43 -> A. | B27: =C43 -> Svítidla a příslušenství | D27: =F43 -> 0 | F27: =H43 -> 0 | H27: =D27+F27 -> 0
A28: =B102 -> B. | B28: =C102 -> Spínače, zásuvky a ostatní přístroje | D28: =F102 -> 0 | F28: =H102 -> 0 | H28: =D28+F28 -> 0
A29: =B115 -> C. | B29: =C115 -> Instalační, úložný a ochranný materiál | D29: =F115 -> 0 | F29: =H115 -> 0 | H29: 0
A30: =B120 -> D. | B30: =C120 -> Kabely a vodiče | D30: =F120 -> 0 | F30: =H120 -> 0 | H30: 0
A31: =B126 -> E. | B31: =C126 -> Pospojování, uzemnění | D31: =F126 -> 0 | F31: =H126 -> 0 | H31: 0
A32: =B130 -> F. | B32: =C130 -> Rozvaděče | D32: =F130 -> 0 | F32: =H130 -> 0 | H32: 0
A33: =B134 -> G. | B33: =C134 -> Ostatní | D33: =F134 -> 0 | F33: =H134 -> 0 | H33: 0
A35: =CONCATENATE("CELKEM ZA OBJEKT ",'Rekapitulace stavby'!I58, " v Kč bez DPH") -> CELKEM ZA OBJEKT SO 04 - Silnoproudá elektroinstalace v Kč bez DPH | H35: =SUBTOTAL(9,H27:I33) -> 0
A38: Textová, výkresová i tabulková část projektové dokumentace tvoří jeden vzájemně se doplňující a provázaný celek. Jednotliví účastníci výběrového řízení se musí seznámit s projektojektovou dokumentací v návaznosti na soupis prací a na základě těchto informací části díla nacenit. Dále je potřeba při stanovení ceny dle vykázané výměry započítat všechny předpokládané doplňkové prvky a činnosti s touto položkou související tak, aby cena byla kompletní a prvek funkční.
A40: 1
F41: Materiál | H41: Montáž
A42: poř.č. | B42: položka | C42: popis položky | D42: MJ | E42: množství | F42: jedn.cena | G42: celkem [Kč] | H42: jedn.cena | I42: celkem [Kč]
B43: A. | C43: Svítidla a příslušenství | F43: =SUBTOTAL(9,G45:G100) -> 0 | H43: =SUBTOTAL(9,I45:I100) -> 0
C44: (komplet, včetně zdrojů, závěsů, pomocného materiálu, osazení zapojení, vyzkoušení apod.)
A45: 1 | C45: svítidlo typ A13 - Svítidlo stropní přisazené, bílá barva, difuzor opál, odsazený, Ø 195 mm, v=131 mm, LED 35W, 3000 K, 3000 lm, IP40 | D45: ks | E45: 2 | G45: =E45*F45 -> 0 | I45: =E45*H45 -> 0
A46: =A45+1 -> 2 | C46: svítidlo typ A5 - Svítidlo přisazené, bílá barva, difuzor sklo mat, Ø 267 mm, v=80 mm, 2xE27, 2x20W max | D46: ks | E46: 6 | G46: =E46*F46 -> 0 | I46: =E46*H46 -> 0
A47: 3 | C47: svítidlo typ A6 - Svítidlo stropní přisazené, bílá barva, difuzor opál, odsazený, Ø 130 mm, v=100 mm, LED 15W, 3000 K, 1280 lm, IP40 | D47: ks | E47: 1 | G47: 0 | I47: =E47*H47 -> 0
A48: 4 | C48: svítidlo typ C13 - Svítidlo vestavné do podhledu SDK, korpus Al, bílá barva, difuzor opál - odsazený, Ø 110 mm, vestavná hloubka 70 mm, LED SMD 2835, 13W, 3000 K, 925 lm, 90°, IP54 | D48: ks | E48: 51 | G48: 0 | I48: =E48*H48 -> 0
A49: 5 | C49: svítidlo typ C14 - Svítidlo vestavné do podhledu SDK, bílý rámeček, difuzor mat, Ø 230 mm, vestavná hloubka 150 mm, 2x E27, 2x20W max | D49: ks | E49: 2 | G49: 0 | I49: =E49*H49 -> 0
A50: 6 | C50: svítidlo typ C15 - Svítidlo vestavné do podhledu SDK, bílý rámeček, difuzor mat, Ø 190 mm, vestavná hloubka 150 mm, 2x E27, 2x15W max | D50: ks | E50: 1 | G50: 0 | I50: =E50*H50 -> 0
A51: 7 | C51: svítidlo typ C8 Svítidlo vestavné do podhledu SDK, bílá barva, odsazený světelný zdroj, Ø 69 mm, vest. hloubka 86 mm, LED 7,5W, 3000 K, 1000 lm, 33° | D51: ks | E51: 5 | G51: 0 | I51: 0
A52: 8 | C52: svítidlo typ D6 - Svítidlo nástěnné, Al+difuzor opál, Ø trubice 42 mm, l=620 mm, pro zářivku 1x14W, G5, EP | D52: ks | E52: 3 | G52: 0 | I52: 0
A53: 9 | C53: svítidlo typ E3-1 - Ukončující profil podhledu SDK, Al, difuzor PC opál, vč. LED 9W/m,3000 K, 720 lm/m, 12V DC, délka 0,75 m | D53: ks | E53: 1 | G53: 0 | I53: 0
A54: 10 | C54: svítidlo typ E3-10 - Ukončující profil podhledu SDK, Al, difuzor PC opál, vč. LED 9W/m,3000 K, 720 lm/m, 12V DC, délka 0,85m | D54: ks | E54: 1 | G54: 0 | I54: 0
A55: 11 | C55: svítidlo typ E3-11 - Ukončující profil podhledu SDK, Al, difuzor PC opál, vč. LED 9W/m,3000 K, 720 lm/m, 12V DC, délka 0,85 | D55: ks | E55: 1 | G55: 0 | I55: 0
A56: 12 | C56: svítidlo typ E3-12 - Ukončující profil podhledu SDK, Al, difuzor PC opál, vč. LED 9W/m,3000 K, 720 lm/m, 12V DC, délka 2,85m | D56: ks | E56: 1 | G56: 0 | I56: 0
A57: 13 | C57: svítidlo typ E3-13 - Ukončující profil podhledu SDK, Al, difuzor PC opál, vč. LED 9W/m,3000 K, 720 lm/m, 12V DC, délka 0,85m | D57: ks | E57: 1 | G57: 0 | I57: 0
A58: 14 | C58: svítidlo typ E3-14 - Ukončující profil podhledu SDK, Al, difuzor PC opál, vč. LED 9W/m,3000 K, 720 lm/m, 12V DC, délka 0,85m | D58: ks | E58: 1 | G58: 0 | I58: 0
A59: 15 | C59: svítidlo typ E3-15 - Ukončující profil podhledu SDK, Al, difuzor PC opál, vč. LED 9W/m,3000 K, 720 lm/m, 12V DC, délka 2,25m | D59: ks | E59: 1 | G59: 0 | I59: 0
A60: 16 | C60: svítidlo typ E3-16 - Ukončující profil podhledu SDK, Al, difuzor PC opál, vč. LED 9W/m,3000 K, 720 lm/m, 12V DC, délka 1m | D60: ks | E60: 1 | G60: 0 | I60: 0
A61: 17 | C61: svítidlo typ E3-17 - Ukončující profil podhledu SDK, Al, difuzor PC opál, vč. LED 9W/m,3000 K, 720 lm/m, 12V DC, délka 1m | D61: ks | E61: 1 | G61: 0 | I61: 0
A62: 18 | C62: svítidlo typ E3-19 - Ukončující profil podhledu SDK, Al, difuzor PC opál, vč. LED 9W/m,3000 K, 720 lm/m, 12V DC, délka 1,4m | D62: ks | E62: 1 | G62: 0 | I62: 0
A63: 19 | C63: svítidlo typ E3-2 - Ukončující profil podhledu SDK, Al, difuzor PC opál, vč. LED 9W/m,3000 K, 720 lm/m, 12V DC, délka 0,8m | D63: ks | E63: 1 | G63: 0 | I63: 0
A64: 20 | C64: svítidlo typ E3-20 - Ukončující profil podhledu SDK, Al, difuzor PC opál, vč. LED 9W/m,3000 K, 720 lm/m, 12V DC, délka 2,5m | D64: ks | E64: 1 | G64: 0 | I64: 0
A65: 21 | C65: svítidlo typ E3-21 - Ukončující profil podhledu SDK, Al, difuzor PC opál, vč. LED 9W/m,3000 K, 720 lm/m, 12V DC, délka 0,95m | D65: ks | E65: 1 | G65: 0 | I65: 0
A66: 22 | C66: svítidlo typ E3-22 - Ukončující profil podhledu SDK, Al, difuzor PC opál, vč. LED 9W/m,3000 K, 720 lm/m, 12V DC, délka 0,95m | D66: ks | E66: 1 | G66: 0 | I66: 0
A67: 23 | C67: svítidlo typ E3-23 - Ukončující profil podhledu SDK, Al, difuzor PC opál, vč. LED 9W/m,3000 K, 720 lm/m, 12V DC, délka 2,7m | D67: ks | E67: 1 | G67: 0 | I67: 0
A68: 24 | C68: svítidlo typ E3-24 - Ukončující profil podhledu SDK, Al, difuzor PC opál, vč. LED 9W/m,3000 K, 720 lm/m, 12V DC, délka 0,95m | D68: ks | E68: 1 | G68: 0 | I68: 0
A69: 25 | C69: svítidlo typ E3-25 - Ukončující profil podhledu SDK, Al, difuzor PC opál, vč. LED 9W/m,3000 K, 720 lm/m, 12V DC, délka 0,85m | D69: ks | E69: 1 | G69: 0 | I69: 0
A70: 26 | C70: svítidlo typ E3-26 - Ukončující profil podhledu SDK, Al, difuzor PC opál, vč. LED 9W/m,3000 K, 720 lm/m, 12V DC, délka 2,15m | D70: ks | E70: 1 | G70: 0 | I70: 0
A71: 27 | C71: svítidlo typ E3-27 - Ukončující profil podhledu SDK, Al, difuzor PC opál, vč. LED 9W/m,3000 K, 720 lm/m, 12V DC, délka 2m | D71: ks | E71: 1 | G71: 0 | I71: 0
A72: 28 | C72: svítidlo typ E3-28 - Ukončující profil podhledu SDK, Al, difuzor PC opál, vč. LED 9W/m,3000 K, 720 lm/m, 12V DC, délka 1,6m | D72: ks | E72: 1 | G72: 0 | I72: 0
A73: 29 | C73: svítidlo typ E3-29 - Ukončující profil podhledu SDK, Al, difuzor PC opál, vč. LED 9W/m,3000 K, 720 lm/m, 12V DC, délka 1,6m | D73: ks | E73: 1 | G73: 0 | I73: 0
A74: 30 | C74: svítidlo typ E3-3 - Ukončující profil podhledu SDK, Al, difuzor PC opál, vč. LED 9W/m,3000 K, 720 lm/m, 12V DC, délka 2,15m | D74: ks | E74: 1 | G74: 0 | I74: 0
A75: 31 | C75: svítidlo typ E3-30 - Ukončující profil podhledu SDK, Al, difuzor PC opál, vč. LED 9W/m,3000 K, 720 lm/m, 12V DC, délka 2,6m | D75: ks | E75: 1 | G75: 0 | I75: 0
A76: 32 | C76: svítidlo typ E3-31 - Ukončující profil podhledu SDK, Al, difuzor PC opál, vč. LED 9W/m,3000 K, 720 lm/m, 12V DC, délka 0,85m | D76: ks | E76: 1 | G76: 0 | I76: 0
A77: 33 | C77: svítidlo typ E3-32 - Ukončující profil podhledu SDK, Al, difuzor PC opál, vč. LED 9W/m,3000 K, 720 lm/m, 12V DC, délka 0,85m | D77: ks | E77: 1 | G77: 0 | I77: 0
A78: 34 | C78: svítidlo typ E3-33 - Ukončující profil podhledu SDK, Al, difuzor PC opál, vč. LED 9W/m,3000 K, 720 lm/m, 12V DC, délka 1,3m | D78: ks | E78: 1 | G78: 0 | I78: 0
A79: 35 | C79: svítidlo typ E3-34 - Ukončující profil podhledu SDK, Al, difuzor PC opál, vč. LED 9W/m,3000 K, 720 lm/m, 12V DC, délka 1,3m | D79: ks | E79: 1 | G79: 0 | I79: 0
A80: 36 | C80: svítidlo typ E3-36 - Ukončující profil podhledu SDK, Al, difuzor PC opál, vč. LED 9W/m,3000 K, 720 lm/m, 12V DC, délka 0,9m | D80: ks | E80: 1 | G80: 0 | I80: 0
A81: 37 | C81: svítidlo typ E3-37 - Ukončující profil podhledu SDK, Al, difuzor PC opál, vč. LED 9W/m,3000 K, 720 lm/m, 12V DC, délka 0,9m | D81: ks | E81: 1 | G81: 0 | I81: 0
A82: 38 | C82: svítidlo typ E3-38 - Ukončující profil podhledu SDK, Al, difuzor PC opál, vč. LED 9W/m,3000 K, 720 lm/m, 12V DC, délka 0,9m | D82: ks | E82: 1 | G82: 0 | I82: 0
A83: 39 | C83: svítidlo typ E3-39 - Ukončující profil podhledu SDK, Al, difuzor PC opál, vč. LED 9W/m,3000 K, 720 lm/m, 12V DC, délka 1,7m | D83: ks | E83: 1 | G83: 0 | I83: 0
A84: 40 | C84: svítidlo typ E3-4 - Ukončující profil podhledu SDK, Al, difuzor PC opál, vč. LED 9W/m,3000 K, 720 lm/m, 12V DC, délka 0,85m | D84: ks | E84: 1 | G84: 0 | I84: 0
A85: 41 | C85: svítidlo typ E3-40 - Ukončující profil podhledu SDK, Al, difuzor PC opál, vč. LED 9W/m,3000 K, 720 lm/m, 12V DC, délka 1,5m | D85: ks | E85: 1 | G85: 0 | I85: 0
A86: 42 | C86: svítidlo typ E3-41 - Ukončující profil podhledu SDK, Al, difuzor PC opál, vč. LED 9W/m,3000 K, 720 lm/m, 12V DC, délka 0,95m | D86: ks | E86: 1 | G86: 0 | I86: 0
A87: 43 | C87: svítidlo typ E3-42 - Ukončující profil podhledu SDK, Al, difuzor PC opál, vč. LED 9W/m,3000 K, 720 lm/m, 12V DC, délka 0,95m | D87: ks | E87: 1 | G87: 0 | I87: 0
A88: 44 | C88: svítidlo typ E3-5 - Ukončující profil podhledu SDK, Al, difuzor PC opál, vč. LED 9W/m,3000 K, 720 lm/m, 12V DC, délka 0,85m | D88: ks | E88: 1 | G88: 0 | I88: 0
A89: 45 | C89: svítidlo typ E3-50 - Ukončující profil podhledu SDK, Al, difuzor PC opál, vč. LED 9W/m,3000 K, 720 lm/m, 12V DC, délka 0,9m | D89: ks | E89: 1 | G89: 0 | I89: 0
A90: 46 | C90: svítidlo typ E3-51 - Ukončující profil podhledu SDK, Al, difuzor PC opál, vč. LED 9W/m,3000 K, 720 lm/m, 12V DC, délka 0,9m | D90: ks | E90: 1 | G90: 0 | I90: 0
A91: 47 | C91: svítidlo typ E3-52 - Ukončující profil podhledu SDK, Al, difuzor PC opál, vč. LED 9W/m,3000 K, 720 lm/m, 12V DC, délka 1,3m | D91: ks | E91: 1 | G91: 0 | I91: 0
A92: 48 | C92: svítidlo typ E3-53 - Ukončující profil podhledu SDK, Al, difuzor PC opál, vč. LED 9W/m,3000 K, 720 lm/m, 12V DC, délka 1,4m | D92: ks | E92: 1 | G92: 0 | I92: 0
A93: 49 | C93: svítidlo typ E3-54 - Ukončující profil podhledu SDK, Al, difuzor PC opál, vč. LED 9W/m,3000 K, 720 lm/m, 12V DC, délka 2,25m | D93: ks | E93: 1 | G93: 0 | I93: 0
A94: 50 | C94: svítidlo typ E3-55 - Ukončující profil podhledu SDK, Al, difuzor PC opál, vč. LED 9W/m,3000 K, 720 lm/m, 12V DC, délka 1,3 | D94: ks | E94: 1 | G94: 0 | I94: 0
A95: 51 | C95: svítidlo typ E3-56 - Ukončující profil podhledu SDK, Al, difuzor PC opál, vč. LED 9W/m,3000 K, 720 lm/m, 12V DC, délka 1,7m | D95: ks | E95: 1 | G95: 0 | I95: 0
A96: 52 | C96: svítidlo typ E3-57 - Ukončující profil podhledu SDK, Al, difuzor PC opál, vč. LED 9W/m,3000 K, 720 lm/m, 12V DC, délka 0,8m | D96: ks | E96: 1 | G96: 0 | I96: 0
A97: 53 | C97: svítidlo typ E3-6 - Ukončující profil podhledu SDK, Al, difuzor PC opál, vč. LED 9W/m,3000 K, 720 lm/m, 12V DC, délka 0,85m | D97: ks | E97: 1 | G97: 0 | I97: 0
A98: 54 | C98: svítidlo typ E3-7 - Ukončující profil podhledu SDK, Al, difuzor PC opál, vč. LED 9W/m,3000 K, 720 lm/m, 12V DC, délka 0,85m | D98: ks | E98: 1 | G98: 0 | I98: 0
A99: 55 | C99: svítidlo typ E3-8 - Ukončující profil podhledu SDK, Al, difuzor PC opál, vč. LED 9W/m,3000 K, 720 lm/m, 12V DC, délka 1,6m | D99: ks | E99: 1 | G99: 0 | I99: 0
A100: 56 | C100: svítidlo typ E3-9 - Ukončující profil podhledu SDK, Al, difuzor PC opál, vč. LED 9W/m,3000 K, 720 lm/m, 12V DC, délka 2,3m | D100: ks | E100: 1 | G100: 0 | I100: =E100*H100 -> 0
B102: B. | C102: Spínače, zásuvky a ostatní přístroje | F102: =SUBTOTAL(9,G105:G113) -> 0 | H102: =SUBTOTAL(9,I105:I113) -> 0
C103: (komplet, včetně příslušenství, pomocného materiálu, osazení, zapojení, vyzkoušení apod.)
C104: Návazně na předchozí etapy rekonstrukce budou osaztovány výrobky z řady ABB Tango
A105: =A100+1 -> 57 | C105: Domovní spínač řazení 1, komplet | D105: ks | E105: 47 | G105: =E105*F105 -> 0 | I105: =E105*H105 -> 0
A106: 58 | C106: Domovní spínač řazení 5, komplet | D106: ks | E106: 25 | G106: =E106*F106 -> 0 | I106: =E106*H106 -> 0
A107: 59 | C107: Domovní tlačítko řazení 1/0 s popisem větrání , komplet | D107: ks | E107: 29 | G107: =E107*F107 -> 0 | I107: =E107*H107 -> 0
A108: 60 | C108: Časový doběh pro ventilátor montáž do krabice | D108: ks | E108: 18 | G108: =E108*F108 -> 0 | I108: =E108*H108 -> 0
A109: 61 | C109: Napojení VZT zařízení 230V, dle montážního návodu | D109: ks | E109: 18 | G109: =E109*F109 -> 0 | I109: =E109*H109 -> 0
A110: =A109+1 -> 62 | C110: Napojení napajecího zdroje splachovačů , dle montážního návodu | D110: ks | E110: 4 | G110: =E110*F110 -> 0 | I110: =E110*H110 -> 0
A111: 63 | C111: Domovní zásuvka 230V 16A,napájení z trafa komplet | D111: ks | E111: 5 | G111: 0 | I111: 0
A112: 64 | C112: Napojení osoušeče rukou 230V, dle montážního návodu | D112: ks | E112: 21 | G112: 0 | I112: 0
A113: 65 | C113: Napojení SLP zařízení 230V, dle montážního návodu | D113: ks | E113: 5 | G113: 0 | I113: 0
B115: C. | C115: Instalační, úložný a ochranný materiál | F115: =SUBTOTAL(9,G116:G118) -> 0 | H115: =SUBTOTAL(9,I115:I118) -> 0
C116: (komplet, včetně příslušenství, pomocného materiálu, výkopu, záhozu výkopu, vytyčení trasy, osazení, zapojení, vyzkoušení apod.)
A117: =A113+1 -> 66 | C117: Krabice přístrojová | D117: ks | E117: 106 | G117: =E117*F117 -> 0 | I117: =E117*H117 -> 0
A118: =A117+1 -> 67 | C118: Krabice odbočná včetně wago svorek | D118: ks | E118: 50 | G118: 0 | I118: 0
B120: D. | C120: Kabely a vodiče | F120: =SUBTOTAL(9,G121:G124) -> 0 | H120: =SUBTOTAL(9,I120:I124) -> 0
C121: (komplet, včetně vyhotovení drážky, zapravení drážky, vytyčení trasy, pomocného materiálu, příchytek, spojek, odlehčovacích oblouků, zapojení, vyzkoušení apod.)
A122: =A118+1 -> 68 | C122: CYKY J 3x1,5 | D122: m | E122: 600 | G122: =E122*F122 -> 0 | I122: =E122*H122 -> 0
A123: =A122+1 -> 69 | C123: CYKY J 3x2,5 | D123: m | E123: 350 | G123: 0 | I123: 0
A124: 70 | C124: CYKY O 3x1,5 | D124: m | E124: 150 | G124: 0 | I124: 0
B126: E. | C126: Pospojování, uzemnění | F126: =SUBTOTAL(9,G127:G128) -> 0 | H126: =SUBTOTAL(9,I126:I128) -> 0
C127: (komplet, včetně příslušenství, svorek, pomocného materiálu, osazení, zapojení, vyzkoušení apod.)
A128: =A124 -> 70 | C128: Vodič CYA4 žlutozelený včetně svorek - doplňkové pospojení | D128: m | E128: 140 | G128: =E128*F128 -> 0 | I128: =E128*H128 -> 0
B130: F. | C130: Rozvaděče | F130: =SUBTOTAL(9,G131:G132) -> 0 | H130: =SUBTOTAL(9,I130:I132) -> 0
C131: (komplet, včetně příslušenství, svorek, pomocného materiálu, osazení, zapojení, vyzkoušení apod.)
A132: =A128+1 -> 71 | C132: Doplnění stávajícího rozvaděče R11 | D132: ks | E132: 1 | G132: =E132*F132 -> 0 | I132: =E132*H132 -> 0
B134: G. | C134: Ostatní | F134: =SUBTOTAL(9,G135:G140) -> 0 | H134: =SUBTOTAL(9,I134:I140) -> 0
A135: =A132+1 -> 72 | C135: Výchozí revize | D135: hod | E135: 10 | G135: =E135*F135 -> 0 | I135: =E135*H135 -> 0
A136: =A135+1 -> 73 | C136: Demontáže včetně likvidace odpadu | D136: hod | E136: 50 | G136: 0 | I136: 0
A137: 74 | C137: Stavební přípomoce | D137: kpl | E137: 1 | F137: --- | G137: --- | I137: 0
A138: =A137+1 -> 75 | C138: Pomocný a podružný materiál upevňovací | D138: kpl | E138: 1 | G138: 0 | I138: 0
A139: 76 | C139: Zednické výpomoci (PPV) | D139: kpl | E139: 1 | F139: --- | G139: --- | I139: 0
A140: 77 | C140: Doprava materiálu | D140: kpl | E140: 1 | F140: --- | G140: --- | I140: 0

Sheet 07_SO 04 - VZT
A1: =CONCATENATE('Rekapitulace stavby'!C59,"_",'Rekapitulace stavby'!I59) -> 07_SO 04 - Vzduchotechnika a chlazení
A3: SPECIFIKACE DODÁVEK A PRACÍ
A4: Název akce:
A5: ='Identifikační údaje'!B1 -> ČRo Brno – II. etapa rekonstrukce budovy Beethovenova 25/4
A7: Zadavatel: | C7: ='Identifikační údaje'!E7 -> Český rozhlas, Vinohradská 12, 120 99 Praha 2 | D7: Projektant: | F7: ='Identifikační údaje'!E12 -> Ing. arch. Klement Miloš, Nejedlého 381/19, 638 00 Brno - Lesná
B8: IČ | C8: ='Identifikační údaje'!B9 -> 45245053 | E8: IČ | F8: ='Identifikační údaje'!B14 -> 15188736
B9: DIČ | C9: ='Identifikační údaje'!B10 -> CZ45245053 | E9: DIČ | F9: ='Identifikační údaje'!B15 -> CZ6101021344
A11: Uchazeč: | C11: ='Identifikační údaje'!E19 -> , , | D11: Místo stavby: | F11: ='Identifikační údaje'!B3 -> Budova Českého rozhlasu Brno na adrese Beethovenova 25/4, 657 42 Brno
B12: IČ | C12: ='Identifikační údaje'!B23 -> 0
B13: DIČ | C13: ='Identifikační údaje'!B24 -> 0
A15: Datum: | C15: ='Identifikační údaje'!B5 -> 00:00:00
A17: P.Č. | B17: Č.Z | C17: Popis položky: | D17: Měrná jednotka | F17: Cena | J17: Poznámka
F18: Jednotková | H18: Celkem
D19: - | E19: počet | F19: Dodávka | G19: Montáž | H19: Dodávka | I19: Montáž
F20: [ Kč ] | G20: [ Kč ] | H20: [ Kč ] | I20: [ Kč ]
C21: =CONCATENATE("REKAPITULACE OBJEKTU ",'Rekapitulace stavby'!I59) -> REKAPITULACE OBJEKTU SO 04 - Vzduchotechnika a chlazení
A22: 1 | B22: 1 | C22: =C53 -> Zařízení č.3 - Větrání sociálních zařízení | D22: kpl | E22: 1 | F22: - | G22: - | H22: =H75 -> 0 | I22: =I75 -> 0 | J22: -
C23: Mezisoučet | H23: =SUM(H22:H22) -> 0 | I23: =SUM(I22:I22) -> 0 | J23: Kč bez DPH
A25: =A22+1 -> 2 | B25: - | C25: Protipožární ucpávky | D25: ks | E25: 8 | H25: =E25*F25 -> 0 | I25: =E25*G25 -> 0 | J25: -
A26: =A25+1 -> 3 | B26: - | C26: Materiál pro spoje, montáž, závěsy, atd. | D26: kpl | E26: 1 | H26: =E26*F26 -> 0 | I26: =E26*G26 -> 0 | J26: -
A27: =A26+1 -> 4 | B27: - | C27: Doprava | D27: kpl | E27: 1 | F27: - | H27: - | I27: =E27*G27 -> 0 | J27: -
A28: 5 | B28: - | C28: Přesuny | D28: kpl | E28: 1 | F28: - | H28: - | I28: 0 | J28: -
A29: 6 | B29: - | C29: Uvedení do provozu, zaregulování, vyzkoušení, předávací řízení | D29: kpl | E29: 1 | F29: - | H29: - | I29: 0 | J29: -
A30: 7 | B30: - | C30: Inženýrská a koordinační činnost | D30: kpl | E30: 1 | F30: - | H30: - | I30: 0 | J30: -
A31: 8 | B31: - | C31: Prováděcí a výrobní projektová dokumentace | D31: kpl | E31: 1 | F31: - | H31: - | I31: 0 | J31: -
A32: 9 | B32: - | C32: Dokumentace konečného provedení, návody, atesty, prohlášení o shodě | D32: kpl | E32: 1 | F32: - | H32: - | I32: 0 | J32: -
C33: Mezisoučet | H33: =SUM(H25:H32) -> 0 | I33: =SUM(I25:I32) -> 0 | J33: Kč bez DPH
A35: CELKEM D+M | C35: =CONCATENATE("OBJEKT ",'Rekapitulace stavby'!I59," v Kč bez DPH") -> OBJEKT SO 04 - Vzduchotechnika a chlazení v Kč bez DPH | H35: =H23+H33+I23+I33 -> 0
A49: P.Č. | B49: Č.P. | C49: Popis položky: | D49: Měrná jednotka | F49: Cena | J49: Poznámka
F50: Jednotková cena | H50: Celková cena
D51: - | E51: počet | F51: Dodávka | G51: Montáž | H51: Dodávka | I51: Montáž
F52: [ Kč ] | G52: [ Kč ] | H52: [ Kč ] | I52: [ Kč ]
C53: Zařízení č.3 - Větrání sociálních zařízení
A54: =A32+1 -> 10 | B54: 3.1 | C54: Ventilátor - referenční výrobek Mixvent TD 800/200 Silent | D54: ks | E54: 1 | H54: =E54*F54 -> 0 | I54: =E54*G54 -> 0
A55: =A54+1 -> 11 | C55: Rychloupínací spona - referenční výrobek VBM 200 | D55: ks | E55: 2 | H55: =E55*F55 -> 0 | I55: =E55*G55 -> 0
A56: =A55+1 -> 12 | C56: Zpětná klapka - referenční výrobek RSK 200 | D56: ks | E56: 1 | H56: 0 | I56: 0
A57: 13 | B57: 3.2 | C57: Ventilátor - referenční výrobek Mixvent TD 500/160 Silent | D57: ks | E57: 11 | H57: 0 | I57: 0
A58: 14 | C58: Rychloupínací spona - referenční výrobek VBM 160 | D58: ks | E58: 22 | H58: 0 | I58: 0
A59: 15 | C59: Zpětná klapka - referenční výrobek RSK 160 | D59: ks | E59: 11 | H59: 0 | I59: 0
A60: 16 | B60: 3.3 | C60: Ventilátor - referenční výrobek Mixvent TD 350/125 Silent | D60: ks | E60: 7 | H60: 0 | I60: 0
A61: 17 | C61: Rychloupínací spona - referenční výrobek VBM 125 | D61: ks | E61: 14 | H61: 0 | I61: 0
A62: 18 | C62: Zpětná klapka - referenční výrobek RSK 125 | D62: ks | E62: 7 | H62: 0 | I62: 0
A63: 19 | B63: 3.4 | C63: Talířový ventil - referenční výrobek DAVBR 125 | D63: ks | E63: 71 | H63: 0 | I63: 0
A64: 20 | B64: 3.5 | C64: Talířový ventil - referenční výrobek DAVBR 200 | D64: ks | E64: 2 | H64: 0 | I64: 0
A65: 21 | B65: 3.6 | C65: Stěnová mřížka - referenční výrobek NOVA - L - 1 - 1 - 300 x 100 - 20,0 | D65: ks | E65: 140 | H65: 0 | I65: 0
A66: 22 | B66: 0 | C66: Trouba SPIRO - 125 - včetně tvarovek | D66: bm | E66: 10 | H66: 0 | I66: 0
A67: 23 | B67: 0 | C67: Trouba SPIRO - 160 - včetně tvarovek | D67: bm | E67: 66 | H67: 0 | I67: 0
A68: 24 | B68: 0 | C68: Trouba SPIRO - 200 - včetně tvarovek | D68: bm | E68: 21 | H68: 0 | I68: 0
A69: 25 | B69: 0 | C69: Trouba SPIRO - 250 - včetně tvarovek | D69: bm | E69: 34 | H69: 0 | I69: 0
A70: 26 | C70: Čtyřhranné ocel. potrubí sk. I včetně tvarovek | D70: m2 | E70: 58 | H70: 0 | I70: 0
A71: 27 | C71: Ohebná hadice Sonodec 25 - 127 | D71: bm | E71: 312 | H71: 0 | I71: 0
A72: 28 | C72: Ohebná hadice Sonodec 25 - 203 | D72: bm | E72: 12 | H72: 0 | I72: 0
A73: 29 | C73: Ohebná hadice Sonodec 25 - 160 | D73: bm | E73: 44 | H73: 0 | I73: 0
A74: 30 | C74: Tep a protihluk.izol.tl. 6 cm - venkovní s oplechováním | D74: m2 | E74: 5 | H74: 0 | I74: 0
A75: =CONCATENATE(C53," - celkem") -> Zařízení č.3 - Větrání sociálních zařízení - celkem | H75: =SUM(H54:H74) -> 0 | I75: =SUM(I54:I74) -> 0 | J75: bez DPH

Sheet 08_SO 04 - Slaboproud
A1: =CONCATENATE('Rekapitulace stavby'!C60,"_",'Rekapitulace stavby'!I60) -> 08_SO 04 - Slaboproudá elektroinstalace
A3: SPECIFIKACE DODÁVEK A PRACÍ
A4: Název akce:
A5: ='Identifikační údaje'!B1 -> ČRo Brno – II. etapa rekonstrukce budovy Beethovenova 25/4
A7: Zadavatel: | C7: ='Identifikační údaje'!E7 -> Český rozhlas, Vinohradská 12, 120 99 Praha 2
B8: IČ: | C8: ='Identifikační údaje'!B9 -> 45245053
B9: DIČ: | C9: ='Identifikační údaje'!B10 -> CZ45245053
A11: Projektant: | C11: ='Identifikační údaje'!E12 -> Ing. arch. Klement Miloš, Nejedlého 381/19, 638 00 Brno - Lesná
B12: IČ: | C12: ='Identifikační údaje'!B14 -> 15188736
B13: DIČ: | C13: ='Identifikační údaje'!B15 -> CZ6101021344
A15: Uchazeč: | C15: ='Identifikační údaje'!E19 -> , ,
B16: IČ: | C16: ='Identifikační údaje'!B23 -> 0
B17: DIČ: | C17: ='Identifikační údaje'!B24 -> 0
A19: Místo stavby: | C19: ='Identifikační údaje'!B3 -> Budova Českého rozhlasu Brno na adrese Beethovenova 25/4, 657 42 Brno
A21: Datum: | C21: ='Identifikační údaje'!B5 -> 00:00:00
A23: =CONCATENATE("REKAPITULACE DODÁVEK A PRACÍ OBJEKTU ",'Rekapitulace stavby'!I60) -> REKAPITULACE DODÁVEK A PRACÍ OBJEKTU SO 04 - Slaboproudá elektroinstalace
A25: P.č. | B25: Ozn. | D25: Materiál celkem | F25: Montáž celkem | H25: M+M celkem
A27: =B39 -> A. | B27: =C39 -> SIGNALIZAČNÍ SYSTÉM PRO INVALIDNÍ OSOBY | D27: =F39 -> 0 | F27: =H39 -> 0 | H27: =D27+F27 -> 0
A28: =B47 -> B. | B28: =C47 -> Kabely a vodiče | D28: =F47 -> 0 | F28: =H47 -> 0 | H28: =D28+F28 -> 0
A29: =B51 -> G. | B29: =C51 -> Ostatní | D29: =F51 -> 0 | F29: =H51 -> 0 | H29: 0
A31: =CONCATENATE("CELKEM ZA OBJEKT ",'Rekapitulace stavby'!I60, " v Kč bez DPH") -> CELKEM ZA OBJEKT SO 04 - Slaboproudá elektroinstalace v Kč bez DPH | H31: =SUBTOTAL(9,H27:I29) -> 0
A33: Textová, výkresová i tabulková část projektové dokumentace tvoří jeden vzájemně se doplňující a provázaný celek. Jednotliví účastníci výběrového řízení se musí seznámit s projektojektovou dokumentací v návaznosti na soupis prací a na základě těchto informací části díla nacenit. Dále je potřeba při stanovení ceny dle vykázané výměry započítat všechny předpokládané doplňkové prvky a činnosti s touto položkou související tak, aby cena byla kompletní a prvek funkční.
A36: =A1 -> 08_SO 04 - Slaboproudá elektroinstalace
F37: Materiál | H37: Montáž
A38: poř.č. | B38: položka | C38: popis položky | D38: MJ | E38: množství | F38: jedn.cena | G38: celkem [Kč] | H38: jedn.cena | I38: celkem [Kč]
B39: A. | C39: SIGNALIZAČNÍ SYSTÉM PRO INVALIDNÍ OSOBY | F39: =SUBTOTAL(9,G40:G45) -> 0 | H39: =SUBTOTAL(9,I40:I45) -> 0
A40: 1 | C40: Transformátor | D40: ks | E40: 5 | G40: =E40*F40 -> 0 | I40: =E40*H40 -> 0
A41: =A40+1 -> 2 | C41: Modul kontrolní s alarmem, bílé | D41: ks | E41: 5 | G41: =E41*F41 -> 0 | I41: =E41*H41 -> 0
A42: 3 | C42: Tlačítko prosvětlené, bílé | D42: ks | E42: 5 | G42: 0 | I42: =E42*H42 -> 0
A43: 4 | C43: Tlačítko signální táhové, bílé | D43: ks | E43: 5 | G43: 0 | I43: =E43*H43 -> 0
A44: 5 | C44: Dvojrámeček dle silnoproudu svislý, bílý | D44: ks | E44: 5 | G44: 0 | I44: =E44*H44 -> 0
A45: 6 | C45: Jednoduchý rámeček dle silnoproudu bílý | D45: ks | E45: 5 | G45: 0 | I45: =E45*H45 -> 0
B47: B. | C47: Kabely a vodiče | F47: =SUBTOTAL(9,G48:G48) -> 0 | H47: =SUBTOTAL(9,I47:I48) -> 0
A48: =A45+1 -> 7 | C48: CYKY J 3x1,5 | D48: m | E48: 110 | G48: =E48*F48 -> 0 | I48: =E48*H48 -> 0
B51: G. | C51: Ostatní | F51: =SUBTOTAL(9,G52:G55) -> 0 | H51: =SUBTOTAL(9,I51:I55) -> 0
A52: =A48+1 -> 8 | C52: Protokol o zkoušce funkčnosti instalovaného systému | D52: kpl | E52: 1 | G52: =E52*F52 -> 0 | I52: =E52*H52 -> 0
A53: =A52+1 -> 9 | C53: Stavební přípomoce | D53: kpl | E53: 1 | F53: --- | G53: --- | I53: 0
A54: 10 | C54: Pomocný a podružný materiál upevňovací | D54: kpl | E54: 1 | G54: 0 | I54: 0
A55: 11 | C55: Doprava materiálu | D55: kpl | E55: 1 | F55: --- | G55: --- | I55: 0

Sheet 09_SO 04 - ZTI
A1: =CONCATENATE('Rekapitulace stavby'!C61,"_",'Rekapitulace stavby'!I61) -> 09_SO 04 - Zdravotně technické instalace
A3: SPECIFIKACE DODÁVEK A PRACÍ
A4: Název akce:
A5: ='Identifikační údaje'!B1 -> ČRo Brno – II. etapa rekonstrukce budovy Beethovenova 25/4
A7: Zadavatel: | D7: ='Identifikační údaje'!E7 -> Český rozhlas, Vinohradská 12, 120 99 Praha 2
C8: IČ: | D8: ='Identifikační údaje'!B9 -> 45245053
C9: DIČ: | D9: ='Identifikační údaje'!B10 -> CZ45245053
A11: Projektant: | D11: ='Identifikační údaje'!E12 -> Ing. arch. Klement Miloš, Nejedlého 381/19, 638 00 Brno - Lesná
C12: IČ: | D12: ='Identifikační údaje'!B14 -> 15188736
C13: DIČ: | D13: ='Identifikační údaje'!B10 -> CZ45245053
A15: Uchazeč: | D15: ='Identifikační údaje'!E19 -> , ,
C16: IČ: | D16: ='Identifikační údaje'!B23 -> 0
C17: DIČ: | D17: ='Identifikační údaje'!B24 -> 0
A19: Místo stavby: | D19: ='Identifikační údaje'!B3 -> Budova Českého rozhlasu Brno na adrese Beethovenova 25/4, 657 42 Brno
A21: Datum: | D21: ='Identifikační údaje'!B5 -> 00:00:00
A23: =CONCATENATE("REKAPITULACE DODÁVEK A PRACÍ OBJEKTU ",'Rekapitulace stavby'!I61) -> REKAPITULACE DODÁVEK A PRACÍ OBJEKTU SO 04 - Zdravotně technické instalace
A25: P.č. | C25: Ozn. | D25: Název položky | I25: Kč bez DPH
A27: Díl: | B27: =A68 -> 1 | D27: =C68 -> Stavební úpravy | I27: =I76 -> 0
A28: Díl: | B28: =A80 -> 2 | D28: =C80 -> Vnitřní kanalizace | I28: =I130 -> 0
A29: Díl: | B29: =A134 -> 3 | D29: =C134 -> Vnitřní vodovod | I29: =I213 -> 0
A30: Díl: | B30: =A217 -> 4 | D30: =C217 -> Zařizovací předměty | I30: =I274 -> 0
A32: =CONCATENATE("CELKEM ZA OBJEKT ",'Rekapitulace stavby'!I61, " v Kč bez DPH") -> CELKEM ZA OBJEKT SO 04 - Zdravotně technické instalace v Kč bez DPH | I32: =SUM(I27:J30) -> 0
A36: Poznámky:
A37: Při oceňování stavby je třeba se řídit také technickou zprávou a výkresovou dokumentací.
A38: Standardy výrobků jsou uvedeny v položkách tohoto výkazu výměr a nejsou-li uvedeny zde, pak popisem nebo příkladem v technické zprávě.
A39: S ohledem na skutečnost, že II. etapa rekonstrukce navazuje na etapu I. jsou předepsané referenční výrobky v položce tohoto výkazu
A40: výměr závazné, neb stejné jsou již do objektu osazeny v předchozí etapě rekonstrukce.
A41: Všechny položky zahrnují montáž.
A42: Ostatní zemní práce jsou ve stavebním rozpočtu.
A68: 1 | C68: Stavební úpravy
A69: poř.č. | C69: popis položky | G69: MJ | H69: množství | I69: jedn.cena | J69: celkem [Kč]
A70: 1 | C70: Sekání drážek šířky do 300 mm | G70: m | H70: 230 | J70: =I70*H70 -> 0
A71: =A70+1 -> 2 | C71: Zaomítání drážek šíř.do 300mm vč. dodání materiálu | G71: m | H71: 230 | J71: =I71*H71 -> 0
A72: =A71+1 -> 3 | C72: Vybourání prostupů stropem | G72: ks | H72: 70 | J72: =I72*H72 -> 0
A73: 4 | C73: Zapravení prostupů stropem | G73: ks | H73: 70 | J73: 0
A74: 5 | C74: Odvoz suti na skládku s naložením | G74: t | H74: 3 | J74: 0
A75: 6 | C75: Poplatek za skládku | G75: t | H75: 3 | J75: 0
A76: =CONCATENATE("Celkem Kč bez DPH za ",A68," - ",C68) -> Celkem Kč bez DPH za 1 - Stavební úpravy | I76: =SUM(J70:J75) -> 0
A80: 2 | C80: Vnitřní kanalizace
A81: poř.č. | C81: popis položky | G81: MJ | H81: množství | I81: jedn.cena | J81: celkem [Kč]
A82: =A75+1 -> 7 | C82: Potrubí PP HT Ø 40 | G82: m | H82: 2 | J82: =I82*H82 -> 0
A83: =A82+1 -> 8 | C83: Potrubí PP HT Ø 50 | G83: m | H83: 128 | J83: 0
A84: =A83+1 -> 9 | C84: Potrubí PP HT Ø 75 | G84: m | H84: 25 | J84: 0
A85: 10 | C85: Potrubí PP HT Ø 110 | G85: m | H85: 97 | J85: 0
A86: 11 | C86: Potrubí PP HT Ø 125 | G86: m | H86: 47 | J86: 0
A87: 12 | C87: Potrubí tlumicí hluk Ø 75 | G87: m | H87: 8 | J87: 0
A88: 13 | C88: Potrubí tlumicí hluk Ø 110 | G88: m | H88: 41 | J88: 0
A89: 14 | C89: Potrubí tlumicí hluk Ø 125 | G89: m | H89: 12 | J89: 0
A90: 15 | C90: Svařované PE potrubí Ø 75 | G90: m | H90: 39 | J90: 0
A91: 16 | C91: Hlukově optimalizované PP potrubí Ø 110 | G91: m | H91: 38 | J91: 0
A92: 17 | C92: Hlukově optimalizované PP potrubí Ø 125 | G92: m | H92: 58 | J92: 0
A93: 18 | C93: Potrubí PPR, PN 10 Ø 32 | G93: m | H93: 23 | J93: 0
A94: 19 | C94: Ochrana potrubí Ø 32 plstí | G94: m | H94: 23 | J94: 0
A95: 20 | C95: Tepelná izolace tl. 20 mm Ø 125 | G95: m | H95: 16 | J95: 0
A96: 21 | C96: Připoj.klimat.jednotek pomocí hadice s koncovkami | G96: Soub. | H96: 5 | J96: 0
A97: 22 | C97: Vyvedení a upevnění výpustek do Ø 40 | G97: ks | H97: 35 | J97: 0
A98: 23 | C98: Vyvedení a upevnění výpustek do Ø 50 | G98: ks | H98: 29 | J98: 0
A99: 24 | C99: Vyvedení a upevnění výpustek Ø 110 | G99: ks | H99: 41 | J99: 0
A100: 25 | C100: Přivzdušňovací ventil podomítkový Ø 50 | G100: ks | H100: 1 | J100: 0
A101: 26 | C101: Přivzdušňovací ventil Ø 50 | G101: ks | H101: 1 | J101: 0
A102: 27 | C102: Plastová růžice Ø 110 | G102: ks | H102: 3 | J102: 0
A103: 28 | C103: Plechová růžice Ø 125 | G103: ks | H103: 2 | J103: 0
A104: 29 | C104: Oplechování větracího potrubí Ø 75 | G104: Soub. | H104: 1 | J104: 0
A105: 30 | C105: Oplechování větracího potrubí Ø 125 | G105: Soub. | H105: 1 | J105: 0
A106: 31 | C106: Podomítkový sifon s vodní a mech.zápach.uzávěrkou | G106: ks | H106: 2 | J106: 0
A107: 32 | C107: Vpust podlahová Ø 50 s vodní a mechanickou záp. uz. | G107: ks | H107: 6 | J107: 0
A108: 33 | C108: Střešní vtok se svislým odtokem Ø 125 a el. ohřevem | G108: ks | H108: 8 | J108: 0
A109: 34 | C109: Nástavec pro střešní vtok | G109: ks | H109: 8 | J109: 0
A110: 35 | C110: Ocelové konstrukce pro upevnění potrubí | G110: Soub. | H110: 1 | J110: 0
A111: 36 | C111: Krycí dvířka 150 x 300 mm | G111: ks | H111: 4 | J111: 0
A112: 37 | C112: Krycí dvířka 300 x 300 mm | G112: ks | H112: 3 | J112: 0
A113: 38 | C113: Demontáž potrubí z litinových trub do DN 100 | G113: m | H113: 141 | J113: 0
A114: 39 | C114: Demontáž potrubí z litinových trub DN 125 | G114: m | H114: 120 | J114: 0
A115: 40 | C115: Demontáž potrubí z PVC do Ø 75 | G115: m | H115: 132 | J115: 0
A116: 41 | C116: Demontáž potrubí z PVC Ø 110 | G116: m | H116: 30 | J116: 0
A117: 42 | C117: Demontáž flexibilní trubky PPH Ø 110 vč. patk.kolena | G117: m | H117: 38 | J117: 0
A118: 43 | C118: Demontáž vpusti podlahové DN 100 | G118: ks | H118: 8 | J118: 0
A119: 44 | C119: Napojení nového na stávající potrubí Ø 75 | G119: Soub. | H119: 3 | J119: 0
A120: 45 | C120: Napojení nového na stávající potrubí Ø 110 | G120: Soub. | H120: 3 | J120: 0
A121: 46 | C121: Napojení nového na stávající potrubí Ø 125 | G121: Soub. | H121: 3 | J121: 0
A122: 47 | C122: Protipožární manžeta Ø 50 | G122: ks | H122: 3 | J122: 0
A123: 48 | C123: Protipožární manžeta Ø 75 | G123: ks | H123: 2 | J123: 0
A124: 49 | C124: Protipožární manžeta Ø 110 | G124: ks | H124: 22 | J124: 0
A125: 50 | C125: Protipožární manžeta Ø 125 | G125: ks | H125: 21 | J125: 0
A126: 51 | C126: Zkouška těsnosti kanalizace plynem | G126: m | H126: 518 | J126: 0
A127: 52 | C127: Odvoz demontovaného materiálu | G127: t | H127: 6.22 | J127: 0
A128: 53 | C128: Přesun hmot (do výšky 36 m) | G128: kpl | H128: 1 | J128: 0
A129: 54 | C129: Výpomoc HSV | G129: h | H129: 224 | J129: 0
A130: =CONCATENATE("Celkem Kč bez DPH za ",A80," - ",C80) -> Celkem Kč bez DPH za 2 - Vnitřní kanalizace | I130: =SUM(J82:J129) -> 0
A134: 3 | C134: Vnitřní vodovod
A135: poř.č. | C135: popis položky | G135: jedn. | H135: množství | I135: jedn.cena | J135: celkem [Kč]
A136: =A129+1 -> 55 | C136: Potrubí PP typ 3, PN 20 Ø 16 x 2,7 | G136: m | H136: 56 | J136: =I136*H136 -> 0
A137: =A136+1 -> 56 | C137: Potrubí PP typ 3, PN 20 Ø 20 x 3,4 | G137: m | H137: 251 | J137: 0
A138: =A137+1 -> 57 | C138: Potrubí PP typ 3, PN 20 Ø 25 x 4,2 | G138: m | H138: 106 | J138: 0
A139: 58 | C139: Potrubí PP typ 3, PN 20 Ø 32 x 5,4 | G139: m | H139: 22 | J139: 0
A140: 59 | C140: Potrubí PP s hliníkovou vložkou Ø 20 x 2,8 | G140: m | H140: 95 | J140: 0
A141: 60 | C141: Potrubí PP s hliníkovou vložkou Ø 25 x 3,5 | G141: m | H141: 125 | J141: 0
A142: 61 | C142: Potrubí PP s hliníkovou vložkou Ø 32 x 4,5 | G142: m | H142: 110 | J142: 0
A143: 62 | C143: Potrubí PP s hliníkovou vložkou Ø 40 x 5,6 | G143: m | H143: 65 | J143: 0
A144: 63 | C144: Potrubí PP s hliníkovou vložkou Ø 50 x 6,9 | G144: m | H144: 68 | J144: 0
A145: 64 | C145: Potrubí PP s hliníkovou vložkou Ø 63 x 8,7 | G145: m | H145: 15 | J145: 0
A146: 65 | C146: Potrubí ocelové závitové pozinkované DN 25 | G146: m | H146: 2 | J146: 0
A147: 66 | C147: Potrubí ocelové závitové pozinkované DN 32 | G147: m | H147: 28 | J147: 0
A148: 67 | C148: Potrubí ocelové závitové pozinkované DN 50 | G148: m | H148: 42 | J148: 0
A149: 68 | C149: Ochrana potrubí DN 25 plstí | G149: m | H149: 2 | J149: 0
A150: 69 | C150: Ochrana potrubí DN 32 plstí | G150: m | H150: 28 | J150: 0
A151: 70 | C151: Ochrana potrubí DN 50 plstí | G151: m | H151: 42 | J151: 0
A152: 71 | C152: Návleková izolace tl. 9 mm Ø 16 | G152: m | H152: 56 | J152: 0
A153: 72 | C153: Návleková izolace tl. 9 mm Ø 20 | G153: m | H153: 251 | J153: 0
A154: 73 | C154: Návleková izolace tl. 9 mm Ø 25 | G154: m | H154: 106 | J154: 0
A155: 74 | C155: Návleková izolace tl. 9 mm Ø 32 | G155: m | H155: 22 | J155: 0
A156: 75 | C156: Návleková izolace tl. 19 mm Ø 20 | G156: m | H156: 95 | J156: 0
A157: 76 | C157: Návleková izolace tl. 19 mm Ø 25 | G157: m | H157: 125 | J157: 0
A158: 77 | C158: Návleková izolace tl. 19 mm Ø 32 | G158: m | H158: 110 | J158: 0
A159: 78 | C159: Návleková izolace tl. 19 mm Ø 40 | G159: m | H159: 65 | J159: 0
A160: 79 | C160: Návleková izolace tl. 19 mm Ø 50 | G160: m | H160: 68 | J160: 0
A161: 80 | C161: Návleková izolace tl. 19 mm Ø 63 | G161: m | H161: 15 | J161: 0
A162: 81 | C162: Demontáž potrubí ocel. pozinkovaného do DN 25 | G162: m | H162: 648 | J162: 0
A163: 82 | C163: Demont.potrubí ocel.pozinkovaného DN 32 a DN 40 | G163: m | H163: 129 | J163: 0
A164: 83 | C164: Demontáž potrubí ocel. pozinkovaného DN 50 | G164: m | H164: 23 | J164: 0
A165: 84 | C165: Demontáž potrubí ocel. pozinkovaného DN 80 | G165: m | H165: 47 | J165: 0
A166: 85 | C166: Demontáž plstěných pásů z trubek do DN 25 | G166: m | H166: 648 | J166: 0
A167: 86 | C167: Demontáž plstěných pásů z trubek DN 32 a DN 40 | G167: m | H167: 129 | J167: 0
A168: 87 | C168: Demontáž plstěných pásů z trubek DN 50 | G168: m | H168: 23 | J168: 0
A169: 88 | C169: Demontáž plstěných pásů z trubek DN 80 | G169: m | H169: 47 | J169: 0
A170: 89 | C170: Demontáž armatur s jedním závitem DN 15 | G170: ks | H170: 7 | J170: 0
A171: 90 | C171: Demontáž armatur se dvěma závity do Ø 3/4" | G171: ks | H171: 47 | J171: 0
A172: 91 | C172: Demontáž armatur se dvěma závity Ø 1" | G172: ks | H172: 10 | J172: 0
A173: 92 | C173: Demontáž armatur se dvěma závity Ø 6/4" | G173: ks | H173: 4 | J173: 0
A174: 93 | C174: Demontáž hydrantu 52 C | G174: ks | H174: 12 | J174: 0
A175: 94 | C175: Demontáž cirkulačního čerpadla | G175: ks | H175: 1 | J175: 0
A176: 95 | C176: Napojení nového na stávající potrubí do Ø 32 | G176: Soub. | H176: 13 | J176: 0
A177: 96 | C177: Napojení nového na stávající potrubí Ø 40 až 63 | G177: Soub. | H177: 5 | J177: 0
A178: 97 | C178: Napojení nového na stávající potrubí DN 80 | G178: Soub. | H178: 2 | J178: 0
A179: 98 | C179: Propojení stávajícího potrubí do Ø 32 | G179: Soub. | H179: 2 | J179: 0
A180: 99 | C180: Vyvedení a upevnění výpustek DN 15 | G180: ks | H180: 169 | J180: 0
A181: 100 | C181: Nástěnka DN 15 | G181: ks | H181: 169 | J181: 0
A182: 101 | C182: Kulový kohout DN 15 | G182: ks | H182: 14 | J182: 0
A183: 102 | C183: Kulový kohout DN 20 | G183: ks | H183: 19 | J183: 0
A184: 103 | C184: Kulový kohout DN 25 | G184: ks | H184: 10 | J184: 0
A185: 104 | C185: Kulový kohout DN 32 | G185: ks | H185: 1 | J185: 0
A186: 105 | C186: Kulový kohout DN 40 | G186: ks | H186: 2 | J186: 0
A187: 106 | C187: Kulový kohout DN 15 s odvodněním | G187: ks | H187: 1 | J187: 0
A188: 107 | C188: Kulový kohout DN 20 s odvodněním | G188: ks | H188: 5 | J188: 0
A189: 108 | C189: Regulační ventil termostatický DN 15 | G189: ks | H189: 2 | J189: 0
A190: 109 | C190: Regulační ventil termostatický DN 20 | G190: ks | H190: 1 | J190: 0
A191: 110 | C191: Mechanický šikmý filtr DN 20 | G191: ks | H191: 5 | J191: 0
A192: 111 | C192: Zpětný ventil DN 20 | G192: ks | H192: 5 | J192: 0
A193: 112 | C193: Ventil na hadici se zpět.a zavzduš.ventilem DN 15 | G193: ks | H193: 1 | J193: 0
A194: 113 | C194: Vypouštěcí kohout kulový DN 15 | G194: ks | H194: 3 | J194: 0
A195: 114 | C195: Protipožární pěna | G195: balení | H195: 5 | J195: 0
A196: 115 | C196: Cirkulační čerpadlo | G196: ks | H196: 1 | J196: 0
A197: 116 | C197: Úprava potrubí u cirkulačního čerpadla | G197: Soub. | H197: 1 | J197: 0
A198: 117 | C198: Vodoměr na studenou vodu DN 15 | G198: ks | H198: 1 | J198: 0
A199: 118 | C199: Vodoměr na teplou vodu DN 15 | G199: ks | H199: 1 | J199: 0
A200: 119 | C200: Dvířka krycí 300 x 300 mm | G200: ks | H200: 27 | J200: =I200*H200 -> 0
A201: 120 | C201: Hadicový systém s hadicí DN 19 bez skříňky | G201: ks | H201: 1 | J201: 0
A202: =A201+1 -> 121 | C202: Hadicový systém s hadicí DN 25 bez skříňky | G202: ks | H202: 5 | J202: 0
A203: 122 | C203: Hadicový systém s hadicí DN 19, prosklená skříňka | G203: ks | H203: 3 | J203: 0
A204: 123 | C204: Hadicový systém s hadicí DN 25, prosklená skříňka | G204: ks | H204: 3 | J204: 0
A205: 124 | C205: Tlaková zkouška vodovodního potrubí | G205: m | H205: 985 | J205: 0
A206: 125 | C206: Proplach a desinfekce vodovodního potrubí | G206: m | H206: 985 | J206: 0
A207: 126 | C207: Odvoz demontovaného materiálu | G207: t | H207: 3.1 | J207: 0
A208: 127 | C208: Uzavř.nebo otevř.potr.při opr. vč. vypušť. a napušť. | G208: ks | H208: 20 | J208: 0
A209: 128 | C209: Přesun hmot (do výšky 36 m) | G209: kpl | H209: 1 | J209: 0
A210: 129 | C210: Výpomoc HSV | G210: h | H210: 224 | J210: 0
A211: 130 | C211: Ekvipotenciální propojení kovového potrubí (vodič) | G211: m | H211: 30 | J211: 0
A212: 131 | C212: Revize ekvipotenciálního propojení | G212: Soub. | H212: 1 | J212: 0
A213: =CONCATENATE("Celkem Kč bez DPH za ",A134," - ",C134) -> Celkem Kč bez DPH za 3 - Vnitřní vodovod | I213: =SUM(J136:J212) -> 0
A217: 4 | C217: Zařizovací předměty
A218: poř.č. | C218: popis položky | G218: MJ | H218: množství | I218: jedn.cena | J218: celkem [Kč]
A219: =A212+1 -> 132 | C219: Záchodová mísa závěsná keramická bílá | G219: ks | H219: 31 | J219: =I219*H219 -> 0
A220: =A219+1 -> 133 | C220: Záchodové sedátko plastové bílé | G220: ks | H220: 31 | J220: 0
A221: =A220+1 -> 134 | C221: Montážní prvek pro záchodovou mísu s integrov.nádržkou | G221: ks | H221: 31 | J221: 0
A222: 135 | C222: Ovládací tlačítko 3/6 l k montážnímu prvku | G222: ks | H222: 31 | J222: 0
A223: 136 | C223: Záchodová mísa závěs.keram.bílá pro těl.postižené | G223: ks | H223: 5 | J223: 0
A224: 137 | C224: Záchodové sedátko plastové bílé | G224: ks | H224: 5 | J224: 0
A225: 138 | C225: Mont.prvek pro záchod.mísu pro těl.postiž.s nádržkou | G225: ks | H225: 5 | J225: 0
A226: 139 | C226: Sada pro oddálené splachování | G226: ks | H226: 5 | J226: 0
A227: 140 | C227: Sklopné a pevné madlo | G227: Soub. | H227: 5 | J227: 0
A228: 141 | C228: Výlevka keramická závěsná bílá | G228: ks | H228: 4 | J228: 0
A229: 142 | C229: Montážní prvek pro záchodovou mísu s integrov.nádržkou | G229: ks | H229: 4 | J229: 0
A230: 143 | C230: Ovládací tlačítko 6 l k montážnímu prvku | G230: ks | H230: 4 | J230: 0
A231: 144 | C231: Směš.baterie nástěnná pochrom.s dlouh.otoč.výtok. | G231: ks | H231: 6 | J231: 0
A232: 145 | C232: Výlevka keramická bílá stojící na podlaze | G232: ks | H232: 2 | J232: 0
A233: 146 | C233: Nádržkový splachovač vysoko položený | G233: ks | H233: 2 | J233: 0
A234: 147 | C234: Splachovací trubka komplet | G234: Soub. | H234: 2 | J234: 0
A235: 148 | C235: Napojovací tvarovka Ø 110 | G235: ks | H235: 2 | J235: 0
A236: 149 | C236: Rohový ventil pochromovaný DN 15 s filtrem | G236: ks | H236: 113 | J236: 0
A237: 150 | C237: Umyvadlo keramické bílé s otvorem pro baterii JIKA CUBITO 85 cm (návaznost na předchozí instalace) | G237: ks | H237: 30 | J237: 0
A238: 151 | C238: Zápachová uzávěrka umyvadlová pochromovaná | G238: ks | H238: 30 | J238: 0
A239: 152 | C239: Směš.baterie jednopáková umyvadlov.jednootvorová NOVASERVIS UMYVADLOVÁ BATERIE S KOVOVOU VÝPUSTÍ OVAL CHROM (návaznost na předchozí instalace) | G239: ks | H239: 35 | J239: 0
A240: 153 | C240: Umývátko keramické bílé s otvorem pro baterii JIKA CUBITO 50 cm (návaznost na předchozí instalace) | G240: ks | H240: 1 | J240: 0
A241: 154 | C241: Umyvadlo keramické bílé pro tělesně postižené | G241: ks | H241: 4 | J241: 0
A242: 155 | C242: Svislé madlo k umyvadlu | G242: ks | H242: 5 | J242: 0
A243: 156 | C243: Zápachová uzávěrka umyvadlová podomítková | G243: ks | H243: 5 | J243: 0
A244: 157 | C244: Bidet keramický závěsný bílý | G244: ks | H244: 1 | J244: 0
A245: 158 | C245: Montážní prvek pro závěsný bidet | G245: ks | H245: 1 | J245: 0
A246: 159 | C246: Zápachová uzávěrka bidetová | G246: ks | H246: 1 | J246: 0
A247: 160 | C247: Směšovací baterie bidetová | G247: ks | H247: 1 | J247: 0
... 27 more rows

Sheet 10_SO 12 - Stav arch část
A1: =CONCATENATE('Rekapitulace stavby'!C63,"_",'Rekapitulace stavby'!I63) -> 10_SO 12 - Stavebně - architektonická část
A3: SPECIFIKACE DODÁVEK A PRACÍ
A4: Název akce:
A5: ='Identifikační údaje'!B1 -> ČRo Brno – II. etapa rekonstrukce budovy Beethovenova 25/4
A7: Zadavatel: | C7: ='[2]Identifikační údaje'!E7 -> Český rozhlas, Vinohradská 12, 120 99 Praha 2
B8: IČ: | C8: ='[2]Identifikační údaje'!B9 -> 45245053
B9: DIČ: | C9: ='[2]Identifikační údaje'!B10 -> CZ45245053
A11: Projektant: | C11: ='[2]Identifikační údaje'!E12 -> Ing. arch. Klement Miloš, Nejedlého 381/19, 638 00 Brno - Lesná
B12: IČ: | C12: ='[2]Identifikační údaje'!B14 -> 15188736
B13: DIČ: | C13: ='[2]Identifikační údaje'!B15 -> CZ6101021344
A15: Uchazeč: | C15: ='[2]Identifikační údaje'!E19 -> Tomáš, Sedláčkova, 21700 Praha
B16: IČ: | C16: ='[2]Identifikační údaje'!B23 -> 1312345
B17: DIČ: | C17: ='[2]Identifikační údaje'!B24 -> CZ12312345
A19: Místo stavby: | C19: ='[2]Identifikační údaje'!B3 -> Budova Českého rozhlasu Brno na adrese Beethovenova 25/4, 657 42 Brno
A21: Datum vyplnění: | C21: ='[2]Identifikační údaje'!B5 -> 2018-03-12
A23: =CONCATENATE("REKAPITULACE DODÁVEK A PRACÍ OBJEKTU ",'Rekapitulace stavby'!I63) -> REKAPITULACE DODÁVEK A PRACÍ OBJEKTU SO 12 - Stavebně - architektonická část
A25: P.č. | B25: Číslo položky | C25: Název položky | D25: Kč bez DPH
B26: Ceník, kapitola
A27: Díl: | B27: =B41 -> 1 | C27: =C41 -> Stavební práce navazující na rekonstrukcí systému ÚT | G27: =G41 -> 0
A28: Díl: | B28: =B94 -> 2 | C28: =C94 -> Stavební práce navazující na rekonstrukcí silnoproudé části elektro | G28: =G94 -> 0
A29: Díl: | B29: =B134 -> 3 | C29: =C134 -> Stavební práce navazující na první etapu | G29: =G134 -> 0
A30: Díl: | B30: =B147 -> 4 | C30: =C147 -> Dočasné stavební práce a konstrukce | G30: =G147 -> 0
A32: =CONCATENATE("CELKEM ZA OBJEKT ",'Rekapitulace stavby'!I63, " v Kč bez DPH") -> CELKEM ZA OBJEKT SO 12 - Stavebně - architektonická část v Kč bez DPH | G32: =SUM(G27:G31) -> 0
A39: P.č. | B39: Číslo položky | C39: Název položky | D39: MJ | E39: množství | F39: cena / MJ | G39: celkem
B40: Ceník, kapitola | C40: Poznámka uchazeče
A41: Díl: | B41: 1 | C41: Stavební práce navazující na rekonstrukcí systému ÚT | G41: =SUBTOTAL(9,G42:G93) -> 0 | AB41: POL | AJ41: 21
A42: 1 | B42: 73001 pol.3 | C42: Protipožární utěsnění stupaček ÚT | D42: ks | E42: =SUM(E43:E49) -> 7 | G42: =E42*F42 -> 0
C43: přízemí:4 | E43: 4
C44: mezipatro:3 | E44: 3
C45: 1.patro:0
C46: 2.patro:0
C47: 3.patro:0
C48: 4.patro:0
C49: 5.patro:0
A50: =A42+1 -> 2 | B50: 73001 pol.4 | C50: Akustické utěsnění stupaček tvrdou minerální vatou | D50: ks | E50: =SUM(E51:E56) -> 29 | G50: =E50*F50 -> 0
C51: přízemí:10 | E51: 10
C52: mezipatro:6 | E52: 6
C53: 1.patro:9 | E53: 9
C54: 2.patro:4 | E54: 4
C55: 3.patro:5
C56: 4.patro:4
A57: =A50+1 -> 3 | B57: 73001 pol.5 | C57: Zapravení svislé drážky po rozvodech ÚT | D57: m2 | E57: =SUM(E58:E63) -> 25.98 | G57: =E57*F57 -> 0
C58: přízemí:0,20*3,55*10 | E58: 7.1
C59: mezipatro:0,20*3,70*8 | E59: 5.92
C60: 1.patro:0,20*3,00*9 | E60: 5.4
C61: 2.patro:0,20*3,00*4 | E61: 2.4
C62: 3.patro:0,20*2,80*5 | E62: 2.8
C63: 4.patro:0,20*2,95*4 | E63: 2.36
A64: =A57+1 -> 4 | B64: 73001 pol.8 | C64: Stupačky ÚT budou opláštěny SDK obkladem vč.akustického utěsnění prostupu stropem | D64: m2 | E64: =SUM(E65:E78) -> 85.61 | G64: =E64*F64 -> 0
C65: přízemí:
C66: mezipatro:(0,15+0,39)*3,70+(0,15+0,73)*3,70 | E66: 3.3
C67: 1.patro:(0,20+0,32)*3,00+(0,20+0,817)*3,00+(0,20+0,574)*3,00 | E67: 6.93
C68: (0,20+0,325)*3,00+(0,20+0,533)*3,00+(0,20+0,865)*3,00+(0,20+1,20)*3,00 | E68: 11.18
C69: 2.patro:(0,20+0,32)*3,00+(0,20+0,67)*3,00+(0,20+0,325)*3,00 | E69: 5.75
C70: (0,20+0,39)*3,00+(0,20+0,635)*3,00+(0,20+0,80)*3,00 | E70: 7.28
C71: (0,20+0,82)*3,00 | E71: 3.06
C72: 3.patro:(0,20+0,32)*2,80+(0,20+0,543)*2,80+(0,20+0,43)*2,80 | E72: 5.26
C73: (0,20+0,67)*2,80+(0,20+0,44)*2,80+(0,20+0,53)*2,80+(0,20+0,43)*2,80 | E73: 8.03
C74: (0,20+0,59)*2,80+(0,20+0,50)*2,80+(0,20+0,87)*2,80 | E74: 7.17
C75: 4.patro:(0,20+0,32)*2,95+(0,20+1,05+0,20)*2,95 | E75: 5.81
C76: (0,20+1,05+0,20)*2,95+(0,20+0,545)*2,95+(0,20+0,57)*2,95 | E76: 8.75
C77: (0,20+0,635)*2,95+(0,20+0,76)*2,95+(0,20+0,45)*2,95 | E77: 7.21
C78: (0,20+0,45)*2,95+(0,20+0,30)*2,95+(0,20+0,64)*2,95 | E78: 5.88
A79: =A64+1 -> 5 | B79: 73002 | C79: Zateplení za radiátory - minerální vata tl.50 mm opláštěná SDK | D79: m2 | E79: =SUM(E80:E89) -> 147.37 | G79: =E79*F79 -> 0
C80: přízemí:
C81: mezipatro:2,82*0,85+2,745*0,85+2,70*0,85+2,625*0,90*2 | E81: 11.75
C82: 2,745*0,84*2+4,05*0,90+4,175*0,80+3,15*0,60+1,63*0,70 | E82: 14.63
C83: 4,90*0,60+1,50*0,60+2,73*0,60+3,15*0,60 | E83: 7.37
C84: 1.patro:0
C85: 2.patro:2,75*0,84*11+2,65*0,84*3+1,175*0,84*2+4,125*0,84 | E85: 37.53
C86: 3.patro:2,75*0,88*5+2,75*0,84*5+0,60*0,95 | E86: 24.22
C87: 4,11*0,85+1,20*0,87*2+4,13*0,87+2,70*0,87*2 | E87: 13.87
C88: 4.patro:2,75*0,90+2,75*0,89*10+3,975*0,87 | E88: 30.42
C89: 2,65*0,83+1,175*0,83*2+4,125*0,83 | E89: 7.58
A90: =A79+1 -> 6 | B90: 73003 | C90: Zateplení niky pěnosklem tl.30mm | D90: m2 | E90: 1.26 | G90: =E90*F90 -> 0
C91: přízemí:(0,20+1,10+0,20)*0,84 | E91: 1.26
A92: =A90+1 -> 7 | B92: 73004 | C92: Zasekaní potrubí ÚT v 5.np | D92: kpl. | E92: 1 | G92: =E92*F92 -> 0
A94: Díl: | B94: 2 | C94: Stavební práce navazující na rekonstrukcí silnoproudé části elektro | G94: =SUBTOTAL(9,G95:G133) -> 0
A95: =A92+1 -> 8 | B95: M2101 | C95: Vybourání stropních otvorů pro silnoproudé rozvody v instalační šachtě na celý půdorysný profil instalační šachty. | D95: ks | E95: 12 | G95: =E95*F95 -> 0
A96: =A95+1 -> 9 | B96: M2102 | C96: Opláštění vnitřního povrchu nik pro rozvaděče protipožárním sádrokartonem | D96: m2 | E96: =SUM(E97:E103) -> 31.57 | G96: =E96*F96 -> 0
C97: přízemí:(2*0,45+0,90)*3,50 | E97: 6.3
C98: mezipatro:(2*0,30+0,90)*3,70 | E98: 5.55
C99: 1.patro:(2*0,30+0,845)*2,95 | E99: 4.28
C100: 2.patro:(2*0,30+0,895)*2,95 | E100: 3.54
C101: 3.patro:(2*0,30+0,65)*2,80 | E101: 3.5
C102: 4.patro:(2*0,30+0,895)*2,80 | E102: 4.2
C103: 5.patro:(2*0,30+0,895)*2,80 | E103: 4.2
A104: =A96+1 -> 10 | B104: M2103 | C104: SDK předstěna včetně konstrukce před rozvaděči na hlavním schodišti. Požární odolnost SDK předstěny posusovaná v kopletu s revizními dvířky - viz. položka níže, je EI 30. | D104: m2 | E104: =SUM(E105:E111) -> 35.7 | G104: =E104*F104 -> 0
C105: přízemí:(2*0,2+1)*5,1 | E105: =(2*0.2+1)*5.1 -> 7.14
C106: mezipatro:(2*0,2+1)*3,4 | E106: =(2*0.2+1)*3.4 -> 4.76
C107: 1.patro:(2*0,2+1)*3,4 | E107: =(2*0.2+1)*3.4 -> 4.76
C108: 2.patro:(2*0,2+1)*3,4 | E108: 4.76
C109: 3.patro:(2*0,2+1)*3,4 | E109: 4.76
C110: 4.patro:(2*0,2+1)*3,4 | E110: 4.76
C111: 5.patro:(2*0,2+1)*3,4 | E111: 4.76
A112: =A104+1 -> 11 | B112: M2103 | C112: Otevíravá revizní dvířka velikosti 800 x 800 EI 30 kouřotěsná (S200) pro osazení do SDK předstěny. | D112: ks | E112: 7 | G112: =E112*F112 -> 0
A113: =A112+1 -> 12 | B113: 631 32-0024.RAB | C113: Mazanina vyztužená sítí, beton C 12/15, tl. 15 cm vyztužená sítí - drát 6,0 oka 100/100 mm | D113: m2 | E113: 6.69 | G113: =E113*F113 -> 0
C114: ;zvednutí podlahy | E114: 0
C115: 1,50*2,975+1,35*1,65 | E115: 6.69
A116: =A113+1 -> 13 | B116: 76601 | C116: Úprave dveří zvednutím | D116: ks | E116: 1 | G116: =E116*F116 -> 0
A117: =A116+1 -> 14 | B117: 76602 Zn/10 | C117: Dvířka SDK EW30 DP1 š.850 mm D+M | D117: ks | E117: 1 | G117: =E117*F117 -> 0
A118: =A117+1 -> 15 | B118: 631 31-002 | C118: Mazanina z betonu C 12/15, tloušťka 0-15 cm nová vyrovnávací rampa | D118: m2 | E118: 1.125 | G118: =E118*F118 -> 0
C119: 0,90*1,25 | E119: 1.125
A120: =A118+1 -> 16 | B120: 971 10-0 | C120: Vybourání otvorů ve zdivu cihelném 100/300 mm , vč.odvozu suti a poplatku | D120: ks | E120: 1 | G120: =E120*F120 -> 0
A121: =A120+1 -> 17 | C121: Provedení požární ucpávky otvoru 100/300 mm s průchozími instalacemi | D121: ks | E121: 1 | G121: 0
A122: 18 | B122: 971 10-1 | C122: Vybourání otvorů ve stropu 100/100 mm , vč.požární ucpávky, vč.odvozu suti a poplatku | D122: ks | E122: 1 | G122: 0
A123: 19 | C123: Provedení požární ucpávky otvoru 100/100 mm s průchozími instalacemi | D123: ks | E123: 1 | G123: 0
A124: 20 | B124: 63102 | C124: Rošt kabelový šířky 2 x 300 mm vč. kotevních prvků pro uchycení na stěnu | D124: m | E124: 4.635 | G124: 0
A125: 21 | B125: 63102 | C125: Vybourání otvoru 800 x 250 mm do betonové zdi tl. 450 mm a jeho následné zednické začištění včetně sražení hran tak, aby nebyly poškozeny elektroinstalační kabely. | D125: ks | E125: 1 | G125: 0
A126: 22 | B126: 63102 | C126: Vybourání elektroinstalačního kanálu v suterénu. Profil vybourané betononové mazaniny podlahy kryté teraco dlažbou je 600 x 250 dle výkresu D.1.1.B.9. | D126: m | E126: 7.635 | G126: 0
A127: 23 | B127: 63102 | C127: Zednické zapravení elektroinstalačního kanálu v suterénu do pravoúhlého profilu v řezu, finálně zapravený povrch kanálu bude natřen polyuretanovým nátěrem na beton. Profil elektrokanálu je 600 x 250. Vše dle výkresu D.1.1.B.9. | D127: m | E127: 7.635 | G127: 0
A128: 24 | B128: 63102 | C128: Zámečnicky provedený kanál rozvodu elektro 450/150 mm D+M s překrytím splzičkovým nerez plechem tl. 8 mm do rámu z L profilů dle výkresu D.1.1.B.9. | D128: m | E128: 7.635 | G128: 0
C129: 2,975+4,66 | E129: 7.635
A130: =A128+1 -> 25 | B130: 63103 | C130: Kastlík z SDK EI 60 DP1 D+M | D130: m | E130: 3.5 | G130: =E130*F130 -> 0
A132: =A130+1 -> 26 | B132: 771 55-001 | C132: Dlažba z dlaždic teracových 30 x 30 cm vč.soklíku D+M, pokládaná na nerez slzičkový plech | D132: m2 | E132: 7.359 | G132: =E132*F132 -> 0
C133: 6,69*1,10 | E133: 7.359
A134: Díl: | B134: 3 | C134: Stavební práce navazující na první etapu | G134: =SUBTOTAL(9,G135:G146) -> 0
A135: =A132+1 -> 27 | C135: Úprava požárního schodiště vč.doplnění bočnic dle výkresu D.1.1.d.10 | D135: kpl | E135: 1 | G135: =E135*F135 -> 0
A136: =A135+1 -> 28 | C136: Zasekání stávajícího trezoru na klíče od branky za únikovým schodištěm do betonové opěrné stěny dvora. Klíčový trezor má rozměry 300 x 300 x 250 mm. Součástí položky je i začištění stěny po osazení klíčového trezoru a úprava stávající kabeláže. | D136: kpl | E136: 1 | G136: =E136*F136 -> 0
A137: =A136+1 -> 29 | B137: ZN 26a | C137: Schody do chodby za trezor - materiál schodnice – poporost, podkonstrukce – 4ks U profil 100 dl. 1200 kotvené do zdi 2x chemická kotva pr. 10 mm. Povrchová úprava pozink | D137: kpl | E137: 1 | G137: =E137*F137 -> 0
A138: 29 | C138: Nátěr fasády do ulice Beethovenova na úrovni 5. patra budovy. Nátěru bude předcházet očištění stávající fasády. Nátěr bude vzorkován a výsledný barevný odstín musí být schválen objednatelem. Součástí položky je i příplatek za práce prováděné ve výškách. | D138: m2 | E138: 52 | G138: =E138*F138 -> 0
A139: 30 | C139: Doplnění druhých dveří na vstup do studia S8 vysílacího komplexu v přízemí budovy. Doplněny budou plné dřevěné dveře, povrch dýha americký javor v odstínu stávajících dveří Sapeli. Neprůzvučnost dveří je předepsána na 38 dB, součástí položky je i dodávka a montáž obložkových zárubní stejného povrchu. | D139: ks | E139: 1 | G139: =E139*F139 -> 0
A140: 31 | C140: Demontáž a opětovná montáž stávajících dveří Sapeli včetně obložkové zárubně na vstupu do studia S8 vysílacího komplexu v přízemí budovy. Dveře budou montovány do mírně posunuté pozice. | D140: ks | E140: 1 | G140: 0
A141: 32 | C141: Truhlářská úprava akustického obkladu studia S8 spočívající v demontáži obkladu lemujícího stávající dřevěné dveře, jeho rozměrová úprava a opětovná montáž do upravené pozice navazující na doplněné druhé dveře. | D141: m2 | E141: 6 | G141: 0
A142: 33 | C142: Akustické utěsnění mezery zdvojené podlahy chodby studiového komplexu v přízemí. Do dutiny bude celoplošně na celou výšku 70 mm doplněna minerální vata objemové hmotnosti 60 kg/m3. Součástí položky je i roznoměrné rozprostření kabelových svazků tak, aby bylo možné rovnoměrně rozmístit minerální vatu. | D142: m2 | E142: 14 | G142: 0
A143: 34 | C143: Demontáž a opětovná montáž zdvojené podlahy Kingspan s deskami celoobvodově krytými plechem. Součástí položky je i následné vyrovnání podlahy tak, aby neklapala. | D143: m2 | E143: 14 | G143: 0
A144: 35 | C144: Demontáž a opětovná pokládka kobercových čtverců lepených na lepidlo non pernament kryjící zdvojenou podlahu Kingspan s deskami celoobvodově krytými plechem. | D144: m2 | E144: 17 | G144: 0
A145: 36 | C145: Provedení izolovaného podlahového stupně v machineroomu studiového komplexu přízemí budovy o rozměrech 1200 x 700 x 300 mm, včetně kovové konstrukce. Povrch stupně bude proveden z 2x natírané desky CETRIS. Celý objem stupně bude vyplněn minerální vatou o objemové hmotnosti 60 kg/m3. Dodávka a montáž. | D145: ks | E145: 1 | G145: 0
A147: Díl: | B147: 4 | C147: Dočasné stavební práce a konstrukce | G147: =SUBTOTAL(9,G148:G160) -> 0
A148: =A145+1 -> 37 | C148: SDK stavební předěly jednostranně opláštěnou SDK příčkou z desky bílé, netmelené, s konstrukcí rozepřenou (nelze kotvit do podlahy). Předěly zajišťují protiprašné oddělení staveniště od prostoru, kde probíhá provoz ČRo Brno. | D148: m2 | E148: 190.85 | G148: =E148*F148 -> 0
A149: =A148+1 -> 38 | C149: Dočasné stavební dveře ve stavebních předělech minimálního rozměru 800 x 1970 mm. | D149: ks | E149: 16 | G149: =E149*F149 -> 0
A150: =A149+1 -> 39 | C150: Vyklizení prostoru vrátnice (3 x stůl, 1 šatní skříň, 4x skřín policová, 2x nástěnka) stěhování mezi provizorní vrátnicí v hale a prostorem vrátnice | D150: kpl | E150: 2 | G150: =E150*F150 -> 0

Sheet 11_SO 12 - Silnoproud
A1: =CONCATENATE('Rekapitulace stavby'!C64,"_",'Rekapitulace stavby'!I64) -> 11_SO 12 - Silnoproudá elektroinstalace
A3: SPECIFIKACE DODÁVEK A PRACÍ
A4: Název akce:
A5: ='Identifikační údaje'!B1 -> ČRo Brno – II. etapa rekonstrukce budovy Beethovenova 25/4
A7: Zadavatel: | C7: ='Identifikační údaje'!B7 -> Český rozhlas
B8: IČ: | C8: ='Identifikační údaje'!B9 -> 45245053
B9: DIČ: | C9: ='Identifikační údaje'!B10 -> CZ45245053
A11: Projektant: | C11: ='Identifikační údaje'!B12 -> Ing. arch. Klement Miloš
B12: IČ: | C12: ='Identifikační údaje'!B9 -> 45245053
B13: DIČ: | C13: ='Identifikační údaje'!B15 -> CZ6101021344
A15: Uchazeč: | C15: ='Identifikační údaje'!B19 -> 0
B16: IČ: | C16: ='Identifikační údaje'!B23 -> 0
B17: DIČ: | C17: ='Identifikační údaje'!B24 -> 0
A19: Místo stavby: | C19: ='Identifikační údaje'!B3 -> Budova Českého rozhlasu Brno na adrese Beethovenova 25/4, 657 42 Brno
A21: Datum: | C21: ='Identifikační údaje'!B5 -> 00:00:00
A23: =CONCATENATE("REKAPITULACE DODÁVEK A PRACÍ OBJEKTU ",A1) -> REKAPITULACE DODÁVEK A PRACÍ OBJEKTU 11_SO 12 - Silnoproudá elektroinstalace
A25: P.č. | B25: Ozn. | D25: Materiál celkem | F25: Montáž celkem | H25: M+M celkem
A27: =B41 -> A. | B27: =C41 -> Instalační, úložný a ochranný materiál | D27: =F41 -> 0 | F27: =H41 -> 0 | H27: =D27+F27 -> 0
A28: =B51 -> B. | B28: =C51 -> Kabely a vodiče | D28: =F51 -> 0 | F28: =H51 -> 0 | H28: 0
A29: =B95 -> C. | B29: =C95 -> Pospojování, uzemnění | D29: =F95 -> 0 | F29: =H95 -> 0 | H29: 0
A30: =B100 -> D. | B30: =C100 -> Rozvaděče | D30: =F100 -> 0 | F30: =H100 -> 0 | H30: 0
A31: =B115 -> E. | B31: =C115 -> Ostatní | D31: =F115 -> 0 | F31: =H115 -> 0 | H31: 0
A33: =CONCATENATE("CELKEM ZA OBJEKT ",'Rekapitulace stavby'!I64, " v Kč bez DPH") -> CELKEM ZA OBJEKT SO 12 - Silnoproudá elektroinstalace v Kč bez DPH | H33: =SUBTOTAL(9,H27:I31) -> 0
A36: Textová, výkresová i tabulková část projektové dokumentace tvoří jeden vzájemně se doplňující a provázaný celek. Jednotliví účastníci výběrového řízení se musí seznámit s projektojektovou dokumentací v návaznosti na soupis prací a na základě těchto informací části díla nacenit. Dále je potřeba při stanovení ceny dle vykázané výměry započítat všechny předpokládané doplňkové prvky a činnosti s touto položkou související tak, aby cena byla kompletní a prvek funkční.
A38: =A1 -> 11_SO 12 - Silnoproudá elektroinstalace
F39: Materiál | H39: Montáž
A40: poř.č. | B40: položka | C40: popis položky | D40: MJ | E40: množství | F40: jedn.cena | G40: celkem [Kč] | H40: jedn.cena | I40: celkem [Kč]
B41: A. | C41: Instalační, úložný a ochranný materiál | F41: =SUBTOTAL(9,G42:G49) -> 0 | H41: =SUBTOTAL(9,I41:I49) -> 0
C42: (komplet, včetně příslušenství, pomocného materiálu, výkopu, záhozu výkopu, vytyčení trasy, osazení, zapojení, vyzkoušení apod.)
A43: 1 | C43: Kabelová lávka 60x300 do stoupačky, komplet včetně příslušenství | D43: m | E43: 25 | G43: =E43*F43 -> 0 | I43: =E43*H43 -> 0
A44: =A43+1 -> 2 | C44: Kabelový drátový žlab 200x100 včetně příslušenství a závěsů | D44: m | E44: 25 | G44: 0 | I44: 0
A45: =A44+1 -> 3 | C45: Protipožární ucpávka pro průchod kabelů stěnou nebo stropem, požární odolnost dle požadavku specialisty PO, materiál: var.- požárně ochranná malta, var.-minerální vlna + desky z minerální vlny + požárně ochranná stěrková hmota, var.- protipožární polštáře | D45: m2 | E45: 0.5 | G45: 0 | I45: 0
A46: 4 | C46: Podlahový kanál pro uložení do betonu OBO Bettermann 350x38 | D46: m | E46: 4.5 | G46: 0 | I46: 0
A47: 5 | C47: Podlahový kanál pro kabely s funkční schopností uložení do betonu OBO Bettermann 190x28 | D47: m | E47: 4.5 | G47: 0 | I47: 0
A48: 6 | C48: Kabelová lávka 60x150 s funkční schopností při požáru P60-R do stoupačky, komplet včetně příslušenství | D48: m | E48: 25 | G48: 0 | I48: 0
A49: 7 | C49: Kabelový drátový žlab 100x100 s funkční schopností při požáru P60R včetně příslušenství a závěsů | D49: m | E49: 30 | G49: 0 | I49: 0
B51: B. | C51: Kabely a vodiče | F51: =SUBTOTAL(9,G52:G93) -> 0 | H51: =SUBTOTAL(9,I51:I93) -> 0
C52: (komplet, včetně vyhotovení drážky, zapravení drážky, vytyčení trasy, pomocného materiálu, příchytek, spojek, odlehčovacích oblouků, zapojení, vyzkoušení apod.)
A53: =A49+1 -> 8 | C53: Přívod pro patrový rozvaděč RM1 CYKY-J 5x16 | D53: m | E53: 55 | G53: =E53*F53 -> 0 | I53: =E53*H53 -> 0
A54: =A53+1 -> 9 | C54: Rezerva pro patrový rozvaděč RM1 CYKY-J 5x6 diesel | D54: m | E54: 55 | G54: 0 | I54: 0
A55: 10 | C55: Rezerva pro patrový rozvaděč RM1 CYKY-J 5x6 UPS | D55: m | E55: 55 | G55: 0 | I55: 0
A56: 11 | C56: Přívod pro patrový rozvaděč RM1.1 trafo CYKY-J 5x6 | D56: m | E56: 70 | G56: 0 | I56: 0
A57: 12 | C57: Přívod pro patrový rozvaděč RM1.1 diesel CYKY-J 5x6 | D57: m | E57: 70 | G57: 0 | I57: 0
A58: 13 | C58: Přívod pro patrový rozvaděč RM1.1 UPS CYKY-J 5x6 | D58: m | E58: 70 | G58: 0 | I58: 0
A59: 14 | C59: Přívod pro patrový rozvaděč RM1.2 trafo CYKY-J 5x6 | D59: m | E59: 65 | G59: 0 | I59: 0
A60: 15 | C60: Přívod pro patrový rozvaděč RM1.2 diesel CYKY-J 5x6 | D60: m | E60: 65 | G60: 0 | I60: 0
A61: 16 | C61: Přívod pro patrový rozvaděč RM1.2 UPS CYKY-J 5x6 | D61: m | E61: 65 | G61: 0 | I61: 0
A62: 17 | C62: Přívod pro patrový rozvaděč R11 trafo přeložení (výměna) | D62: m | E62: 55 | G62: 0 | I62: 0
A63: 18 | C63: Přívod pro patrový rozvaděč R11 diesel přeložení (výměna) | D63: m | E63: 55 | G63: 0 | I63: 0
A64: 19 | C64: Přívod pro patrový rozvaděč R21 CYKY-J 5x16 | D64: m | E64: 65 | G64: 0 | I64: 0
A65: 20 | C65: Rezerva pro patrový rozvaděč R21 CYKY-J 5x6 diesel | D65: m | E65: 65 | G65: 0 | I65: 0
A66: 21 | C66: Rezerva pro patrový rozvaděč R21 CYKY-J 5x6 UPS | D66: m | E66: 65 | G66: 0 | I66: 0
A67: 22 | C67: Přívod pro rozvaděč server RS2 trafo CYKY-J 5x6 | D67: m | E67: 75 | G67: 0 | I67: 0
A68: 23 | C68: Přívod pro rozvaděč server RS2 diesel CYKY-J 5x10 | D68: m | E68: 75 | G68: 0 | I68: 0
A69: 24 | C69: Rezerva pro rozvaděč server RS2 CYKY-J 5x10 UPS | D69: m | E69: 75 | G69: 0 | I69: 0
A70: 25 | C70: Přívod pro patrový rozvaděč R31 CYKY-J 5x25 | D70: m | E70: 65 | G70: 0 | I70: 0
A71: 26 | C71: Rezerva pro patrový rozvaděč R31 CYKY-J 5x6 diesel | D71: m | E71: 65 | G71: 0 | I71: 0
A72: 27 | C72: Rezerva pro patrový rozvaděč R31 CYKY-J 5x6 UPS | D72: m | E72: 65 | G72: 0 | I72: 0
A73: 28 | C73: Přívod pro patrový rozvaděč R41 CYKY-J 5x25 | D73: m | E73: 70 | G73: 0 | I73: 0
A74: 29 | C74: Rezerva pro patrový rozvaděč R41 CYKY-J 5x6 diesel | D74: m | E74: 70 | G74: 0 | I74: 0
A75: 30 | C75: Rezerva pro patrový rozvaděč R41 CYKY-J 5x6 UPS | D75: m | E75: 70 | G75: 0 | I75: 0
A76: 31 | C76: Přívod pro patrový rozvaděč R51 CYKY-J 5x16 | D76: m | E76: 65 | G76: 0 | I76: 0
A77: 32 | C77: Rezerva pro patrový rozvaděč R51 CYKY-J 5x6 diesel | D77: m | E77: 65 | G77: 0 | I77: 0
A78: 33 | C78: Rezerva pro patrový rozvaděč R51 CYKY-J 5x6 UPS | D78: m | E78: 65 | G78: 0 | I78: 0
A79: 34 | C79: Přívod pro rozvaděč O2 přeložení (výměna) | D79: m | E79: 70 | G79: 0 | I79: 0
A80: 35 | C80: Provizorní napojení stávající RV1 v 6np CYKY-J 5x4 | D80: m | E80: 30 | G80: 0 | I80: 0
A81: 36 | C81: Provizorní napojení stávající RM1 CYKY-J 5x6 | D81: m | E81: 10 | G81: 0 | I81: 0
A82: 37 | C82: Provizorní napojení stávající R21 CYKY-J 5x10 | D82: m | E82: 10 | G82: 0 | I82: 0
A83: 38 | C83: Provizorní napojení stávající R31 CYKY-J 5x10 | D83: m | E83: 25 | G83: 0 | I83: 0
A84: 39 | C84: Provizorní napojení stávající R41 CYKY-J 5x10 | D84: m | E84: 10 | G84: 0 | I84: 0
A85: 40 | C85: Provizorní napojení stávající R42 CYKY-J 5x10 | D85: m | E85: 20 | G85: 0 | I85: 0
A86: 41 | C86: Provizorní napojení stávající R51CYKY-J 5x10 | D86: m | E86: 10 | G86: 0 | I86: 0
A87: 42 | C87: Přívod pro technologii machineroom diesel CYKY-J 5x6 | D87: m | E87: 70 | G87: 0 | I87: 0
A88: 43 | C88: Přívod pro technologii machineroom UPS CYKY-J 5x6 | D88: m | E88: 70 | G88: 0 | I88: 0
A89: 44 | C89: Přívod pro technologii machineroom trafo CYKY-J 5x6 | D89: m | E89: 70 | G89: 0 | I89: 0
A90: 45 | C90: Přívod pro technologii studio UPS CYKY-J 5x6 | D90: m | E90: 150 | G90: =E90*F90 -> 0 | I90: =E90*H90 -> 0
A91: =A90+1 -> 46 | C91: Příprava pro termostat z VS do 5NP JYTY-O 3x1 | D91: m | E91: 150 | G91: 0 | I91: 0
A92: 47 | C92: JE-Y(ST)Y 4x2x0.8 signalizace výpadku jističe do NO | D92: m | E92: 250 | G92: 0 | I92: 0
A93: 48 | C93: Rozvody pro NO kabel s funkční schopností P60R -O 3x1,5 | D93: m | E93: 600 | G93: 0 | I93: 0
B95: C. | C95: Pospojování, uzemnění | F95: =SUBTOTAL(9,G96:G98) -> 0 | H95: =SUBTOTAL(9,I95:I98) -> 0
C96: (komplet, včetně příslušenství, svorek, pomocného materiálu, osazení, zapojení, vyzkoušení apod.)
A97: =A93+1 -> 49 | C97: Vodič CYA25 žlutozelený včetně svorek - hlavní pospojení | D97: m | E97: 100 | G97: =E97*F97 -> 0 | I97: =E97*H97 -> 0
A98: =A97+1 -> 50 | C98: Vodič CYA16 žlutozelený včetně svorek - hlavní pospojení | D98: m | E98: 10 | G98: 0 | I98: 0
B100: D. | C100: Rozvaděče | F100: =SUBTOTAL(9,G101:G113) -> 0 | H100: =SUBTOTAL(9,I100:I113) -> 0
C101: (komplet, včetně příslušenství, svorek, pomocného materiálu, osazení, zapojení, vyzkoušení apod.)
A102: =A98+1 -> 51 | C102: Úpravy v rozvaděči RE | D102: ks | E102: 1 | G102: =E102*F102 -> 0 | I102: =E102*H102 -> 0
A103: =A102+1 -> 52 | C103: Úpravy hlavní rozvaděč RH | D103: ks | E103: 1 | G103: 0 | I103: 0
A104: 53 | C104: Úpravy hlavní rozvaděče UPS | D104: ks | E104: 1 | G104: 0 | I104: 0
A105: 54 | C105: Patrový rozvaděč RM1 | D105: ks | E105: 1 | G105: 0 | I105: 0
A106: 55 | C106: Patrový rozvaděč RM1.1 | D106: ks | E106: 1 | G106: 0 | I106: 0
A107: 56 | C107: Patrový rozvaděč RM1.2 | D107: ks | E107: 1 | G107: 0 | I107: 0
A108: 57 | C108: Patrový rozvaděč R21 | D108: ks | E108: 1 | G108: 0 | I108: 0
A109: 58 | C109: Patrový rozvaděč R31 | D109: ks | E109: 1 | G109: 0 | I109: 0
A110: 59 | C110: Patrový rozvaděč R41 | D110: ks | E110: 1 | G110: 0 | I110: 0
A111: 60 | C111: Patrový rozvaděč R51 | D111: ks | E111: 1 | G111: 0 | I111: 0
A112: 61 | C112: Přepojení stávající rozvaděč server RS2 | D112: ks | E112: 1 | G112: 0 | I112: 0
A113: 62 | C113: Úpravy stávající CBS Inotec | D113: ks | E113: 1 | G113: 0 | I113: 0
B115: E. | C115: Ostatní | F115: =SUBTOTAL(9,G116:G121) -> 0 | H115: =SUBTOTAL(9,I115:I121) -> 0
A116: =A113+1 -> 63 | C116: Výchozí revize | D116: hod | E116: 30 | G116: =E116*F116 -> 0 | I116: =E116*H116 -> 0
A117: =A116+1 -> 64 | C117: Demontáže včetně likvidace odpadu | D117: hod | E117: 50 | G117: 0 | I117: 0
A118: 65 | C118: Stavební přípomoce | D118: kpl | E118: 1 | F118: --- | G118: --- | I118: 0
A119: =A118+1 -> 66 | C119: Pomocný a podružný materiál upevňovací | D119: kpl | E119: 1 | G119: 0 | I119: 0
A120: 67 | C120: Zednické výpomoci (PPV) | D120: kpl | E120: 1 | F120: --- | G120: --- | I120: 0
A121: 68 | C121: Doprava materiálu | D121: kpl | E121: 1 | F121: --- | G121: --- | I121: 0

Sheet 12_SO 12 - ÚT
A1: =CONCATENATE('Rekapitulace stavby'!C65,"_",'Rekapitulace stavby'!I65) -> 12_SO 12 - Ústřední vytápění
A3: SPECIFIKACE DODÁVEK A PRACÍ
A4: Název akce:
A5: ='Identifikační údaje'!B1 -> ČRo Brno – II. etapa rekonstrukce budovy Beethovenova 25/4
A7: Zadavatel: | C7: ='Identifikační údaje'!E7 -> Český rozhlas, Vinohradská 12, 120 99 Praha 2
B8: IČ: | C8: ='Identifikační údaje'!B9 -> 45245053
B9: DIČ: | C9: ='Identifikační údaje'!B10 -> CZ45245053
A11: Projektant: | C11: ='Identifikační údaje'!E12 -> Ing. arch. Klement Miloš, Nejedlého 381/19, 638 00 Brno - Lesná
B12: IČ: | C12: ='Identifikační údaje'!B14 -> 15188736
B13: DIČ: | C13: ='Identifikační údaje'!B15 -> CZ6101021344
A15: Uchazeč: | C15: ='Identifikační údaje'!E19 -> , ,
B16: IČ: | C16: ='Identifikační údaje'!B23 -> 0
B17: DIČ: | C17: ='Identifikační údaje'!B24 -> 0
A19: Místo stavby: | C19: ='Identifikační údaje'!B3 -> Budova Českého rozhlasu Brno na adrese Beethovenova 25/4, 657 42 Brno
A21: Datum: | C21: ='Identifikační údaje'!B5 -> 00:00:00
A23: =CONCATENATE("REKAPITULACE DODÁVEK A PRACÍ OBJEKTU ",'Rekapitulace stavby'!I65) -> REKAPITULACE DODÁVEK A PRACÍ OBJEKTU SO 12 - Ústřední vytápění
A25: P.č. | B25: Ozn. | D25: Materiál celkem | F25: Montáž celkem | H25: M+M celkem
A27: =B40 -> A. | B27: =C40 -> ZAŘÍZENÍ A ARMATURY | D27: =F40 -> 0 | F27: =H40 -> 0 | H27: =D27+F27 -> 0
A28: =B57 -> B. | B28: =C57 -> POTRUBÍ | D28: =F57 -> 0 | F28: =H57 -> 0 | H28: =D28+F28 -> 0
A29: =B71 -> C. | B29: =C71 -> TĚLESA | D29: =F71 -> 0 | F29: =H71 -> 0 | H29: =D29+F29 -> 0
A30: =B97 -> D. | B30: =C97 -> OSTATNÍ | D30: =F97 -> 0 | F30: =H97 -> 0 | H30: 0
A32: =CONCATENATE("CELKEM ZA OBJEKT ",'Rekapitulace stavby'!I65, " v Kč bez DPH") -> CELKEM ZA OBJEKT SO 12 - Ústřední vytápění v Kč bez DPH | H32: =SUBTOTAL(9,H27:I30) -> 0
A35: Textová, výkresová i tabulková část projektové dokumentace tvoří jeden vzájemně se doplňující a provázaný celek. Jednotliví účastníci výběrového řízení se musí seznámit s projektojektovou dokumentací v návaznosti na soupis prací a na základě těchto informací části díla nacenit. Dále je potřeba při stanovení ceny dle vykázané výměry započítat všechny předpokládané doplňkové prvky a činnosti s touto položkou související tak, aby cena byla kompletní a prvek funkční.
A37: =A1 -> 12_SO 12 - Ústřední vytápění
F38: Materiál | H38: Montáž
A39: poř.č. | B39: položka | C39: popis položky | D39: MJ | E39: množství | F39: jedn.cena | G39: celkem [Kč] | H39: jedn.cena | I39: celkem [Kč]
B40: A. | C40: ZAŘÍZENÍ A ARMATURY | F40: =SUBTOTAL(9,G41:G56) -> 0 | H40: =SUBTOTAL(9,I41:I56) -> 0
A41: 1 | C41: Oběhové teplovodní čerpadlo montované do potrubí typ KSB Calio S 15/40 ( 230V/23W ) | D41: kpl | E41: 4 | G41: =E41*F41 -> 0 | I41: =E41*H41 -> 0
A42: =A41+1 -> 2 | C42: Trojcestná směšovací armatura komplet včetně regulátoru, servopohonu, čidel a kabeláže Dn 15, kv = 0,6 m3/h | D42: kpl | E42: 3 | G42: =E42*F42 -> 0 | I42: =E42*H42 -> 0
A43: 3 | C43: Trojcestná směšovací armatura komplet včetně regulátoru, servopohonu, čidel a kabeláže Dn 15, kv = 1,0 m3/h | D43: kpl | E43: 1 | G43: 0 | I43: =E43*H43 -> 0
A44: 4 | C44: Automatický vyvažovací ventil kazetový K 38 x typ K 380.15.F 360101 | D44: kpl | E44: 3 | G44: 0 | I44: =E44*H44 -> 0
A45: 5 | C45: Automatický vyvažovací ventil kazetový K 38 x typ K 380.20.F 360108 | D45: kpl | E45: 1 | G45: 0 | I45: =E45*H45 -> 0
A46: 6 | C46: Kohout uzavírací závitový kulový Dn 15 | D46: kpl | E46: 8 | G46: =E46*F46 -> 0 | I46: =E46*H46 -> 0
A47: 7 | C47: Ruční regulační ventil Dn 10 | D47: kpl | E47: 4 | G47: 0 | I47: 0
A48: 8 | C48: Zpětná klapka závitová do potrubí EURA Dn 10 | D48: kpl | E48: 4 | G48: 0 | I48: 0
A49: 9 | C49: Kohout vypouštěcí a napouštěcí kulový Dn 10 | D49: kpl | E49: 12 | G49: 0 | I49: 0
A50: 10 | C50: Automatický odvzdušňovač MINIVAL Dn 10 | D50: kpl | E50: 10 | G50: 0 | I50: 0
A51: 11 | C51: Šroubení závitové přímé, uzavírací Dn 10 | D51: kpl | E51: 52 | G51: 0 | I51: 0
A52: 12 | C52: Šroubení závitové přímé neuzavírací Dn 15 | D52: kpl | E52: 98 | G52: 0 | I52: 0
A53: 13 | C53: Termoregulační ventil HEIMEIER s hlavicí termoregulace Dn 10 | D53: kpl | E53: 52 | G53: 0 | I53: 0
A54: 14 | C54: Termoregulační ventil HEIMEIER s hlavicí termoregulace Dn 15 | D54: kpl | E54: 98 | G54: 0 | I54: 0
A55: 15 | C55: Hlavice termoregulačního ovládání HEIMEIER | D55: kpl | E55: 7 | G55: 0 | I55: 0
B57: B. | C57: POTRUBÍ | F57: =SUBTOTAL(9,G58:G69) -> 0 | H57: =SUBTOTAL(9,I57:I69) -> 0
A58: =A55+1 -> 16 | C58: Potrubí z trubek ocelových bezešvých nízkotlakých závitových Dn 10 ( 3/8" ) | D58: m | E58: 295 | G58: =E58*F58 -> 0 | I58: =E58*H58 -> 0
A59: =A58+1 -> 17 | C59: Potrubí z trubek ocelových bezešvých nízkotlakých závitových Dn 15 ( 1/2" ) | D59: m | E59: 590 | G59: =E59*F59 -> 0 | I59: =E59*H59 -> 0
A60: =A59+1 -> 18 | C60: Potrubí z trubek ocelových bezešvých nízkotlakých závitových Dn 20 ( 3/4“ ) | D60: m | E60: 245 | G60: 0 | I60: 0
A61: 19 | C61: Potrubí z trubek ocelových bezešvých nízkotlakých závitových Dn 25 ( 1“ ) | D61: m | E61: 255 | G61: 0 | I61: 0
A62: 20 | C62: Potrubí z trubek ocelových bezešvých nízkotlakých závitových Dn 32 ( 5/4“ ) | D62: m | E62: 105 | G62: 0 | I62: 0
A63: 21 | C63: Potrubí z trubek měděných přesných, včetně příslušných tvarovek a přechodových kusů rozm. 15 x 1 | D63: m | E63: 65 | G63: 0 | I63: 0
A64: 22 | C64: Potrubí z trubek měděných přesných, včetně příslušných tvarovek a přechodových kusů rozm. 18 x 1 | D64: m | E64: 45 | G64: 0 | I64: 0
A65: 23 | C65: Potrubí z trubek měděných přesných, včetně příslušných tvarovek a přechodových kusů rozm. 22 x 1 | D65: m | E65: 14 | G65: 0 | I65: 0
A66: 24 | C66: Potrubí z trubek měděných přesných, včetně příslušných tvarovek a přechodových kusů rozm. 28 x 1,5 | D66: m | E66: 6 | G66: 0 | I66: 0
A67: 25 | C67: Přechodový kus měď ocel 15x1/dn10 | D67: ks | E67: 36 | G67: =E67*F67 -> 0 | I67: =E67*H67 -> 0
A68: 26 | C68: Přechodový kus měď ocel 28 x 1,5/dn 25 | D68: ks | E68: 2 | G68: 0 | I68: 0
A69: 27 | C69: Svorkové šroubení na měděné trubky 15 x 1 | D69: ks | E69: 16 | G69: 0 | I69: 0
B71: C. | C71: TĚLESA | F71: =SUBTOTAL(9,G72:G96) -> 0 | H71: =SUBTOTAL(9,I71:I96) -> 0
A72: =A69+1 -> 28 | C72: Otopná tělesa litinová článková - stávající. Tělesa budou demontována včetně podpůrných konzol, vyčištěna, nově natřena a znovu namontována v souladu s projektovou dokumentací na nově osazené konzoly. | D72: kpl | E72: 81 | G72: =E72*F72 -> 0 | I72: =E72*H72 -> 0
A73: =A72+1 -> 29 | C73: Otopná tělesa litinová KALOR K3 - nová | D73: kpl | E73: 11 | G73: =E73*F73 -> 0 | I73: 0
A74: 30 | C74: Litinová tělesa KALOR - stávající s úpravou (předpokládaný počet článků rozm. 350/160 - 101 článků ) | D74: kpl | E74: 12 | G74: 0 | I74: 0
A75: 31 | C75: Litinová tělesa KALOR - stávající s úpravou (předpokládaný počet článků rozm. 500/160 - 5 článků ) | D75: kpl | E75: 1 | G75: 0 | I75: 0
A76: 32 | C76: Koupelnové trubkové těleso KORALUX LINEAR MAX rozm. KLM 1820/600 | D76: kpl | E76: 2 | G76: 0 | I76: 0
A77: 33 | C77: Otopná tělesa ocelová desková RADIK VK komplet, včetně připojovací armatury VEKOLUX rozm. 21/600/600 VK | D77: kpl | E77: 2 | G77: 0 | I77: 0
A78: 34 | C78: Otopná tělesa ocelová desková RADIK VK komplet, včetně připojovací armatury VEKOLUX rozm. 22/600/1200 VK | D78: kpl | E78: 1 | G78: =E78*F78 -> 0 | I78: 0
A79: 35 | C79: Otopná tělesa ocelová desková RADIK VK komplet, včetně připojovací armatury VEKOLUX rozm. 22/600/1400 VK | D79: kpl | E79: 3 | G79: 0 | I79: 0
A80: 36 | C80: Otopná tělesa ocelová desková RADIK VK komplet, včetně připojovací armatury VEKOLUX rozm. 21/900/600 VK | D80: kpl | E80: 1 | G80: 0 | I80: 0
A81: 37 | C81: Otopná tělesa ocelová desková RADIK VK komplet, včetně připojovací armatury VEKOLUX rozm. 22/900/1100 VK | D81: kpl | E81: 1 | G81: 0 | I81: 0
A82: =A81+1 -> 38 | C82: Otopná tělesa ocelová desková RADIK klasik komplet včetně upevňovacích prvků rozm. 10/600/600 | D82: kpl | E82: 11 | G82: 0 | I82: 0
A83: 39 | C83: Otopná tělesa ocelová desková RADIK klasik komplet včetně upevňovacích prvků rozm. 10/600/700 | D83: kpl | E83: 2 | G83: 0 | I83: 0
A84: 40 | C84: Otopná tělesa ocelová desková RADIK klasik komplet včetně upevňovacích prvků rozm. 10/600/900 | D84: kpl | E84: 1 | G84: 0 | I84: 0
A85: 41 | C85: Otopná tělesa ocelová desková RADIK klasik komplet včetně upevňovacích prvků rozm. 10/900/700 | D85: kpl | E85: 1 | G85: 0 | I85: 0
A86: 42 | C86: Otopná tělesa ocelová desková RADIK klasik komplet včetně upevňovacích prvků rozm. 21/600/500 | D86: kpl | E86: 1 | G86: 0 | I86: 0
A87: 43 | C87: Otopná tělesa ocelová desková RADIK klasik komplet včetně upevňovacích prvků rozm. 21/600/600 | D87: kpl | E87: 4 | G87: 0 | I87: 0
A88: 44 | C88: Otopná tělesa ocelová desková RADIK klasik komplet včetně upevňovacích prvků rozm. 21/600/700 | D88: kpl | E88: 2 | G88: 0 | I88: 0
A89: 45 | C89: podlahový konvektor FOX Silent N-110 PV218 - dl. 3.500 mm komplet včetně krycí mřížky | D89: kpl | E89: 16 | G89: 0 | I89: 0
A90: 46 | C90: Montážní, kotevní, těsnící a jiný materiál | D90: kpl | E90: 1 | G90: =E90*F90 -> 0 | I90: 0
A91: 47 | C91: Tepelná izolace měděného potrubí návleková ( veškeré potrubí kromě přípojek je tepelně izolováno ) | D91: kpl | E91: 1 | G91: 0 | I91: 0
A92: 48 | C92: Tepelná izolace ocelového potrubí minerální plstí tl. dle dimenze potrubí, s povrchovou úpravou FLEXIPAN nebo jinou vhodnou | D92: kpl | E92: 1 | G92: 0 | I92: 0
A93: 49 | C93: Ocelové prvky - L profil 50 x 50 x 5 | D93: m | E93: 10 | G93: 0 | I93: 0
A94: 50 | C94: Ocelové prvky - tyč průměru 10 mm | D94: m | E94: 10 | G94: 0 | I94: 0
A95: 51 | C95: Nátěry ocelového potrubí a konstrukcí 1x základní a 2x vrchní nátěr | D95: kpl | E95: 1 | G95: 0 | I95: 0
B97: D. | C97: OSTATNÍ | F97: =SUBTOTAL(9,G98:G131) -> 0 | H97: =SUBTOTAL(9,I97:I131) -> 0
A98: =A95+1 -> 52 | C98: HZS vypuštění systému | D98: hod | E98: 48 | F98: --- | G98: --- | I98: =E98*H98 -> 0
A99: 53 | C99: HZS demontáž stávajícího nepotřebného potrubí včetně zajištění jeho likvidace v souladu s platnou legislativou na území ČR. Součástí položky je i související doprava. | D99: hod | E99: 85 | F99: --- | G99: --- | I99: 0
A100: 54 | C100: HZS propláchnutí systému, napuštění systému upravenou vodou | D100: hod | E100: 48 | F100: --- | G100: --- | I100: 0
A101: 55 | C101: HZS topná zkoužka | D101: hod | E101: 72 | F101: --- | G101: --- | I101: 0
A102: 56 | C102: HZS seřízení a přezkoušení systému | D102: hod | E102: 60 | F102: --- | G102: --- | I102: 0
A103: 57 | C103: Protipožární ucpávky | D103: kpl | E103: 1 | G103: =E103*F103 -> 0 | I103: 0
A104: 58 | C104: Stavební výpomoci, drážky, prostupy | D104: hod | E104: 55 | F104: --- | G104: --- | I104: 0
A107: V souladu se zákonem o veřejných zakázkách č. 137/2006 Sb. bylo ve vyjímečných a nezbytných případech pro dostatečně přesný a srozumitelný popis použito odkazu na typový výrobek. Ten je možné dle tohoto zákona nahradit kvalitativně a technicky obdobným řešením. Uvedené odkazy na typový výrobek v této dokumentaci slouží pouze pro specifikaci technických parametrů a jejich kvalitativního standardu.

Sheet 13_SO 12 - EPS
A1: =CONCATENATE('Rekapitulace stavby'!C66,"_",'Rekapitulace stavby'!I66) -> 13_SO 12 - EPS
A3: SPECIFIKACE DODÁVEK A PRACÍ
A4: Název akce:
A5: ='Identifikační údaje'!B1 -> ČRo Brno – II. etapa rekonstrukce budovy Beethovenova 25/4
A7: Zadavatel: | C7: ='Identifikační údaje'!B7 -> Český rozhlas
B8: IČ: | C8: ='Identifikační údaje'!B9 -> 45245053
B9: DIČ: | C9: ='Identifikační údaje'!B10 -> CZ45245053
A11: Projektant: | C11: ='Identifikační údaje'!B12 -> Ing. arch. Klement Miloš
B12: IČ: | C12: ='Identifikační údaje'!B9 -> 45245053
B13: DIČ: | C13: ='Identifikační údaje'!B15 -> CZ6101021344
A15: Uchazeč: | C15: ='Identifikační údaje'!B19 -> 0
B16: IČ: | C16: ='Identifikační údaje'!B23 -> 0
B17: DIČ: | C17: ='Identifikační údaje'!B24 -> 0
A19: Místo stavby: | C19: ='Identifikační údaje'!B3 -> Budova Českého rozhlasu Brno na adrese Beethovenova 25/4, 657 42 Brno
A21: Datum: | C21: ='Identifikační údaje'!B5 -> 00:00:00
A23: =CONCATENATE("REKAPITULACE DODÁVEK A PRACÍ OBJEKTU ",'Rekapitulace stavby'!I66) -> REKAPITULACE DODÁVEK A PRACÍ OBJEKTU SO 12 - EPS
A25: P.č. | B25: Ozn. | D25: Materiál celkem | F25: Montáž celkem | H25: M+M celkem
A27: =B40 -> A. | B27: =C40 -> Dodávka zařízení | D27: =F40 -> 0 | F27: =H40 -> 0 | H27: =D27+F27 -> 0
A28: =B64 -> B. | B28: =C64 -> Nosný materiál | D28: =F64 -> 0 | F28: =H64 -> 0 | H28: 0
A29: =B80 -> C. | B29: =C80 -> C 22 M - zařízení | D29: --- | F29: =H80 -> 0 | H29: =F29 -> 0
A30: =B91 -> D. | B30: =C91 -> C 22 M - rozvody | D30: --- | F30: =H91 -> 0 | H30: =F30 -> 0
A32: =CONCATENATE("CELKEM ZA OBJEKT ",'Rekapitulace stavby'!I66, " v Kč bez DPH") -> CELKEM ZA OBJEKT SO 12 - EPS v Kč bez DPH | H32: =SUBTOTAL(9,H27:I30) -> 0
A35: Textová, výkresová i tabulková část projektové dokumentace tvoří jeden vzájemně se doplňující a provázaný celek. Jednotliví účastníci výběrového řízení se musí seznámit s projektojektovou dokumentací v návaznosti na soupis prací a na základě těchto informací části díla nacenit. Dále je potřeba při stanovení ceny dle vykázané výměry započítat všechny předpokládané doplňkové prvky a činnosti s touto položkou související tak, aby cena byla kompletní a prvek funkční.
A37: =A1 -> 13_SO 12 - EPS
F38: Materiál | H38: Montáž
A39: poř.č. | B39: položka | C39: popis položky | D39: MJ | E39: množství | F39: jedn.cena | G39: celkem [Kč] | H39: jedn.cena | I39: celkem [Kč]
B40: A. | C40: Dodávka zařízení | F40: =SUBTOTAL(9,G41:G62) -> 0 | H40: =SUBTOTAL(9,I40:I62) -> 0
B41: Automatické hlásiče a příslušenství
A42: 1 | B42: MTD 533X | C42: multisenzorový hlásič MTD 533X | D42: ks | E42: 42 | G42: =E42*F42 -> 0 | I42: =E42*H42 -> 0
A43: =A42+1 -> 2 | B43: USB 501-6 | C43: sokl USB 501-6, bez loop kontaktu | D43: ks | E43: 42 | G43: 0 | I43: 0
A44: =A43+1 -> 3 | B44: S USB 501 | C44: popisný štítek pro USB501 | D44: ks | E44: 42 | G44: 0 | I44: 0
B45: Manuální tlačítkový hlásič
A46: =A44+1 -> 4 | B46: MCP545X-1R | C46: tlačítkový hlásič MCP545X-1R - červený, IP24 | D46: ks | E46: 16 | G46: 0 | I46: 0
A47: =A46+1 -> 5 | B47: MCP535 AK | C47: štítek se symbolem pro MCP535 | D47: ks | E47: 16 | G47: 0 | I47: 0
B48: Moduly na kruhovou linku
A49: =A47+1 -> 6 | B49: BX-OI3 | C49: v/v modul BX-OI3, vč. zkrat. izolátoru | D49: ks | E49: 4 | G49: 0 | I49: 0
A50: =A49+1 -> 7 | B50: BX-IM4 | C50: vstupní modul BX-IM4, vč. zkrat. izolátoru | D50: ks | E50: 4 | G50: 0 | I50: 0
A51: =A50+1 -> 8 | B51: GEH MOD IP66 | C51: krabice pro moduly IP66, 94x94x57 mm | D51: ks | E51: 8 | G51: 0 | I51: 0
A52: 9 | B52: MM ANB M16 | C52: šroubovací průchodka M16 | D52: ks | E52: 16 | G52: 0 | I52: 0
A53: 10 | B53: MM GM M16 | C53: kontramatka PG16 | D53: ks | E53: 16 | G53: 0 | I53: 0
B54: Optické a akustické signalizační zařízení
A55: =A53+1 -> 11 | B55: VTB-32E-DB-RB/AL | C55: kombinované siréna/maják, červená, IP65 | D55: ks | E55: 1 | G55: 0 | I55: 0
A56: =A55+1 -> 12 | B56: BL V4 RT | C56: maják V4 červeny | D56: ks | E56: 1 | G56: 0 | I56: 0
A57: =A56+1 -> 13 | B57: CS200-SV/R | C57: siréna CS 200 červená, 32 tónů, IP 21c | D57: ks | E57: 3 | G57: 0 | I57: 0
B58: Ostatní
A59: =A57+1 -> 14 | B59: PRUEFGAS | C59: láhev zkušebního plynu 918/5 | D59: ks | E59: 1 | G59: 0 | I59: 0
A60: 15 | C60: obslužné pole požární ochrany | D60: ks | E60: 1 | G60: 0 | I60: 0
A61: 16 | C61: klíčový trezor MOT provedení (vč. motýlkového zámku - č. HZS) | D61: ks | E61: 1 | G61: 0 | I61: 0
A62: 17 | C62: Obslužné pole požární ochrany - OPPO | D62: ks | E62: 1 | G62: 0 | I62: 0
B64: B. | C64: Nosný materiál | F64: =SUBTOTAL(9,G65:G78) -> 0 | H64: =SUBTOTAL(9,I64:I78) -> 0
A65: =A62+1 -> 18 | C65: Elektroinstal. PVC trubka ohebná 16mm | D65: m | E65: 60 | G65: =E65*F65 -> 0 | I65: =E65*H65 -> 0
A66: =A65+1 -> 19 | C66: Elektroinstal. PVC trubka ohebná 29mm | D66: m | E66: 40 | G66: 0 | I66: 0
A67: 20 | C67: Kabel 1x2x0,8 třída reakce na oheň B2(ca)s1d0, funkční odolnost při požáru, P90-R - pevně uložen | D67: m | E67: 425 | G67: 0 | I67: 0
A68: 21 | C68: Kabel 2x2x0,8 třída reakce na oheň B2(ca)s1d0, funkční odolnost při požáru, P90-R - pevně uložen, pod omítkou | D68: m | E68: 13 | G68: 0 | I68: 0
A69: 22 | C69: Kabel 5x2x0,8 třída reakce na oheň B2(ca)s1d0, funkční odolnost při požáru, P90-R - pevně uložen | D69: m | E69: 13 | G69: 0 | I69: 0
A70: 23 | C70: Kabel 2x1,5 třída reakce na oheň B2(ca)s1d0, funkční odolnost při požáru P60-R - pevně uložen, pod omítkou | D70: m | E70: 80 | G70: 0 | I70: 0
A71: 24 | C71: Kabel 2x1,5 třída reakce na oheň B2(ca)s1d0, funkční odolnost při požáru P90-R - pevně uložen, pod omítkou | D71: m | E71: 12 | G71: 0 | I71: 0
A72: 25 | C72: Krabice univers. KU68/2 vč. víčka | D72: ks | E72: 24 | G72: 0 | I72: 0
A73: 26 | C73: Elektroinstlační rozvodná krabice s funkční odolností při požáru se zachováním integrity kabelové trasy P90-R | D73: ks | E73: 6 | G73: 0 | I73: 0
A74: 27 | C74: Požární příchytka kabelů jednotranná (kabel Ø8mm) | D74: ks | E74: 1529.877168 | G74: 0 | I74: 0
A75: 28 | C75: Požární příchytka kabelů jednotranná (kabel Ø10mm) | D75: ks | E75: 93 | G75: 0 | I75: 0
A76: 29 | C76: Požární příchytka kabelů jednotranná (kabel Ø14mm) | D76: ks | E76: 296.1904762 | G76: 0 | I76: 0
A77: 30 | C77: Šroub do betonu | D77: ks | E77: 1919 | G77: 0 | I77: 0
A78: 31 | C78: Podružný materiál | D78: kpl | E78: 1 | G78: 0 | I78: 0
B80: C. | C80: C 22 M - zařízení | H80: =SUBTOTAL(9,I80:I89) -> 0
A81: =A78+1 -> 32 | B81: 220111436 | C81: Kontrolní zavěrečné měření na kabelu | D81: vod | E81: 116 | F81: --- | G81: --- | I81: =E81*H81 -> 0
A82: =A81+1 -> 33 | B82: 220260106 | C82: Vyhledání vývodu nebo krabice | D82: ks | E82: 24 | F82: --- | G82: --- | I82: 0
A83: 34 | B83: 220260111 | C83: Odv. a zavičk. krab. s víčkem na závit | D83: ks | E83: 24 | F83: --- | G83: --- | I83: 0
A84: 35 | B84: 220300001 | C84: Forma kabelova do 5x2 | D84: ks | E84: 116 | F84: --- | G84: --- | I84: 0
A85: 36 | B85: 220330741 | C85: Revize EPS | D85: ks | E85: 1 | F85: --- | G85: --- | I85: 0
A86: 37 | B86: odb.odhad | C86: Přeprogramování stávající ústředny | D86: hod | E86: 6 | F86: --- | G86: --- | I86: 0
A87: 38 | B87: odb.odhad | C87: Vytvoření grafických obrazovek, napojení na stávající SW vč. oživení SW s technologií, předání funkčního SW uživateli | D87: dat.body | E87: 58 | F87: --- | G87: --- | I87: 0
A88: 39 | B88: odb.odhad | C88: Zaškolení obsluhy | D88: hod | E88: 5 | F88: --- | G88: --- | I88: 0
A89: 40 | B89: odb. odhad | C89: Demontáž a ekologická likvidace stávajících požárních hlásičů | D89: hod | E89: 10 | F89: --- | G89: --- | I89: 0
B91: D. | C91: C 22 M - rozvody | H91: =SUBTOTAL(9,I91:I97) -> 0
A92: =A89+1 -> 41 | B92: 220261622 | C92: Osazení hmoždinky 8mm v cihl. zdivu | D92: ks | E92: 1919 | F92: --- | G92: --- | I92: =E92*H92 -> 0
A93: =A92+1 -> 42 | B93: 220261661 | C93: Značení trasy vedení | D93: m | E93: 543 | F93: --- | G93: --- | I93: 0
A94: 43 | B94: 22011346 | C94: Štítek kabelový | D94: ks | E94: 58 | F94: --- | G94: --- | I94: 0
A95: 44 | B95: odb. odhah. | C95: Demontáž stávající kabeláže a hlásičů vč. ekol. likvidace | D95: hod | E95: 10 | F95: --- | G95: --- | I95: 0
A96: 45 | C96: Montáž požární kabelové ucpávky vč. materiálu, do 30mm | D96: ks | E96: 10 | F96: --- | G96: --- | I96: 0
A97: 46 | C97: Montáž požární kabelové ucpávky vč. materiálu, do 100mm | D97: ks | E97: 4 | F97: --- | G97: --- | I97: 0

Sheet 14 - VRN
A2: =CONCATENATE('Rekapitulace stavby'!C68," - ",'Rekapitulace stavby'!I68) -> 14 - Vedlejší a ostatní náklady stavby
A4: SOUPIS VEDLEJŠÍCH A OSTATNÍCH NÁKLADŮ STAVBY
A5: Název akce:
A6: ='Identifikační údaje'!B1 -> ČRo Brno – II. etapa rekonstrukce budovy Beethovenova 25/4
A8: Zadavatel: | C8: ='Identifikační údaje'!E7 -> Český rozhlas, Vinohradská 12, 120 99 Praha 2
B9: IČ: | C9: ='Identifikační údaje'!B9 -> 45245053
B10: DIČ: | C10: ='Identifikační údaje'!B10 -> CZ45245053
A12: Projektant: | C12: ='Identifikační údaje'!E12 -> Ing. arch. Klement Miloš, Nejedlého 381/19, 638 00 Brno - Lesná
B13: IČ: | C13: ='Identifikační údaje'!B14 -> 15188736
B14: DIČ: | C14: ='Identifikační údaje'!B15 -> CZ6101021344
A16: Uchazeč: | C16: ='Identifikační údaje'!E19 -> , ,
B17: IČ: | C17: ='Identifikační údaje'!B23 -> 0
B18: DIČ: | C18: ='Identifikační údaje'!B24 -> 0
A20: Místo stavby: | C20: ='Identifikační údaje'!B3 -> Budova Českého rozhlasu Brno na adrese Beethovenova 25/4, 657 42 Brno
A22: Datum: | C22: ='Identifikační údaje'!B5 -> 00:00:00
A25: =CONCATENATE("REKAPITULACE OBJEKTU ",'Rekapitulace stavby'!C68," - ",'Rekapitulace stavby'!I68) -> REKAPITULACE OBJEKTU 14 - Vedlejší a ostatní náklady stavby
A27: P.č. | B27: Ozn. | C27: Název položky | H27: Kč bez DPH
A29: Díl: | B29: =B40 -> VN | C29: =C40 -> Vedlejší náklady | F29: =F40 -> 0 | H29: =H136 -> 0
A30: Díl: | B30: =B45 -> ON | C30: =C45 -> Ostatní náklady | F30: =F45 -> 0 | H30: =H145 -> 0
A32: =CONCATENATE("CELKEM ZA OBJEKT ",A2, " v Kč bez DPH") -> CELKEM ZA OBJEKT 14 - Vedlejší a ostatní náklady stavby v Kč bez DPH | F32: =SUM(F29:G30) -> 0
A38: P.č. | B38: Číslo položky | C38: Název položky | D38: MJ | E38: množství | F38: cena / MJ | G38: celkem
B39: Ceník, kapitola
A40: Díl: | B40: VN | C40: Vedlejší náklady | F40: =SUM(G41:G44) -> 0
A41: 1 | B41: 005121 R | C41: Zařízení staveniště | D41: Soubor | E41: 1 | G41: =ROUND(E41*F41,2) -> 0 | AK41: 21
C42: Veškeré náklady spojené s vybudováním, provozem a odstraněním zařízení staveniště. Poplatky za zábor chodníku a komunikace. Případná montáž, provozování i demontáž stavebních výtahů, plošin i lešení. | AY42: =C42 -> Veškeré náklady spojené s vybudováním, provozem a odstraněním zařízení staveniště. Poplatky za zábor chodníku a komunikace. Případná montáž, provozování i demontáž stavebních výtahů, plošin i lešení.
A43: 2 | B43: 005122 R | C43: Provozní vlivy | D43: Soubor | E43: 1 | G43: =ROUND(E43*F43,2) -> 0 | AK43: 21
C44: Náklady na ztížené podmínky provádění tam, kde jsou stavební práce zcela nebo zčásti omezovány provozem jiných osob. Jde zejména o zvýšené náklady související s omezením provozem v areálu objednatele nebo o náklady v důsledku nezbytného respektování stávající dopravy ovlivňující stavební práce. Vyvázání větví stromů. Zakrývání nábytku, dveří, akustických obkladů, koberců, ostatního vybavení a rozhlasové techniky proti poškození a prachu. Odsávání prachu při bourání, průběžný uklid pracoviště. Protiprašné předěly. Kontrola funkčnosti zabezpečení stavby proti zatečení vody | AY44: =C44 -> Náklady na ztížené podmínky provádění tam, kde jsou stavební práce zcela nebo zčásti omezovány provozem jiných osob. Jde zejména o zvýšené náklady související s omezením provozem v areálu objednatele nebo o náklady v důsledku nezbytného respektování stávající dopravy ovlivňující stavební práce. Vyvázání větví stromů. Zakrývání nábytku, dveří, akustických obkladů, koberců, ostatního vybavení a rozhlasové techniky proti poškození a prachu. Odsávání prachu při bourání, průběžný uklid pracoviště. Protiprašné předěly. Kontrola funkčnosti zabezpečení stavby proti zatečení vody
A45: Díl: | B45: ON | C45: Ostatní náklady | F45: =SUM(G46:G47) -> 0
A46: 3 | B46: 006T | C46: Ostatní náklady dle zadávací dokumentace | D46: Soubor | E46: 1 | G46: =ROUND(E46*F46,2) -> 0 | AK46: 21
C47: Ostatními náklady dodavatele spojené se splněním povinností dodavatele vyplývajících z obchodních či jiných podmínek zadávací dokumentace. Patří do nich zejména náklady na vyhotovení dokumentace skutečného provedení stavby, náklady spojené s podmínkami pro publicitu projektu, náklady na dílenskou či výrobní dokumentaci, náklady na vyhotovení provozních řádů, návodů na údržbu, zaškolení pracovníků obsluhy. | AY47: =C47 -> Ostatními náklady dodavatele spojené se splněním povinností dodavatele vyplývajících z obchodních či jiných podmínek zadávací dokumentace. Patří do nich zejména náklady na vyhotovení dokumentace skutečného provedení stavby, náklady spojené s podmínkami pro publicitu projektu, náklady na dílenskou či výrobní dokumentaci, náklady na vyhotovení provozních řádů, návodů na údržbu, zaškolení pracovníků obsluhy.
AI48: =SUM(AI1:AI47) -> 0 | AJ48: =SUM(AJ1:AJ47) -> 0 | AL48: 15 | AM48: 21
B49: Celkem za objekt | G49: =F40+F45 -> 0 | AL49: =SUMIF(AK40:AK48,AL48,G40:G48) -> 0 | AM49: =SUMIF(AK40:AK48,AM48,G40:G48) -> 0
A51: =CONCATENATE("CELKEM ZA OBJEKT ",A2, " v Kč bez DPH") -> CELKEM ZA OBJEKT 14 - Vedlejší a ostatní náklady stavby v Kč bez DPH | F51: =F45+F40 -> 0
